Workbook

Sheet Datos (hidden)
B9: ANO | D9: MESES | F9: COD_RED | G9: DESC_RED | H9: RED | J9: COD_RED | K9: COD_MIC | L9: DESC_MICRO | M9: MICROREDES | O9: COD_ESTAB | P9: DESC_ESTAB | Q9: COD_RED | R9: COD_MIC | S9: COD_PROV | T9: COD_DIST | U9: REDMIC | V9: CONCATENAR | X9: COD_PROV | Y9: DESC_PROV | Z9: CONCATENAR | AB9: COD_PROV | AC9: COD_DIST | AD9: DESC_DIST | AE9: PROVDIST | AF9: CONCATENAR | AH9: UE
B10: 2024 | D10: 01-Enero | F10: 01 | G10: CUSCO SUR | H10: =CONCATENATE(F10," - ",G10) -> 01 - CUSCO SUR | J10: 00 | K10: 00 | L10: NO PERTENECE A NINGUNA MICRORED | M10: =CONCATENATE(J10,K10," - ",L10) -> 0000 - NO PERTENECE A NINGUNA MICRORED | O10: 000000000 | P10: (All) | Q10: 07 | R10: 00 | U10: =CONCATENATE(Q10,R10) -> 0700 | V10: =CONCATENATE(O10," - ",P10) -> 000000000 - (All) | X10: 00 | Y10: (All) | Z10: =CONCATENATE(X10," - ",Y10) -> 00 - (All) | AB10: 01 | AC10: 00 | AD10: (All) | AE10: =CONCATENATE(AB10,AC10) -> 0100 | AF10: =CONCATENATE(AB10,AC10," - ",AD10) -> 0100 - (All) | AH10: COD_RED | AI10: DESC_RED | AJ10: CONCATENAR
D11: 02-Febrero | F11: 02 | G11: CUSCO NORTE | H11: 02 - CUSCO NORTE | J11: 00 | K11: 99 | L11: (All) | M11: =CONCATENATE(J11,K11," - ",L11) -> 0099 - (All) | O11: 000002289 | P11: HOSPITAL REGIONAL CUSCO | Q11: 07 | R11: 00 | S11: 01 | T11: 01 | U11: =CONCATENATE(Q11,R11) -> 0700 | V11: =CONCATENATE(O11," - ",P11) -> 000002289 - HOSPITAL REGIONAL CUSCO | X11: 01 | Y11: CUSCO | Z11: =CONCATENATE(X11," - ",Y11) -> 01 - CUSCO | AB11: 01 | AC11: 01 | AD11: CUSCO | AE11: =CONCATENATE(AB11,AC11) -> 0101 | AF11: =CONCATENATE(AB11,AC11," - ",AD11) -> 0101 - CUSCO | AH11: 1129 | AI11: UE - SALUD CANAS - CANCHIS - ESPINAR | AJ11: =CONCATENATE(AH11," - ",AI11) -> 1129 - UE - SALUD CANAS - CANCHIS - ESPINAR
D12: 03-Marzo | F12: 03 | G12: LA CONVENCION | H12: 03 - LA CONVENCION | J12: 01 | K12: 00 | L12: HOSPITAL | M12: 0100 - HOSPITAL | O12: 000002305 | P12: HOSPITAL ANTONIO LORENA | Q12: 07 | R12: 00 | S12: 01 | T12: 06 | U12: =CONCATENATE(Q12,R12) -> 0700 | V12: 000002305 - HOSPITAL ANTONIO LORENA | X12: 02 | Y12: ACOMAYO | Z12: =CONCATENATE(X12," - ",Y12) -> 02 - ACOMAYO | AB12: 01 | AC12: 02 | AD12: CCORCA | AE12: 0102 | AF12: 0102 - CCORCA | AH12: 1130 | AI12: UE - HOSPITAL REGIONAL CUSCO | AJ12: =CONCATENATE(AH12," - ",AI12) -> 1130 - UE - HOSPITAL REGIONAL CUSCO
D13: 04-Abril | F13: 04 | G13: CANAS-CANCHIS-ESPINAR | H13: 04 - CANAS-CANCHIS-ESPINAR | J13: 01 | K13: 03 | L13: PARURO | M13: 0103 - PARURO | O13: 999999999 | P13: (All) | Q13: 07 | R13: 99 | U13: =CONCATENATE(Q13,R13) -> 0799 | V13: 999999999 - (All) | X13: 03 | Y13: ANTA | Z13: 03 - ANTA | AB13: 01 | AC13: 03 | AD13: POROY | AE13: 0103 | AF13: 0103 - POROY | AH13: 1169 | AI13: UE - HOSPITAL ANTONIO LORENA | AJ13: 1169 - UE - HOSPITAL ANTONIO LORENA
D14: 05-Mayo | F14: 05 | G14: KIMBIRI PICHARI | H14: 05 - KIMBIRI PICHARI | J14: 01 | K14: 06 | L14: PAUCARTAMBO | M14: 0106 - PAUCARTAMBO | O14: 000025210 | P14: TUPAC AMARU | Q14: 01 | R14: 00 | S14: 01 | T14: 05 | U14: 0100 | V14: 000025210 - TUPAC AMARU | X14: 04 | Y14: CALCA | Z14: 04 - CALCA | AB14: 01 | AC14: 04 | AD14: SAN JERONIMO | AE14: 0104 | AF14: 0104 - SAN JERONIMO | AH14: 1170 | AI14: UE - SALUD LA CONVENCION | AJ14: 1170 - UE - SALUD LA CONVENCION
D15: 06-Junio | F15: 06 | G15: CHUMBIVILCAS | H15: 06 - CHUMBIVILCAS | J15: 01 | K15: 12 | L15: URCOS | M15: 0112 - URCOS | O15: 000000000 | P15: (All) | Q15: 01 | R15: 16 | U15: =CONCATENATE(Q15,R15) -> 0116 | V15: =CONCATENATE(O15," - ",P15) -> 000000000 - (All) | X15: 05 | Y15: CANAS | Z15: 05 - CANAS | AB15: 01 | AC15: 05 | AD15: SAN SEBASTIAN | AE15: 0105 | AF15: 0105 - SAN SEBASTIAN | AH15: 1322 | AI15: UE - SALUD CUSCO SUR | AJ15: 1322 - UE - SALUD CUSCO SUR
D16: 07-Julio | F16: 07 | G16: HOSPITALES III | H16: =CONCATENATE(F16," - ",G16) -> 07 - HOSPITALES III | J16: 01 | K16: 13 | L16: ACOMAYO | M16: 0113 - ACOMAYO | O16: 000002300 | P16: SAN JERONIMO | Q16: 01 | R16: 16 | S16: 01 | T16: 04 | U16: 0116 | V16: 000002300 - SAN JERONIMO | X16: 06 | Y16: CANCHIS | Z16: 06 - CANCHIS | AB16: 01 | AC16: 06 | AD16: SANTIAGO | AE16: 0106 | AF16: 0106 - SANTIAGO | AH16: 1347 | AI16: UE - SALUD KIMBIRI PICHARI | AJ16: 1347 - UE - SALUD KIMBIRI PICHARI
D17: 08-Agosto | F17: 99 | G17: (All) | H17: =CONCATENATE(F17," - ",G17) -> 99 - (All) | J17: 01 | K17: 15 | L17: OCONGATE | M17: 0115 - OCONGATE | O17: 000002301 | P17: SAN SEBASTIAN | Q17: 01 | R17: 16 | S17: 01 | T17: 05 | U17: 0116 | V17: 000002301 - SAN SEBASTIAN | X17: 07 | Y17: CHUMBIVILCAS | Z17: 07 - CHUMBIVILCAS | AB17: 01 | AC17: 07 | AD17: SAYLLA | AE17: 0107 | AF17: 0107 - SAYLLA | AH17: 1348 | AI17: UE - SALUD CUSCO NORTE | AJ17: 1348 - UE - SALUD CUSCO NORTE
D18: 09-Setiembre | J18: 01 | K18: 16 | L18: CUSCO | M18: 0116 - CUSCO | O18: 000002303 | P18: SANTA ROSA | Q18: 01 | R18: 16 | S18: 01 | T18: 05 | U18: 0116 | V18: 000002303 - SANTA ROSA | X18: 08 | Y18: ESPINAR | Z18: 08 - ESPINAR | AB18: 01 | AC18: 08 | AD18: WANCHAQ | AE18: 0108 | AF18: 0108 - WANCHAQ | AH18: 1547 | AI18: UE - HOSPITAL ESPINAR | AJ18: 1547 - UE - HOSPITAL ESPINAR
D19: 10-Octubre | J19: 01 | K19: 99 | L19: (All) | M19: 0199 - (All) | O19: 000002314 | P19: SAYLLA | Q19: 01 | R19: 16 | S19: 01 | T19: 07 | U19: 0116 | V19: 000002314 - SAYLLA | X19: 09 | Y19: LA CONVENCION | Z19: 09 - LA CONVENCION | AB19: 02 | AC19: 00 | AD19: (All) | AE19: 0200 | AF19: 0200 - (All) | AH19: 1625 | AI19: UE - HOSPITAL SICUANI | AJ19: 1625 - UE - HOSPITAL SICUANI
D20: 11-Noviembre | J20: 02 | K20: 01 | L20: BELEMPAMPA | M20: 0201 - BELEMPAMPA | O20: 000002323 | P20: RONDOCAN | Q20: 01 | R20: 16 | S20: 02 | T20: 06 | U20: 0116 | V20: 000002323 - RONDOCAN | X20: 10 | Y20: PARURO | Z20: 10 - PARURO | AB20: 02 | AC20: 01 | AD20: ACOMAYO | AE20: 0201 | AF20: 0201 - ACOMAYO | AH20: 1626 | AI20: UE - HOSPITAL QUILLABAMBA | AJ20: 1626 - UE - HOSPITAL QUILLABAMBA
D21: 12-Diciembre | J21: 02 | K21: 02 | L21: WANCHAQ | M21: 0202 - WANCHAQ | O21: 000007699 | P21: CONCHACALLE | Q21: 01 | R21: 16 | S21: 01 | T21: 04 | U21: 0116 | V21: 000007699 - CONCHACALLE | X21: 11 | Y21: PAUCARTAMBO | Z21: 11 - PAUCARTAMBO | AB21: 02 | AC21: 02 | AD21: ACOPIA | AE21: 0202 | AF21: 0202 - ACOPIA | AH21: 1666 | AI21: UE - SALUD CHUMBIVILCAS | AJ21: 1666 - UE - SALUD CHUMBIVILCAS
J22: 02 | K22: 03 | L22: ANTA | M22: 0203 - ANTA | O22: 000010065 | P22: ESSALUD-SAN SEBASTIAN | Q22: 01 | R22: 16 | S22: 01 | T22: 05 | U22: 0116 | V22: 000010065 - ESSALUD-SAN SEBASTIAN | X22: 12 | Y22: QUISPICANCHI | Z22: 12 - QUISPICANCHI | AB22: 02 | AC22: 03 | AD22: ACOS | AE22: 0203 | AF22: 0203 - ACOS | AH22: 7777 | AI22: (All) | AJ22: =CONCATENATE(AH22," - ",AI22) -> 7777 - (All)
J23: 02 | K23: 04 | L23: LIMATAMBO | M23: 0204 - LIMATAMBO | O23: 000011743 | P23: SANIDAD-SANTA ROSA PNP | Q23: 01 | R23: 16 | S23: 01 | T23: 05 | U23: 0116 | V23: 000011743 - SANIDAD-SANTA ROSA PNP | X23: 13 | Y23: URUBAMBA | Z23: 13 - URUBAMBA | AB23: 02 | AC23: 04 | AD23: MOSOC LLACTA | AE23: 0204 | AF23: 0204 - MOSOC LLACTA
J24: 02 | K24: 05 | L24: PISAC | M24: 0205 - PISAC | O24: 000026181 | P24: MENTAL SAN SEBASTIAN | Q24: 01 | R24: 16 | S24: 01 | T24: 05 | U24: 0116 | V24: 000026181 - MENTAL SAN SEBASTIAN | AB24: 02 | AC24: 05 | AD24: POMACANCHI | AE24: 0205 | AF24: 0205 - POMACANCHI
J25: 02 | K25: 06 | L25: CALCA | M25: 0206 - CALCA | O25: 000030727 | P25: PATRÓN SAN SEBASTIAN | Q25: 01 | R25: 16 | S25: 01 | T25: 04 | U25: =CONCATENATE(Q25,R25) -> 0116 | V25: 000030727 - PATRÓN SAN SEBASTIAN | AB25: 02 | AC25: 06 | AD25: RONDOCAN | AE25: 0206 | AF25: 0206 - RONDOCAN
J26: 02 | K26: 07 | L26: URUBAMBA | M26: 0207 - URUBAMBA | O26: 000000000 | P26: (All) | Q26: 01 | R26: 03 | U26: =CONCATENATE(Q26,R26) -> 0103 | V26: 000000000 - (All) | AB26: 02 | AC26: 07 | AD26: SANGARARA | AE26: 0207 | AF26: 0207 - SANGARARA
J27: 02 | K27: 08 | L27: YANATILE | M27: 0208 - YANATILE | O27: 000002499 | P27: PARURO | Q27: 01 | R27: 03 | S27: 10 | T27: 01 | U27: 0103 | V27: 000002499 - PARURO | AB27: 03 | AC27: 00 | AD27: (All) | AE27: 0300 | AF27: 0300 - (All)
J28: 02 | K28: 09 | L28: SIETE CUARTONES | M28: 0209 - SIETE CUARTONES | O28: 000002500 | P28: ACCHA | Q28: 01 | R28: 03 | S28: 10 | T28: 02 | U28: 0103 | V28: 000002500 - ACCHA | AB28: 03 | AC28: 01 | AD28: ANTA | AE28: 0301 | AF28: 0301 - ANTA
J29: 02 | K29: 99 | L29: (All) | M29: 0299 - (All) | O29: 000002501 | P29: CCAPI | Q29: 01 | R29: 03 | S29: 10 | T29: 03 | U29: 0103 | V29: 000002501 - CCAPI | AB29: 03 | AC29: 02 | AD29: ANCAHUASI | AE29: 0302 | AF29: 0302 - ANCAHUASI
J30: 03 | K30: 00 | L30: HOSPITAL | M30: 0300 - HOSPITAL | O30: 000002502 | P30: CCOYABAMBA | Q30: 01 | R30: 03 | S30: 10 | T30: 03 | U30: 0103 | V30: 000002502 - CCOYABAMBA | AB30: 03 | AC30: 03 | AD30: CACHIMAYO | AE30: 0303 | AF30: 0303 - CACHIMAYO
J31: 03 | K31: 01 | L31: SANTA ANA | M31: 0301 - SANTA ANA | O31: 000002503 | P31: COLCHA | Q31: 01 | R31: 03 | S31: 10 | T31: 04 | U31: 0103 | V31: 000002503 - COLCHA | AB31: 03 | AC31: 04 | AD31: CHINCHAYPUJIO | AE31: 0304 | AF31: 0304 - CHINCHAYPUJIO
J32: 03 | K32: 02 | L32: MARANURA | M32: 0302 - MARANURA | O32: 000002504 | P32: HUANOQUITE | Q32: 01 | R32: 03 | S32: 10 | T32: 05 | U32: 0103 | V32: 000002504 - HUANOQUITE | AB32: 03 | AC32: 05 | AD32: HUAROCONDO | AE32: 0305 | AF32: 0305 - HUAROCONDO
J33: 03 | K33: 03 | L33: QUELLOUNO | M33: 0303 - QUELLOUNO | O33: 000002505 | P33: OMACHA | Q33: 01 | R33: 03 | S33: 10 | T33: 06 | U33: 0103 | V33: 000002505 - OMACHA | AB33: 03 | AC33: 06 | AD33: LIMATAMBO | AE33: 0306 | AF33: 0306 - LIMATAMBO
J34: 03 | K34: 04 | L34: KITENI | M34: 0304 - KITENI | O34: 000002506 | P34: ANTAPALLPA | Q34: 01 | R34: 03 | S34: 10 | T34: 06 | U34: 0103 | V34: 000002506 - ANTAPALLPA | AB34: 03 | AC34: 07 | AD34: MOLLEPATA | AE34: 0307 | AF34: 0307 - MOLLEPATA
J35: 03 | K35: 05 | L35: KAMISEA | M35: 0305 - KAMISEA | O35: 000002507 | P35: PACCARECTAMBO | Q35: 01 | R35: 03 | S35: 10 | T35: 07 | U35: 0103 | V35: 000002507 - PACCARECTAMBO | AB35: 03 | AC35: 08 | AD35: PUCYURA | AE35: 0308 | AF35: 0308 - PUCYURA
J36: 03 | K36: 06 | L36: PUCYURA | M36: 0306 - PUCYURA | O36: 000002509 | P36: YAURISQUE | Q36: 01 | R36: 03 | S36: 10 | T36: 09 | U36: 0103 | V36: 000002509 - YAURISQUE | AB36: 03 | AC36: 09 | AD36: ZURITE | AE36: 0309 | AF36: 0309 - ZURITE
J37: 03 | K37: 99 | L37: (All) | M37: 0399 - (All) | O37: 000006978 | P37: CCOCHIRIHUAY | Q37: 01 | R37: 03 | S37: 10 | T37: 04 | U37: 0103 | V37: 000006978 - CCOCHIRIHUAY | AB37: 04 | AC37: 00 | AD37: (All) | AE37: 0400 | AF37: 0400 - (All)
J38: 04 | K38: 00 | L38: HOSPITAL | M38: 0400 - HOSPITAL | O38: 000007147 | P38: HUASQUILLAY | Q38: 01 | R38: 03 | S38: 10 | T38: 06 | U38: 0103 | V38: 000007147 - HUASQUILLAY | AB38: 04 | AC38: 01 | AD38: CALCA | AE38: 0401 | AF38: 0401 - CALCA
J39: 04 | K39: 01 | L39: YANAOCA | M39: 0401 - YANAOCA | O39: 000012924 | P39: SAHUA SAHUA | Q39: 01 | R39: 03 | S39: 10 | T39: 06 | U39: 0103 | V39: 000012924 - SAHUA SAHUA | AB39: 04 | AC39: 02 | AD39: COYA | AE39: 0402 | AF39: 0402 - COYA
J40: 04 | K40: 02 | L40: EL DESCANSO | M40: 0402 - EL DESCANSO | O40: 000000000 | P40: (All) | Q40: 01 | R40: 06 | U40: 0106 | V40: 000000000 - (All) | AB40: 04 | AC40: 03 | AD40: LAMAY | AE40: 0403 | AF40: 0403 - LAMAY
J41: 04 | K41: 03 | L41: COMBAPATA | M41: 0403 - COMBAPATA | O41: 000002510 | P41: PAUCARTAMBO | Q41: 01 | R41: 06 | S41: 11 | T41: 01 | U41: 0106 | V41: 000002510 - PAUCARTAMBO | AB41: 04 | AC41: 04 | AD41: LARES | AE41: 0404 | AF41: 0404 - LARES
J42: 04 | K42: 04 | L42: TECHO OBRERO | M42: 0404 - TECHO OBRERO | O42: 000002511 | P42: MOLLOMARCA | Q42: 01 | R42: 06 | S42: 11 | T42: 01 | U42: 0106 | V42: 000002511 - MOLLOMARCA | AB42: 04 | AC42: 05 | AD42: PISAC | AE42: 0405 | AF42: 0405 - PISAC
J43: 04 | K43: 05 | L43: PAMPAPHALLA | M43: 0405 - PAMPAPHALLA | O43: 000002512 | P43: CAICAY | Q43: 01 | R43: 06 | S43: 11 | T43: 02 | U43: 0106 | V43: 000002512 - CAICAY | AB43: 04 | AC43: 06 | AD43: SAN SALVADOR | AE43: 0406 | AF43: 0406 - SAN SALVADOR
J44: 04 | K44: 06 | L44: YAURI | M44: 0406 - YAURI | O44: 000002513 | P44: HUASAC | Q44: 01 | R44: 06 | S44: 11 | T44: 02 | U44: 0106 | V44: 000002513 - HUASAC | AB44: 04 | AC44: 07 | AD44: TARAY | AE44: 0407 | AF44: 0407 - TARAY
J45: 04 | K45: 99 | L45: (All) | M45: 0499 - (All) | O45: 000002514 | P45: CHALLABAMBA | Q45: 01 | R45: 06 | S45: 11 | T45: 03 | U45: 0106 | V45: 000002514 - CHALLABAMBA | AB45: 04 | AC45: 08 | AD45: YANATILE | AE45: 0408 | AF45: 0408 - YANATILE
J46: 05 | K46: 00 | L46: HOSPITAL | M46: 0500 - HOSPITAL | O46: 000002516 | P46: COLQUEPATA | Q46: 01 | R46: 06 | S46: 11 | T46: 04 | U46: 0106 | V46: 000002516 - COLQUEPATA | AB46: 05 | AC46: 00 | AD46: (All) | AE46: 0500 | AF46: 0500 - (All)
J47: 05 | K47: 01 | L47: KIMBIRI | M47: 0501 - KIMBIRI | O47: 000002517 | P47: PICHIHUA COLQUEPATA | Q47: 01 | R47: 06 | S47: 11 | T47: 04 | U47: 0106 | V47: 000002517 - PICHIHUA COLQUEPATA | AB47: 05 | AC47: 01 | AD47: YANAOCA | AE47: 0501 | AF47: 0501 - YANAOCA
J48: 05 | K48: 02 | L48: PICHARI | M48: 0502 - PICHARI | O48: 000002518 | P48: VIZCOCHONI | Q48: 01 | R48: 06 | S48: 11 | T48: 04 | U48: 0106 | V48: 000002518 - VIZCOCHONI | AB48: 05 | AC48: 02 | AD48: CHECCA | AE48: 0502 | AF48: 0502 - CHECCA
J49: 05 | K49: 99 | L49: (All) | M49: 0599 - (All) | O49: 000002519 | P49: AYRE | Q49: 01 | R49: 06 | S49: 11 | T49: 04 | U49: 0106 | V49: 000002519 - AYRE | AB49: 05 | AC49: 03 | AD49: KUNTURKANKI | AE49: 0503 | AF49: 0503 - KUNTURKANKI
J50: 06 | K50: 00 | L50: HOSPITAL | M50: 0600 - HOSPITAL | O50: 000002520 | P50: HUANCARANI | Q50: 01 | R50: 06 | S50: 11 | T50: 05 | U50: 0106 | V50: 000002520 - HUANCARANI | AB50: 05 | AC50: 04 | AD50: LANGUI | AE50: 0504 | AF50: 0504 - LANGUI
J51: 06 | K51: 09 | L51: SANTO TOMAS | M51: 0609 - SANTO TOMAS | O51: 000002521 | P51: PILCOPATA | Q51: 01 | R51: 06 | S51: 11 | T51: 06 | U51: 0106 | V51: 000002521 - PILCOPATA | AB51: 05 | AC51: 05 | AD51: LAYO | AE51: 0505 | AF51: 0505 - LAYO
J52: 06 | K52: 01 | L52: LIVITACA | M52: 0601 - LIVITACA | O52: 000002522 | P52: PATRIA | Q52: 01 | R52: 06 | S52: 11 | T52: 06 | U52: 0106 | V52: 000002522 - PATRIA | AB52: 05 | AC52: 06 | AD52: PAMPAMARCA | AE52: 0506 | AF52: 0506 - PAMPAMARCA
J53: 06 | K53: 99 | L53: (All) | M53: 0699 - (All) | O53: 000006979 | P53: TOCRA | Q53: 01 | R53: 06 | S53: 11 | T53: 04 | U53: 0106 | V53: 000006979 - TOCRA | AB53: 05 | AC53: 07 | AD53: QUEHUE | AE53: 0507 | AF53: 0507 - QUEHUE
J54: 07 | K54: 00 | L54: HOSPITAL | M54: 0700 - HOSPITAL | O54: 000010077 | P54: ESSALUD-PAUCARTAMBO | Q54: 01 | R54: 06 | S54: 11 | T54: 01 | U54: 0106 | V54: 000010077 - ESSALUD-PAUCARTAMBO | AB54: 05 | AC54: 08 | AD54: TUPAC AMARU | AE54: 0508 | AF54: 0508 - TUPAC AMARU
J55: 99 | K55: 99 | L55: (All) | M55: =CONCATENATE(J55,K55," - ",L55) -> 9999 - (All) | O55: 000033777 | P55: MENTAL COMUNITARIO VIRGEN DEL ROSARIO | Q55: 01 | R55: 06 | S55: 11 | T55: 01 | U55: 0106 | V55: 000033777 - MENTAL COMUNITARIO VIRGEN DEL ROSARIO | AB55: 06 | AC55: 00 | AD55: (All) | AE55: 0600 | AF55: 0600 - (All)
O56: 000000000 | P56: (All) | Q56: 01 | R56: 12 | U56: 0112 | V56: 000000000 - (All) | AB56: 06 | AC56: 01 | AD56: SICUANI | AE56: 0601 | AF56: 0601 - SICUANI
O57: 000002523 | P57: URCOS | Q57: 01 | R57: 12 | S57: 12 | T57: 01 | U57: 0112 | V57: 000002523 - URCOS | AB57: 06 | AC57: 02 | AD57: CHECACUPE | AE57: 0602 | AF57: 0602 - CHECACUPE
O58: 000002525 | P58: ANDAHUAYLILLAS | Q58: 01 | R58: 12 | S58: 12 | T58: 02 | U58: 0112 | V58: 000002525 - ANDAHUAYLILLAS | AB58: 06 | AC58: 03 | AD58: COMBAPATA | AE58: 0603 | AF58: 0603 - COMBAPATA
O59: 000002530 | P59: CUSIPATA | Q59: 01 | R59: 12 | S59: 12 | T59: 06 | U59: 0112 | V59: 000002530 - CUSIPATA | AB59: 06 | AC59: 04 | AD59: MARANGANI | AE59: 0604 | AF59: 0604 - MARANGANI
O60: 000002532 | P60: HUARO | Q60: 01 | R60: 12 | S60: 12 | T60: 07 | U60: 0112 | V60: 000002532 - HUARO | AB60: 06 | AC60: 05 | AD60: PITUMARCA | AE60: 0605 | AF60: 0605 - PITUMARCA
O61: 000002533 | P61: URPAY | Q61: 01 | R61: 12 | S61: 12 | T61: 07 | U61: 0112 | V61: 000002533 - URPAY | AB61: 06 | AC61: 06 | AD61: SAN PABLO | AE61: 0606 | AF61: 0606 - SAN PABLO
O62: 000002534 | P62: LUCRE | Q62: 01 | R62: 12 | S62: 12 | T62: 08 | U62: 0112 | V62: 000002534 - LUCRE | AB62: 06 | AC62: 07 | AD62: SAN PEDRO | AE62: 0607 | AF62: 0607 - SAN PEDRO
O63: 000002537 | P63: OROPESA | Q63: 01 | R63: 12 | S63: 12 | T63: 11 | U63: 0112 | V63: 000002537 - OROPESA | AB63: 06 | AC63: 08 | AD63: TINTA | AE63: 0608 | AF63: 0608 - TINTA
O64: 000002538 | P64: QUIQUIJANA | Q64: 01 | R64: 12 | S64: 12 | T64: 12 | U64: 0112 | V64: 000002538 - QUIQUIJANA | AB64: 07 | AC64: 00 | AD64: (All) | AE64: 0700 | AF64: 0700 - (All)
O65: 000002539 | P65: CCOLCA | Q65: 01 | R65: 12 | S65: 12 | T65: 12 | U65: 0112 | V65: 000002539 - CCOLCA | AB65: 07 | AC65: 01 | AD65: SANTO TOMAS | AE65: 0701 | AF65: 0701 - SANTO TOMAS
O66: 000006980 | P66: CHILLIHUANI | Q66: 01 | R66: 12 | S66: 12 | T66: 06 | U66: 0112 | V66: 000006980 - CHILLIHUANI | AB66: 07 | AC66: 02 | AD66: CAPACMARCA | AE66: 0702 | AF66: 0702 - CAPACMARCA
O67: 000008911 | P67: HUARA HUARA | Q67: 01 | R67: 12 | S67: 12 | T67: 05 | U67: 0112 | V67: 000008911 - HUARA HUARA | AB67: 07 | AC67: 03 | AD67: CHAMACA | AE67: 0703 | AF67: 0703 - CHAMACA
O68: 000011747 | P68: SANIDAD-PUCUTO PNP | Q68: 01 | R68: 12 | S68: 12 | T68: 07 | U68: 0112 | V68: 000011747 - SANIDAD-PUCUTO PNP | AB68: 07 | AC68: 04 | AD68: COLQUEMARCA | AE68: 0704 | AF68: 0704 - COLQUEMARCA
O69: 000026385 | P69: ESSALUD-URCOS | Q69: 01 | R69: 12 | S69: 12 | T69: 01 | U69: 0112 | V69: 000026385 - ESSALUD-URCOS | AB69: 07 | AC69: 05 | AD69: LIVITACA | AE69: 0705 | AF69: 0705 - LIVITACA
O70: 000030708 | P70: MENTAL COMUNITARIO HUARO | Q70: 01 | R70: 12 | S70: 12 | T70: 07 | U70: 0112 | V70: 000030708 - MENTAL COMUNITARIO HUARO | AB70: 07 | AC70: 06 | AD70: LLUSCO | AE70: 0706 | AF70: 0706 - LLUSCO
O71: 000000000 | P71: (All) | Q71: 01 | R71: 13 | U71: 0113 | V71: 000000000 - (All) | AB71: 07 | AC71: 07 | AD71: QUIÑOTA | AE71: 0707 | AF71: 0707 - QUIÑOTA
O72: 000002317 | P72: ACOMAYO | Q72: 01 | R72: 13 | S72: 02 | T72: 01 | U72: 0113 | V72: 000002317 - ACOMAYO | AB72: 07 | AC72: 08 | AD72: VELILLE | AE72: 0708 | AF72: 0708 - VELILLE
O73: 000002318 | P73: ACOPIA | Q73: 01 | R73: 13 | S73: 02 | T73: 02 | U73: 0113 | V73: 000002318 - ACOPIA | AB73: 08 | AC73: 00 | AD73: (All) | AE73: 0800 | AF73: 0800 - (All)
O74: 000002319 | P74: ACOS | Q74: 01 | R74: 13 | S74: 02 | T74: 03 | U74: 0113 | V74: 000002319 - ACOS | AB74: 08 | AC74: 01 | AD74: ESPINAR | AE74: 0801 | AF74: 0801 - ESPINAR
O75: 000002321 | P75: CENTRO DE SALUD POMACANCHI | Q75: 01 | R75: 13 | S75: 02 | T75: 05 | U75: 0113 | V75: =CONCATENATE(O75," - ",P75) -> 000002321 - CENTRO DE SALUD POMACANCHI | AB75: 08 | AC75: 02 | AD75: CONDOROMA | AE75: =CONCATENATE(AB75,AC75) -> 0802 | AF75: =CONCATENATE(AB75,AC75," - ",AD75) -> 0802 - CONDOROMA
O76: 000002322 | P76: SAN JUAN DE POMACANCHI | Q76: 01 | R76: 13 | S76: 02 | T76: 05 | U76: 0113 | V76: 000002322 - SAN JUAN DE POMACANCHI | AB76: 08 | AC76: 03 | AD76: COPORAQUE | AE76: 0803 | AF76: 0803 - COPORAQUE
O77: 000002324 | P77: PUESTO DE SALUD SANGARARA | Q77: 01 | R77: 13 | S77: 02 | T77: 07 | U77: 0113 | V77: 000002324 - PUESTO DE SALUD SANGARARA | AB77: 08 | AC77: 04 | AD77: OCORURO | AE77: 0804 | AF77: 0804 - OCORURO
O78: 000002325 | P78: PUESTO DE SALUD MARCACONGA | Q78: 01 | R78: 13 | S78: 02 | T78: 07 | U78: 0113 | V78: 000002325 - PUESTO DE SALUD MARCACONGA | AB78: 08 | AC78: 05 | AD78: PALLPATA | AE78: 0805 | AF78: 0805 - PALLPATA
O79: 000002508 | P79: PILLPINTO | Q79: 01 | R79: 13 | S79: 10 | T79: 08 | U79: 0113 | V79: 000002508 - PILLPINTO | AB79: 08 | AC79: 06 | AD79: PICHIGUA | AE79: 0806 | AF79: 0806 - PICHIGUA
O80: 000010076 | P80: ESSALUD-ACOMAYO | Q80: 01 | R80: 13 | S80: 02 | T80: 01 | U80: 0113 | V80: 000010076 - ESSALUD-ACOMAYO | AB80: 08 | AC80: 07 | AD80: SUYCKUTAMBO | AE80: 0807 | AF80: 0807 - SUYCKUTAMBO
O81: 000012926 | P81: SANTA LUCIA | Q81: 01 | R81: 13 | S81: 02 | T81: 05 | U81: 0113 | V81: 000012926 - SANTA LUCIA | AB81: 08 | AC81: 08 | AD81: ALTO PICHIGUA | AE81: 0808 | AF81: 0808 - ALTO PICHIGUA
O82: 000000000 | P82: (All) | Q82: 01 | R82: 15 | U82: 0115 | V82: 000000000 - (All) | AB82: 09 | AC82: 00 | AD82: (All) | AE82: 0900 | AF82: 0900 - (All)
O83: 000002524 | P83: PAMPACAMARA | Q83: 01 | R83: 15 | S83: 12 | T83: 05 | U83: 0115 | V83: 000002524 - PAMPACAMARA | AB83: 09 | AC83: 01 | AD83: SANTA ANA | AE83: 0901 | AF83: 0901 - SANTA ANA
O84: 000002526 | P84: QUINCE MIL | Q84: 01 | R84: 15 | S84: 12 | T84: 03 | U84: 0115 | V84: 000002526 - QUINCE MIL | AB84: 09 | AC84: 02 | AD84: ECHARATE | AE84: 0902 | AF84: 0902 - ECHARATE
O85: 000002527 | P85: CCARHUAYO | Q85: 01 | R85: 15 | S85: 12 | T85: 04 | U85: 0115 | V85: 000002527 - CCARHUAYO | AB85: 09 | AC85: 03 | AD85: HUAYOPATA | AE85: 0903 | AF85: 0903 - HUAYOPATA
O86: 000002528 | P86: CCATCCA | Q86: 01 | R86: 15 | S86: 12 | T86: 05 | U86: 0115 | V86: 000002528 - CCATCCA | AB86: 09 | AC86: 04 | AD86: MARANURA | AE86: 0904 | AF86: 0904 - MARANURA
O87: 000002529 | P87: KCAURY | Q87: 01 | R87: 15 | S87: 12 | T87: 05 | U87: 0115 | V87: 000002529 - KCAURY | AB87: 09 | AC87: 05 | AD87: OCOBAMBA | AE87: 0905 | AF87: 0905 - OCOBAMBA
O88: 000002535 | P88: MARCAPATA | Q88: 01 | R88: 15 | S88: 12 | T88: 09 | U88: 0115 | V88: 000002535 - MARCAPATA | AB88: 09 | AC88: 06 | AD88: QUELLOUNO | AE88: 0906 | AF88: 0906 - QUELLOUNO
O89: 000002536 | P89: OCONGATE | Q89: 01 | R89: 15 | S89: 12 | T89: 10 | U89: 0115 | V89: 000002536 - OCONGATE | AB89: 09 | AC89: 07 | AD89: KIMBIRI | AE89: 0907 | AF89: 0907 - KIMBIRI
O90: 000006977 | P90: TINKI | Q90: 01 | R90: 15 | S90: 12 | T90: 10 | U90: =CONCATENATE(Q90,R90) -> 0115 | V90: 000006977 - TINKI | AB90: 09 | AC90: 08 | AD90: SANTA TERESA | AE90: 0908 | AF90: 0908 - SANTA TERESA
O91: 000007110 | P91: INCACANCHA | Q91: 01 | R91: 15 | S91: 12 | T91: 09 | U91: 0115 | V91: 000007110 - INCACANCHA | AB91: 09 | AC91: 09 | AD91: VILCABAMBA | AE91: 0909 | AF91: 0909 - VILCABAMBA
O92: 000012931 | P92: CHICHINA | Q92: 01 | R92: 15 | S92: 12 | T92: 05 | U92: 0115 | V92: 000012931 - CHICHINA | AB92: 09 | AC92: 10 | AD92: PICHARI | AE92: 0910 | AF92: 0910 - PICHARI
O93: 000016335 | P93: CCAPANA | Q93: 01 | R93: 15 | S93: 12 | T93: 05 | U93: 0115 | V93: 000016335 - CCAPANA | AB93: 09 | AC93: 11 | AD93: INKAWASI | AE93: 0911 | AF93: 0911 - INKAWASI
O94: 999999999 | P94: (All) | Q94: 01 | R94: 99 | U94: 0199 | V94: 999999999 - (All) | AB94: 09 | AC94: 12 | AD94: VILLA VIRGEN | AE94: 0912 | AF94: 0912 - VILLA VIRGEN
O95: 000000000 | P95: (All) | Q95: 02 | R95: 01 | U95: 0201 | V95: 000000000 - (All) | AB95: 09 | AC95: 13 | AD95: VILLA KINTIARINA | AE95: 0913 | AF95: 0913 - VILLA KINTIARINA
O96: 000002292 | P96: INDEPENDENCIA | Q96: 02 | R96: 01 | S96: 01 | T96: 01 | U96: 0201 | V96: 000002292 - INDEPENDENCIA | AB96: 09 | AC96: 14 | AD96: MEGANTONI | AE96: 0914 | AF96: 0914 - MEGANTONI
O97: 000002297 | P97: CCORCCA | Q97: 02 | R97: 01 | S97: 01 | T97: 02 | U97: 0201 | V97: 000002297 - CCORCCA | AB97: 09 | AC97: 15 | AD97: KUMPIRUSHIATO | AE97: 0915 | AF97: 0915 - KUMPIRUSHIATO
O98: 000002306 | P98: BELEMPAMPA | Q98: 02 | R98: 01 | S98: 01 | T98: 06 | U98: 0201 | V98: 000002306 - BELEMPAMPA | AB98: 09 | AC98: 16 | AD98: CIELO PUNCO | AE98: 0916 | AF98: 0916 - CIELO PUNCO
O99: 000002308 | P99: ZARZUELA ALTA | Q99: 02 | R99: 01 | S99: 01 | T99: 06 | U99: 0201 | V99: 000002308 - ZARZUELA ALTA | AB99: 09 | AC99: 17 | AD99: MANITEA | AE99: 0917 | AF99: 0917 - MANITEA
O100: 000002309 | P100: DIGNIDAD NACIONAL | Q100: 02 | R100: 01 | S100: 01 | T100: 06 | U100: 0201 | V100: 000002309 - DIGNIDAD NACIONAL | AB100: 09 | AC100: 18 | AD100: UNION ASHANINKA | AE100: 0918 | AF100: 0918 - UNION ASHANINKA
O101: 000002313 | P101: OCCOPATA | Q101: 02 | R101: 01 | S101: 01 | T101: 06 | U101: 0201 | V101: 000002313 - OCCOPATA | AB101: 10 | AC101: 00 | AD101: (All) | AE101: 1000 | AF101: 1000 - (All)
O102: 000010067 | P102: ESSALUD-SANTIAGO | Q102: 02 | R102: 01 | S102: 01 | T102: 06 | U102: 0201 | V102: 000010067 - ESSALUD-SANTIAGO | AB102: 10 | AC102: 01 | AD102: PARURO | AE102: 1001 | AF102: 1001 - PARURO
O103: 000010920 | P103: EJERCITO-QUINTA BRIGADA DE MONTAÑA | Q103: 02 | R103: 01 | S103: 01 | T103: 06 | U103: 0201 | V103: 000010920 - EJERCITO-QUINTA BRIGADA DE MONTAÑA | AB103: 10 | AC103: 02 | AD103: ACCHA | AE103: 1002 | AF103: 1002 - ACCHA
O104: 000026182 | P104: MENTAL SANTIAGO | Q104: 02 | R104: 01 | S104: 01 | T104: 06 | U104: 0201 | V104: 000026182 - MENTAL SANTIAGO | AB104: 10 | AC104: 03 | AD104: CCAPI | AE104: 1003 | AF104: 1003 - CCAPI
O105: 000000000 | P105: (All) | Q105: 02 | R105: 02 | U105: 0202 | V105: 000000000 - (All) | AB105: 10 | AC105: 04 | AD105: COLCHA | AE105: 1004 | AF105: 1004 - COLCHA
O106: 000002302 | P106: CCORAO | Q106: 02 | R106: 02 | S106: 01 | T106: 05 | U106: 0202 | V106: 000002302 - CCORAO | AB106: 10 | AC106: 05 | AD106: HUANOQUITE | AE106: 1005 | AF106: 1005 - HUANOQUITE
O107: 000002307 | P107: MANCO CAPAC | Q107: 02 | R107: 02 | S107: 01 | T107: 06 | U107: 0202 | V107: 000002307 - MANCO CAPAC | AB107: 10 | AC107: 06 | AD107: OMACHA | AE107: 1006 | AF107: 1006 - OMACHA
O108: 000002310 | P108: CHOCCO | Q108: 02 | R108: 02 | S108: 01 | T108: 06 | U108: 0202 | V108: 000002310 - CHOCCO | AB108: 10 | AC108: 07 | AD108: PACCARITAMBO | AE108: 1007 | AF108: 1007 - PACCARITAMBO
O109: 000002315 | P109: WANCHAQ | Q109: 02 | R109: 02 | S109: 01 | T109: 08 | U109: 0202 | V109: 000002315 - WANCHAQ | AB109: 10 | AC109: 08 | AD109: PILLPINTO | AE109: 1008 | AF109: 1008 - PILLPINTO
O110: 000002316 | P110: TTIO | Q110: 02 | R110: 02 | S110: 01 | T110: 08 | U110: 0202 | V110: 000002316 - TTIO | AB110: 10 | AC110: 09 | AD110: YAURISQUE | AE110: 1009 | AF110: 1009 - YAURISQUE
O111: 000010041 | P111: ESSALUD-ADOLFO GUEVARA V. | Q111: 02 | R111: 02 | S111: 01 | T111: 08 | U111: 0202 | V111: 000010041 - ESSALUD-ADOLFO GUEVARA V. | AB111: 11 | AC111: 00 | AD111: (All) | AE111: 1100 | AF111: 1100 - (All)
O112: 000026183 | P112: ESSALUD-METROPOLITANO | Q112: 02 | R112: 02 | S112: 01 | T112: 08 | U112: 0202 | V112: 000026183 - ESSALUD-METROPOLITANO | AB112: 11 | AC112: 01 | AD112: PAUCARTAMBO | AE112: 1101 | AF112: 1101 - PAUCARTAMBO
O113: 000030730 | P113: PATRON SANTIAGO | Q113: 02 | R113: 02 | S113: 01 | T113: 08 | U113: 0202 | V113: 000030730 - PATRON SANTIAGO | AB113: 11 | AC113: 02 | AD113: CAICAY | AE113: 1102 | AF113: 1102 - CAICAY
O114: 000034419 | P114: MENTAL COMUNITARIO CUSCO | Q114: 02 | R114: 02 | S114: 01 | T114: 08 | U114: 0202 | V114: 000034419 - MENTAL COMUNITARIO CUSCO | AB114: 11 | AC114: 03 | AD114: CHALLABAMBA | AE114: 1103 | AF114: 1103 - CHALLABAMBA
O115: 000000000 | P115: (All) | Q115: 02 | R115: 03 | U115: 0203 | V115: 000000000 - (All) | AB115: 11 | AC115: 04 | AD115: COLQUEPATA | AE115: 1104 | AF115: 1104 - COLQUEPATA
O116: 000002326 | P116: ANTA | Q116: 02 | R116: 03 | S116: 03 | T116: 01 | U116: 0203 | V116: 000002326 - ANTA | AB116: 11 | AC116: 05 | AD116: HUANCARANI | AE116: 1105 | AF116: 1105 - HUANCARANI
O117: 000002327 | P117: CHACAN | Q117: 02 | R117: 03 | S117: 03 | T117: 01 | U117: 0203 | V117: 000002327 - CHACAN | AB117: 11 | AC117: 06 | AD117: KOSÑIPATA | AE117: 1106 | AF117: 1106 - KOSÑIPATA
O118: 000002328 | P118: COMPONE | Q118: 02 | R118: 03 | S118: 03 | T118: 01 | U118: 0203 | V118: 000002328 - COMPONE | AB118: 12 | AC118: 00 | AD118: (All) | AE118: 1200 | AF118: 1200 - (All)
O119: 000002329 | P119: CONCHACALLA | Q119: 02 | R119: 03 | S119: 03 | T119: 01 | U119: 0203 | V119: 000002329 - CONCHACALLA | AB119: 12 | AC119: 01 | AD119: URCOS | AE119: 1201 | AF119: 1201 - URCOS
O120: 000002330 | P120: ANCAHUASI | Q120: 02 | R120: 03 | S120: 03 | T120: 02 | U120: 0203 | V120: 000002330 - ANCAHUASI | AB120: 12 | AC120: 02 | AD120: ANDAHUAYLILLAS | AE120: 1202 | AF120: 1202 - ANDAHUAYLILLAS
O121: 000002331 | P121: CACHIMAYO | Q121: 02 | R121: 03 | S121: 03 | T121: 03 | U121: 0203 | V121: 000002331 - CACHIMAYO | AB121: 12 | AC121: 03 | AD121: CAMANTI | AE121: 1203 | AF121: 1203 - CAMANTI
O122: 000002332 | P122: CHINCHAYPUJIO | Q122: 02 | R122: 03 | S122: 03 | T122: 04 | U122: 0203 | V122: 000002332 - CHINCHAYPUJIO | AB122: 12 | AC122: 04 | AD122: CCARHUAYO | AE122: 1204 | AF122: 1204 - CCARHUAYO
O123: 000002333 | P123: HUAROCONDO | Q123: 02 | R123: 03 | S123: 03 | T123: 05 | U123: 0203 | V123: 000002333 - HUAROCONDO | AB123: 12 | AC123: 05 | AD123: CCATCA | AE123: 1205 | AF123: 1205 - CCATCA
O124: 000002334 | P124: HUAYLLACOCHA | Q124: 02 | R124: 03 | S124: 03 | T124: 05 | U124: 0203 | V124: 000002334 - HUAYLLACOCHA | AB124: 12 | AC124: 06 | AD124: CUSIPATA | AE124: 1206 | AF124: 1206 - CUSIPATA
O125: 000002339 | P125: PUCYURA ANTA | Q125: 02 | R125: 03 | S125: 03 | T125: 08 | U125: 0203 | V125: 000002339 - PUCYURA ANTA | AB125: 12 | AC125: 07 | AD125: HUARO | AE125: 1207 | AF125: 1207 - HUARO
O126: 000002340 | P126: ZURITE | Q126: 02 | R126: 03 | S126: 03 | T126: 09 | U126: 0203 | V126: 000002340 - ZURITE | AB126: 12 | AC126: 08 | AD126: LUCRE | AE126: 1208 | AF126: 1208 - LUCRE
O127: 000006972 | P127: PANTIPATA | Q127: 02 | R127: 03 | S127: 03 | T127: 04 | U127: 0203 | V127: 000006972 - PANTIPATA | AB127: 12 | AC127: 09 | AD127: MARCAPATA | AE127: 1209 | AF127: 1209 - MARCAPATA
O128: 000027790 | P128: MENTAL COMUNITARIO ANTA | Q128: 02 | R128: 03 | S128: 03 | T128: 01 | U128: 0203 | V128: 000027790 - MENTAL COMUNITARIO ANTA | AB128: 12 | AC128: 10 | AD128: OCONGATE | AE128: 1210 | AF128: 1210 - OCONGATE
O129: 000000000 | P129: (All) | Q129: 02 | R129: 04 | U129: 0204 | V129: 000000000 - (All) | AB129: 12 | AC129: 11 | AD129: OROPESA | AE129: 1211 | AF129: 1211 - OROPESA
O130: 000002336 | P130: LIMATAMBO | Q130: 02 | R130: 04 | S130: 03 | T130: 06 | U130: 0204 | V130: 000002336 - LIMATAMBO | AB130: 12 | AC130: 12 | AD130: QUIQUIJANA | AE130: 1212 | AF130: 1212 - QUIQUIJANA
O131: 000002337 | P131: PAMPACONGA | Q131: 02 | R131: 04 | S131: 03 | T131: 06 | U131: 0204 | V131: 000002337 - PAMPACONGA | AB131: 13 | AC131: 00 | AD131: (All) | AE131: 1300 | AF131: 1300 - (All)
O132: 000002338 | P132: MOLLEPATA | Q132: 02 | R132: 04 | S132: 03 | T132: 07 | U132: 0204 | V132: 000002338 - MOLLEPATA | AB132: 13 | AC132: 01 | AD132: URUBAMBA | AE132: 1301 | AF132: 1301 - URUBAMBA
O133: 000010761 | P133: URATARI | Q133: 02 | R133: 04 | S133: 03 | T133: 06 | U133: 0204 | V133: 000010761 - URATARI | AB133: 13 | AC133: 02 | AD133: CHINCHERO | AE133: 1302 | AF133: 1302 - CHINCHERO
O134: 000021061 | P134: HUAMANPATA | Q134: 02 | R134: 04 | S134: 03 | T134: 07 | U134: 0204 | V134: 000021061 - HUAMANPATA | AB134: 13 | AC134: 03 | AD134: HUAYLLABAMBA | AE134: 1303 | AF134: 1303 - HUAYLLABAMBA
O135: 000000000 | P135: (All) | Q135: 02 | R135: 05 | U135: 0205 | V135: 000000000 - (All) | AB135: 13 | AC135: 04 | AD135: MACHUPICCHU | AE135: 1304 | AF135: 1304 - MACHUPICCHU
O136: 000002343 | P136: COYA | Q136: 02 | R136: 05 | S136: 04 | T136: 02 | U136: 0205 | V136: 000002343 - COYA | AB136: 13 | AC136: 05 | AD136: MARAS | AE136: 1305 | AF136: 1305 - MARAS
O137: 000002344 | P137: LAMAY | Q137: 02 | R137: 05 | S137: 04 | T137: 03 | U137: 0205 | V137: 000002344 - LAMAY | AB137: 13 | AC137: 06 | AD137: OLLANTAYTAMBO | AE137: 1306 | AF137: 1306 - OLLANTAYTAMBO
O138: 000002348 | P138: PISAC | Q138: 02 | R138: 05 | S138: 04 | T138: 05 | U138: 0205 | V138: 000002348 - PISAC | AB138: 13 | AC138: 07 | AD138: YUCAY | AE138: 1307 | AF138: 1307 - YUCAY
O139: 000002349 | P139: CUYO CHICO | Q139: 02 | R139: 05 | S139: 04 | T139: 05 | U139: 0205 | V139: =CONCATENATE(O139," - ",P139) -> 000002349 - CUYO CHICO | AB139: 00 | AC139: 00 | AD139: (All) | AE139: =CONCATENATE(AB139,AC139) -> 0000 | AF139: =CONCATENATE(AB139,AC139," - ",AD139) -> 0000 - (All)
O140: 000002350 | P140: CUYO GRANDE | Q140: 02 | R140: 05 | S140: 04 | T140: 05 | U140: 0205 | V140: 000002350 - CUYO GRANDE
O141: 000002351 | P141: QUELLO QUELLO | Q141: 02 | R141: 05 | S141: 04 | T141: 05 | U141: 0205 | V141: 000002351 - QUELLO QUELLO
O142: 000002352 | P142: SAN SALVADOR | Q142: 02 | R142: 05 | S142: 04 | T142: 06 | U142: 0205 | V142: 000002352 - SAN SALVADOR
O143: 000002353 | P143: TARAY | Q143: 02 | R143: 05 | S143: 04 | T143: 07 | U143: 0205 | V143: 000002353 - TARAY
O144: 000002354 | P144: HUANCALLE | Q144: 02 | R144: 05 | S144: 04 | T144: 07 | U144: 0205 | V144: 000002354 - HUANCALLE
O145: 000006970 | P145: TIRACANCHA | Q145: 02 | R145: 05 | S145: 04 | T145: 06 | U145: 0205 | V145: 000006970 - TIRACANCHA
O146: 000006975 | P146: SAYLLAFAYA | Q146: 02 | R146: 05 | S146: 04 | T146: 03 | U146: 0205 | V146: 000006975 - SAYLLAFAYA
O147: 000007145 | P147: HUAMA | Q147: 02 | R147: 05 | S147: 04 | T147: 03 | U147: 0205 | V147: 000007145 - HUAMA
O148: 000007146 | P148: POQUES | Q148: 02 | R148: 05 | S148: 04 | T148: 03 | U148: 0205 | V148: 000007146 - POQUES
O149: 000025368 | P149: HUARQUI | Q149: 02 | R149: 05 | S149: 04 | T149: 03 | U149: 0205 | V149: 000025368 - HUARQUI
O150: 000000000 | P150: (All) | Q150: 02 | R150: 06 | U150: 0206 | V150: 000000000 - (All)
O151: 000002341 | P151: CALCA | Q151: 02 | R151: 06 | S151: 04 | T151: 01 | U151: 0206 | V151: 000002341 - CALCA
O152: 000002342 | P152: AMPARAES | Q152: 02 | R152: 06 | S152: 04 | T152: 04 | U152: 0206 | V152: 000002342 - AMPARAES
O153: 000002345 | P153: CCACHIN | Q153: 02 | R153: 06 | S153: 04 | T153: 04 | U153: 0206 | V153: 000002345 - CCACHIN
O154: 000002346 | P154: CHOQUECANCHA | Q154: 02 | R154: 06 | S154: 04 | T154: 04 | U154: =CONCATENATE(Q154,R154) -> 0206 | V154: 000002346 - CHOQUECANCHA
O155: 000002347 | P155: LARES | Q155: 02 | R155: 06 | S155: 04 | T155: 04 | U155: 0206 | V155: 000002347 - LARES
O156: 000002361 | P156: SUYO | Q156: 02 | R156: 06 | S156: 04 | T156: 04 | U156: 0206 | V156: 000002361 - SUYO
O157: 000002515 | P157: PAROBAMBA | Q157: 02 | R157: 06 | S157: 11 | T157: 03 | U157: 0206 | V157: 000002515 - PAROBAMBA
O158: 000007143 | P158: OTOCANI | Q158: 02 | R158: 06 | S158: 11 | T158: 03 | U158: 0206 | V158: 000007143 - OTOCANI
O159: 000007144 | P159: PATABAMBA | Q159: 02 | R159: 06 | S159: 04 | T159: 07 | U159: 0206 | V159: 000007144 - PATABAMBA
O160: 000010069 | P160: ESSALUD-CALCA | Q160: 02 | R160: 06 | S160: 04 | T160: 01 | U160: 0206 | V160: 000010069 - ESSALUD-CALCA
O161: 000010759 | P161: HUARAN | Q161: 02 | R161: 06 | S161: 04 | T161: 01 | U161: 0206 | V161: 000010759 - HUARAN
O162: 000010762 | P162: ACCHA ALTA - PAMPALLACTA | Q162: 02 | R162: 06 | S162: 04 | T162: 01 | U162: 0206 | V162: 000010762 - ACCHA ALTA - PAMPALLACTA
O163: 000026273 | P163: MENTAL COMUNITARIO CALCA | Q163: 02 | R163: 06 | S163: 04 | T163: 01 | U163: 0206 | V163: 000026273 - MENTAL COMUNITARIO CALCA
O164: 000000000 | P164: (All) | Q164: 02 | R164: 07 | U164: 0207 | V164: 000000000 - (All)
O165: 000002540 | P165: URUBAMBA | Q165: 02 | R165: 07 | S165: 13 | T165: 01 | U165: 0207 | V165: 000002540 - URUBAMBA
O166: 000002541 | P166: YANAHUARA | Q166: 02 | R166: 07 | S166: 13 | T166: 01 | U166: 0207 | V166: 000002541 - YANAHUARA
O167: 000002543 | P167: CHINCHERO | Q167: 02 | R167: 07 | S167: 13 | T167: 02 | U167: 0207 | V167: 000002543 - CHINCHERO
O168: 000002544 | P168: OCCOTUAN | Q168: 02 | R168: 07 | S168: 13 | T168: 02 | U168: 0207 | V168: 000002544 - OCCOTUAN
O169: 000002545 | P169: HUAYLLABAMBA | Q169: 02 | R169: 07 | S169: 13 | T169: 03 | U169: 0207 | V169: 000002545 - HUAYLLABAMBA
O170: 000002546 | P170: MACHUPICCHU | Q170: 02 | R170: 07 | S170: 13 | T170: 04 | U170: 0207 | V170: 000002546 - MACHUPICCHU
O171: 000002547 | P171: COLLPANI | Q171: 02 | R171: 07 | S171: 13 | T171: 04 | U171: 0207 | V171: 000002547 - COLLPANI
O172: 000002548 | P172: MARAS | Q172: 02 | R172: 07 | S172: 13 | T172: 05 | U172: 0207 | V172: 000002548 - MARAS
O173: 000002549 | P173: OLLANTAYTAMBO | Q173: 02 | R173: 07 | S173: 13 | T173: 06 | U173: 0207 | V173: 000002549 - OLLANTAYTAMBO
O174: 000002550 | P174: CHILLCA | Q174: 02 | R174: 07 | S174: 13 | T174: 06 | U174: 0207 | V174: 000002550 - CHILLCA
O175: 000002551 | P175: YUCAY | Q175: 02 | R175: 07 | S175: 13 | T175: 07 | U175: 0207 | V175: 000002551 - YUCAY
O176: 000006974 | P176: CAMINO INCA HUAYLLABAMBA | Q176: 02 | R176: 07 | S176: 13 | T176: 04 | U176: 0207 | V176: 000006974 - CAMINO INCA HUAYLLABAMBA
O177: 000010060 | P177: ESSALUD-URUBAMBA | Q177: 02 | R177: 07 | S177: 13 | T177: 01 | U177: 0207 | V177: 000010060 - ESSALUD-URUBAMBA
O178: 000010073 | P178: ESSALUD-MACHU PICCHU | Q178: 02 | R178: 07 | S178: 13 | T178: 04 | U178: 0207 | V178: 000010073 - ESSALUD-MACHU PICCHU
O179: 000010758 | P179: CRUZPATA | Q179: 02 | R179: 07 | S179: 13 | T179: 05 | U179: 0207 | V179: 000010758 - CRUZPATA
O180: 000010760 | P180: PATACANCHA | Q180: 02 | R180: 07 | S180: 13 | T180: 06 | U180: 0207 | V180: 000010760 - PATACANCHA
O181: 000030666 | P181: MENTAL COMUNITARIO URUBAMBA | Q181: 02 | R181: 07 | S181: 13 | T181: 01 | U181: 0207 | V181: 000030666 - MENTAL COMUNITARIO URUBAMBA
O182: 000000000 | P182: (All) | Q182: 02 | R182: 08 | U182: 0208 | V182: 000000000 - (All)
O183: 000002355 | P183: LA QUEBRADA | Q183: 02 | R183: 08 | S183: 04 | T183: 08 | U183: 0208 | V183: 000002355 - LA QUEBRADA
O184: 000002356 | P184: CCORIMAYO | Q184: 02 | R184: 08 | S184: 04 | T184: 08 | U184: 0208 | V184: 000002356 - CCORIMAYO
O185: 000002357 | P185: COLCCA YANATILE | Q185: 02 | R185: 08 | S185: 04 | T185: 08 | U185: 0208 | V185: 000002357 - COLCCA YANATILE
O186: 000002358 | P186: MUYUPAY | Q186: 02 | R186: 08 | S186: 04 | T186: 08 | U186: 0208 | V186: 000002358 - MUYUPAY
O187: 000002359 | P187: PUTUCUSI | Q187: 02 | R187: 08 | S187: 04 | T187: 08 | U187: 0208 | V187: 000002359 - PUTUCUSI
O188: 000002360 | P188: QUESQUENTO | Q188: 02 | R188: 08 | S188: 04 | T188: 08 | U188: 0208 | V188: 000002360 - QUESQUENTO
O189: 000002362 | P189: HUACHIBAMBA | Q189: 02 | R189: 08 | S189: 04 | T189: 08 | U189: 0208 | V189: 000002362 - HUACHIBAMBA
O190: 000002464 | P190: VERSALLES | Q190: 02 | R190: 08 | S190: 09 | T190: 05 | U190: 0208 | V190: 000002464 - VERSALLES
O191: 000002467 | P191: PUENTE SANTIAGO | Q191: 02 | R191: 08 | S191: 09 | T191: 06 | U191: 0208 | V191: 000002467 - PUENTE SANTIAGO
O192: 000006971 | P192: COMBAPATA YANATILE | Q192: 02 | R192: 08 | S192: 04 | T192: 08 | U192: 0208 | V192: 000006971 - COMBAPATA YANATILE
O193: 000006973 | P193: BELLAVISTA | Q193: 02 | R193: 08 | S193: 04 | T193: 08 | U193: 0208 | V193: 000006973 - BELLAVISTA
O194: 000007142 | P194: CHANCAMAYO | Q194: 02 | R194: 08 | S194: 04 | T194: 08 | U194: 0208 | V194: 000007142 - CHANCAMAYO
O195: 000000000 | P195: (All) | Q195: 02 | R195: 09 | U195: 0209 | V195: 000000000 - (All)
O196: 000002290 | P196: SAN PEDRO CUSCO | Q196: 02 | R196: 09 | S196: 01 | T196: 01 | U196: 0209 | V196: 000002290 - SAN PEDRO CUSCO
O197: 000002291 | P197: SIETE CUARTONES | Q197: 02 | R197: 09 | S197: 01 | T197: 01 | U197: 0209 | V197: 000002291 - SIETE CUARTONES
O198: 000002293 | P198: MIRAFLORES | Q198: 02 | R198: 09 | S198: 01 | T198: 01 | U198: 0209 | V198: 000002293 - MIRAFLORES
O199: 000002294 | P199: PICCHU LA RINCONADA | Q199: 02 | R199: 09 | S199: 01 | T199: 01 | U199: 0209 | V199: 000002294 - PICCHU LA RINCONADA
O200: 000002295 | P200: BUENA VISTA | Q200: 02 | R200: 09 | S200: 01 | T200: 01 | U200: 0209 | V200: 000002295 - BUENA VISTA
O201: 000002299 | P201: POROY | Q201: 02 | R201: 09 | S201: 01 | T201: 03 | U201: 0209 | V201: 000002299 - POROY
O202: 999999999 | P202: (All) | Q202: 02 | R202: 99 | U202: 0299 | V202: 999999999 - (All)
O203: 000002421 | P203: HOSPITAL QUILLABAMBA | Q203: 03 | R203: 00 | S203: 09 | T203: 01 | U203: =CONCATENATE(Q203,R203) -> 0300 | V203: =CONCATENATE(O203," - ",P203) -> 000002421 - HOSPITAL QUILLABAMBA
O204: 000000000 | P204: (All) | Q204: 03 | R204: 01 | U204: =CONCATENATE(Q204,R204) -> 0301 | V204: =CONCATENATE(O204," - ",P204) -> 000000000 - (All)
O205: 000002422 | P205: HUAYANAY | Q205: 03 | R205: 01 | S205: 09 | T205: 01 | U205: =CONCATENATE(Q205,R205) -> 0301 | V205: =CONCATENATE(O205," - ",P205) -> 000002422 - HUAYANAY
O206: 000002423 | P206: IDMA | Q206: 03 | R206: 01 | S206: 09 | T206: 01 | U206: 0301 | V206: =CONCATENATE(O206," - ",P206) -> 000002423 - IDMA
O207: 000002424 | P207: POTRERO | Q207: 03 | R207: 01 | S207: 09 | T207: 01 | U207: 0301 | V207: =CONCATENATE(O207," - ",P207) -> 000002424 - POTRERO
O208: 000002425 | P208: ECHARATE | Q208: 03 | R208: 01 | S208: 09 | T208: 02 | U208: 0301 | V208: 000002425 - ECHARATE
... 230 more rows

Sheet TD (hidden)
B2: Datos | F2: Tabla | G2: =IF(F3="(Todas)","CUSCO ","") -> 
B3: RED | C3: 03 - LA CONVENCION | F3: =TRIM(MID(C3,5,90)) -> LA CONVENCION | G3: =IF(F3="(All)"," ",F3) -> LA CONVENCION
B4: Micro Red | C4: 9999 - (All) | F4: =TRIM(MID(C4,7,90)) -> (All)
B5: Establecimiento | C5: 999999999 - (All) | F5: =TRIM(MID(C5,12,90)) -> (All)
B6: Provincia | C6: 00 - (All) | F6: =TRIM(MID(C6,6,90)) -> (All)
B7: Distrito | C7: 0000 - (All) | F7: =TRIM(MID(C7,8,90)) -> (All)
B8: UE | C8: 7777 - (All) | F8: =TRIM(MID(C8,8,90)) -> (All)
B10: AÑO | C10: 2024
B11: MESES | C11: 1 | D11: 2 | E11: 3 | F11: 4 | G11: 5 | H11: 6 | I11: 7 | J11: 8 | K11: 9 | L11: 10 | M11: 11 | N11: 0
B12: Mes_desc | C12: =IF(C11=1,"ENERO","") -> ENERO | D12: =IF(D11=2,"FEBRERO","") -> FEBRERO | E12: =IF(E11=3,"MARZO","") -> MARZO | F12: =IF(F11=4,"ABRIL","") -> ABRIL | G12: =IF(G11=5,"MAYO","") -> MAYO | H12: =IF(H11=6,"JUNIO","") -> JUNIO | I12: =IF(I11=7,"JULIO","") -> JULIO | J12: =IF(J11=8,"AGOSTO","") -> AGOSTO | K12: =IF(K11=9,"SETIEMBRE","") -> SETIEMBRE | L12: =IF(L11=10,"OCTUBRE","") -> OCTUBRE | M12: =IF(M11=11,"NOVIEMBRE","") -> NOVIEMBRE | N12: =IF(N11=12,"DICIEMBRE","") ->  | O12: =IF(C11=1,C12,IF(D11=2,D12,IF(E11=3,E12,IF(F11=4,F12,IF(G11=5,G12,IF(H11=6,H12,IF(I11=7,I12,IF(J11=8,J12,IF(K11=9,K12,IF(L11=10,L12,IF(M11=11,M12,IF(N11=12,N12,"")))))))))))) -> ENERO
B14: ACUMULADO | C14: 20 | D14: 22 | E14: 24 | F14: 26 | G14: 28 | H14: 30 | I14: 32 | J14: 34 | K14: 36 | L14: 38 | M14: 40 | O14: =MIN(C14:N14) -> 20 | P14: =MAX(C14:N14) -> 40
B15: Mes_desc_Acu | C15: =IF(C14=20,"ENERO","") -> ENERO | D15: =IF(D14=22,"FEBRERO","") -> FEBRERO | E15: =IF(E14=24,"MARZO","") -> MARZO | F15: =IF(F14=26,"ABRIL","") -> ABRIL | G15: =IF(G14=28,"MAYO","") -> MAYO | H15: =IF(H14=30,"JUNIO","") -> JUNIO | I15: =IF(I14=32,"JULIO","") -> JULIO | J15: =IF(J14=34,"AGOSTO","") -> AGOSTO | K15: =IF(K14=36,"SETIEMBRE","") -> SETIEMBRE | L15: =IF(L14=38,"OCTUBRE","") -> OCTUBRE | M15: =IF(M14=40,"NOVIEMBRE","") -> NOVIEMBRE | N15: =IF(N14=42,"DICIEMBRE","") ->  | O15: =IF(O14=C14,C15,IF(O14=D14,D15,IF(O14=E14,E15,IF(O14=F14,F15,IF(O14=G14,G15,IF(O14=H14,H15,IF(O14=I14,I15,IF(O14=J14,J15,IF(O14=K14,K15,IF(O14=L14,L15,IF(O14=M14,M15,IF(O14=N14,N15,"")))))))))))) -> ENERO | P15: =IF(P14=D14,D15,IF(P14=E14,E15,IF(P14=F14,F15,IF(P14=G14,G15,IF(P14=H14,H15,IF(P14=I14,I15,IF(P14=J14,J15,IF(P14=K14,K15,IF(P14=L14,L15,IF(P14=M14,M15,IF(P14=N14,N15,IF(P14=O14,O15,"")))))))))))) -> NOVIEMBRE
O16: =CONCATENATE(O15," - ",P15) -> ENERO - NOVIEMBRE
O17: =IF(O14=P14,O12,O16) -> ENERO - NOVIEMBRE
A28: Salud Ocular 1
A30: Anio | B30: 2024
A31: UE | B31: (Todas)
A32: Red | B32: LA CONVENCION
A33: MicroRed | B33: (Todas)
A34: EESS | B34: (Todas)
A35: Provincia | B35: (Todas)
A36: Distrito | B36: (Todas)
A38: Etiquetas de fila | B38: Suma de O_TamRN_FR_N_0_29d | C38: Suma de O_TamRN_FR_N_1m | D38: Suma de O_TamRN_FR_N_2m | E38: Suma de O_TamRN_FR_N_Total | F38: Suma de O_Dx_retinoPrema_C_0_29d | G38: Suma de O_Dx_retinoPrema_C_1m | H38: Suma de O_Dx_retinoPrema_C_2m | I38: Suma de O_Dx_retinoPrema_C_Total | J38: Suma de O_tto_retinoPrema_CT_0_29d | K38: Suma de O_tto_retinoPrema_CT_1m | L38: Suma de O_tto_retinoPrema_CT_2m | M38: Suma de O_tto_retinoPrema_CT_Total | N38: Suma de O_ctto_retinoPrema_C_0_29d | O38: Suma de O_ctto_retinoPrema_C_1m | P38: Suma de O_ctto_retinoPrema_C_2m | Q38: Suma de O_ctto_retinoPrema_C_Total | R38: Suma de O_ctrl_PosOpe_0_29d | S38: Suma de O_ctrl_PosOpe_1m | T38: Suma de O_ctrl_PosOpe_2m | U38: Suma de O_ctrl_PosOpe_Total | V38: Suma de O_Ex_Ojo_Vis_N_0_11m | W38: Suma de O_Ex_Ojo_Vis_N_1a | X38: Suma de O_Ex_Ojo_Vis_N_2a | Y38: Suma de O_Ex_Ojo_Vis_N_0_2a_Total | Z38: Suma de O_Ex_Ojo_Vis_A_0_11m | AA38: Suma de O_Ex_Ojo_Vis_A_1a | AB38: Suma de O_Ex_Ojo_Vis_A_2a | AC38: Suma de O_Ex_Ojo_Vis_A_0_2a_Total | AD38: Suma de O_Ex_Ojo_Vis_RF_0_11m | AE38: Suma de O_Ex_Ojo_Vis_RF_1a | AF38: Suma de O_Ex_Ojo_Vis_RF_2a | AG38: Suma de O_Ex_Ojo_Vis_RF_0_2a_Total | AH38: Suma de O_Determ_Agudeza_Visual_3a | AI38: Suma de O_Determ_Agudeza_Visual_4a | AJ38: Suma de O_Determ_Agudeza_Visual_5_11a | AK38: Suma de O_Determ_Agudeza_Visual_Total | AL38: Suma de O_Ex_Ojo_Vis_N_3a | AM38: Suma de O_Ex_Ojo_Vis_N_4a | AN38: Suma de O_Ex_Ojo_Vis_N_5_11a | AO38: Suma de O_Ex_Ojo_Vis_N_3_11a_Total | AP38: Suma de O_Ex_Ojo_Vis_A_3a | AQ38: Suma de O_Ex_Ojo_Vis_A_4a | AR38: Suma de O_Ex_Ojo_Vis_A_5_11a | AS38: Suma de O_Ex_Ojo_Vis_A_3_11a_Total | AT38: Suma de O_Determ_Agudeza_Visual_eva_3a | AU38: Suma de O_Determ_Agudeza_Visual_eva_4a | AV38: Suma de O_Determ_Agudeza_Visual_eva_5_11a | AW38: Suma de O_Determ_Agudeza_Visual_eva_Total | AX38: Suma de O_Determ_Agudeza_Visual_consej_3a | AY38: Suma de O_Determ_Agudeza_Visual_consej_4a | AZ38: Suma de O_Determ_Agudeza_Visual_consej_5_11a | BA38: Suma de O_Determ_Agudeza_Visual_consej_Total | BB38: Suma de O_Determ_Agudeza_Visual_ref_3a | BC38: Suma de O_Determ_Agudeza_Visual_ref_4a | BD38: Suma de O_Determ_Agudeza_Visual_ref_5_11a | BE38: Suma de O_Determ_Agudeza_Visual_ref_Total | BF38: Suma de O_Dx_ErrR_Ast_3a | BG38: Suma de O_Dx_ErrR_Ast_4a | BH38: Suma de O_Dx_ErrR_Ast_5_11a | BI38: Suma de O_Dx_ErrR_Ast_Total | BJ38: Suma de O_Dx_ErrR_Hip_3a | BK38: Suma de O_Dx_ErrR_Hip_4a | BL38: Suma de O_Dx_ErrR_Hip_5_11a | BM38: Suma de O_Dx_ErrR_Hip_Total | BN38: Suma de O_Dx_ErrR_Mio_3a | BO38: Suma de O_Dx_ErrR_Mio_4a | BP38: Suma de O_Dx_ErrR_Mio_5_11a | BQ38: Suma de O_Dx_ErrR_Mio_Total | BR38: Suma de O_Dx_ErrR_Refr_3a | BS38: Suma de O_Dx_ErrR_Refr_4a | BT38: Suma de O_Dx_ErrR_Refr_5_11a | BU38: Suma de O_Dx_ErrR_Refr_Total | BV38: Suma de O_tto_Prov_anteo_3a | BW38: Suma de O_tto_Prov_anteo_4a | BX38: Suma de O_tto_Prov_anteo_5_11a | BY38: Suma de O_tto_Prov_anteo_Total | BZ38: Suma de O_Prueb_aju_anteo_3a | CA38: Suma de O_Prueb_aju_anteo_4a | CB38: Suma de O_Prueb_aju_anteo_5_11a | CC38: Suma de O_Prueb_aju_anteo_Total | CD38: Suma de O_Ex_Ojo_Vis40_N_40_49a | CE38: Suma de O_Ex_Ojo_Vis40_N_50_59a | CF38: Suma de O_Ex_Ojo_Vis40_N_60a | CG38: Suma de O_Ex_Ojo_Vis40_N_40a_Total | CH38: Suma de O_Ex_Ojo_Vis40_A_40_49a | CI38: Suma de O_Ex_Ojo_Vis40_A_50_59a | CJ38: Suma de O_Ex_Ojo_Vis40_A_60a | CK38: Suma de O_Ex_Ojo_Vis40_A_40a_Total | CL38: Suma de O_Det_Pres_Into_N_40_49a | CM38: Suma de O_Det_Pres_Into_N_50_59a | CN38: Suma de O_Det_Pres_Into_N_60a | CO38: Suma de O_Det_Pres_Into_N_40a_Total | CP38: Suma de O_Det_Pres_Into_A_40_49a | CQ38: Suma de O_Det_Pres_Into_A_50_59a | CR38: Suma de O_Det_Pres_Into_A_60a | CS38: Suma de O_Det_Pres_Into_A_40a_Total | CT38: Suma de O_Eva_glaucoma_consej_40_49a | CU38: Suma de O_Eva_glaucoma_consej_50_59a | CV38: Suma de O_Eva_glaucoma_consej_60a | CW38: Suma de O_Eva_glaucoma_consej_40a_Total | CX38: Suma de O_Eva_glaucoma_rf_40_49a | CY38: Suma de O_Eva_glaucoma_rf_50_59a | CZ38: Suma de O_Eva_glaucoma_rf_60a | DA38: Suma de O_Eva_glaucoma_rf_40a_Total | DB38: Suma de O_Dx_glaucoma_40_49a | DC38: Suma de O_Dx_glaucoma_50_59a | DD38: Suma de O_Dx_glaucoma_60a | DE38: Suma de O_Dx_glaucoma_40a_Total | DF38: Suma de O_R_tto_laser_40_49a | DG38: Suma de O_R_tto_laser_50_59a | DH38: Suma de O_R_tto_laser_60a | DI38: Suma de O_R_tto_laser_40a_Total | DJ38: Suma de O_R_tto_quiru_40_49a | DK38: Suma de O_R_tto_quiru_50_59a | DL38: Suma de O_R_tto_quiru_60a | DM38: Suma de O_R_tto_quiru_40a_Total | DN38: Suma de O_atc_ctrl_40_49a | DO38: Suma de O_atc_ctrl_50_59a | DP38: Suma de O_atc_ctrl_60a | DQ38: Suma de O_atc_ctrl_40a_Total | DR38: Suma de O_Det_Agud_Visual_Cat_50_59a | DS38: Suma de O_Det_Agud_Visual_Cat_60a | DT38: Suma de O_Det_Agud_Visual_Cat_50a_Total | DU38: Suma de O_Evalua_Cat_50_59a | DV38: Suma de O_Evalua_Cat_60a | DW38: Suma de O_Evalua_Cat_50a_Total | DX38: Suma de O_Evalua_Cat_consej_50_59a | DY38: Suma de O_Evalua_Cat_consej_60a | DZ38: Suma de O_Evalua_Cat_consej_50a_Total | EA38: Suma de O_Evalua_Cat_rf_50_59a | EB38: Suma de O_Evalua_Cat_rf_60a | EC38: Suma de O_Evalua_Cat_rf_50a_Total | ED38: Suma de O_dx_c_catarata_50_59a | EE38: Suma de O_dx_c_catarata_60a | EF38: Suma de O_dx_c_catarata_50a_Total | EG38: Suma de O_dx_c_cata_conge_50_59a | EH38: Suma de O_dx_c_cata_conge_60a | EI38: Suma de O_dx_c_cata_conge_50a_Total | EJ38: Suma de O_dx_c_o_catarata_50_59a | EK38: Suma de O_dx_c_o_catarata_60a | EL38: Suma de O_dx_c_o_catarata_50a_Total | EM38: Suma de O_tto_cata_faco_50_59a | EN38: Suma de O_tto_cata_faco_60a | EO38: Suma de O_tto_cata_faco_50a_Total | EP38: Suma de O_tto_cata_extra_il_50_59a | EQ38: Suma de O_tto_cata_extra_il_60a | ER38: Suma de O_tto_cata_extra_il_50a_Total | ES38: Suma de O_tto_cata_mininuc_50_59a | ET38: Suma de O_tto_cata_mininuc_60a | EU38: Suma de O_tto_cata_mininuc_50a_Total | EV38: Suma de O_ctrl_cata_pp1_50_59a | EW38: Suma de O_ctrl_cata_pp1_60a | EX38: Suma de O_ctrl_cata_pp1_Total | EY38: Suma de O_ctrl_cata_pp2_50_59a | EZ38: Suma de O_ctrl_cata_pp2_60a | FA38: Suma de O_ctrl_cata_pp2_Total | FB38: Suma de O_ctrl_cata_pp3_50_59a | FC38: Suma de O_ctrl_cata_pp3_60a | FD38: Suma de O_ctrl_cata_pp3_Total | FE38: Suma de O_ctrl_cata_pp4_50_59a | FF38: Suma de O_ctrl_cata_pp4_60a | FG38: Suma de O_ctrl_cata_pp4_Total | FH38: Suma de O_comp_cata_pp_50_59a | FI38: Suma de O_comp_cata_pp_60a | FJ38: Suma de O_comp_cata_pp_50a_Total | FK38: Suma de O_TamRN_FR_N_3m | FL38: Suma de O_TamRN_FR_N_4m | FM38: Suma de O_TamRN_FR_N_5m | FN38: Suma de O_TamRN_FR_N_6m | FO38: Suma de O_TamRN_FR_N_m1a | FP38: Suma de O_TamRN_FR_N_1a | FQ38: Suma de O_TamRN_FR_N_2_3a | FR38: Suma de O_TamRN_FR_A_0_29d | FS38: Suma de O_TamRN_FR_A_1m | FT38: Suma de O_TamRN_FR_A_2m | FU38: Suma de O_TamRN_FR_A_3m | FV38: Suma de O_TamRN_FR_A_4m | FW38: Suma de O_TamRN_FR_A_5m | FX38: Suma de O_TamRN_FR_A_6m | FY38: Suma de O_TamRN_FR_A_m1a | FZ38: Suma de O_TamRN_FR_A_1a | GA38: Suma de O_TamRN_FR_A_2_3a | GB38: Suma de O_TamRN_FR_A_Total | GC38: Suma de O_Dx_retinoPrema_C_3m | GD38: Suma de O_Dx_retinoPrema_C_4m | GE38: Suma de O_Dx_retinoPrema_C_5m | GF38: Suma de O_Dx_retinoPrema_C_6m | GG38: Suma de O_Dx_retinoPrema_C_m1a | GH38: Suma de O_Dx_retinoPrema_C_1a | GI38: Suma de O_Dx_retinoPrema_C_2_3a | GJ38: Suma de O_tto_retinoPrema_CT_3m | GK38: Suma de O_tto_retinoPrema_CT_4m | GL38: Suma de O_tto_retinoPrema_CT_5m | GM38: Suma de O_tto_retinoPrema_CT_6m | GN38: Suma de O_tto_retinoPrema_CT_m1a | GO38: Suma de O_tto_retinoPrema_CT_1a | GP38: Suma de O_tto_retinoPrema_CT_2_3a | GQ38: Suma de O_ctto_retinoPrema_C_3m | GR38: Suma de O_ctto_retinoPrema_C_4m | GS38: Suma de O_ctto_retinoPrema_C_5m | GT38: Suma de O_ctto_retinoPrema_C_6m | GU38: Suma de O_ctto_retinoPrema_C_m1a | GV38: Suma de O_ctto_retinoPrema_C_1a | GW38: Suma de O_ctto_retinoPrema_C_2_3a | GX38: Suma de O_ctrl_PosOpe_3m | GY38: Suma de O_ctrl_PosOpe_4m | GZ38: Suma de O_ctrl_PosOpe_5m | HA38: Suma de O_ctrl_PosOpe_6m | HB38: Suma de O_ctrl_PosOpe_m1a | HC38: Suma de O_ctrl_PosOpe_1a | HD38: Suma de O_ctrl_PosOpe_2_3a
A39: 1 | B39: 0 | C39: 0 | D39: 0 | E39: 0 | F39: 0 | G39: 0 | H39: 0 | I39: 0 | J39: 0 | K39: 0 | L39: 0 | M39: 0 | N39: 0 | O39: 0 | P39: 0 | Q39: 0 | R39: 0 | S39: 0 | T39: 0 | U39: 0 | V39: 127 | W39: 101 | X39: 84 | Y39: 312 | Z39: 0 | AA39: 0 | AB39: 0 | AC39: 0 | AD39: 0 | AE39: 0 | AF39: 0 | AG39: 0 | AH39: 58 | AI39: 56 | AJ39: 94 | AK39: 208 | AL39: 92 | AM39: 95 | AN39: 72 | AO39: 259 | AP39: 1 | AQ39: 0 | AR39: 1 | AS39: 2 | AT39: 0 | AU39: 1 | AV39: 1 | AW39: 2 | AX39: 0 | AY39: 0 | AZ39: 0 | BA39: 0 | BB39: 0 | BC39: 0 | BD39: 0 | BE39: 0 | BF39: 0 | BG39: 0 | BH39: 0 | BI39: 0 | BJ39: 0 | BK39: 0 | BL39: 0 | BM39: 0 | BN39: 0 | BO39: 0 | BP39: 0 | BQ39: 0 | BR39: 0 | BS39: 0 | BT39: 0 | BU39: 0 | BV39: 0 | BW39: 0 | BX39: 0 | BY39: 0 | BZ39: 0 | CA39: 0 | CB39: 0 | CC39: 0 | CD39: 22 | CE39: 25 | CF39: 12 | CG39: 59 | CH39: 6 | CI39: 12 | CJ39: 47 | CK39: 65 | CL39: 5 | CM39: 7 | CN39: 26 | CO39: 38 | CP39: 0 | CQ39: 0 | CR39: 13 | CS39: 13 | CT39: 0 | CU39: 0 | CV39: 0 | CW39: 0 | CX39: 0 | CY39: 0 | CZ39: 0 | DA39: 0 | DB39: 1 | DC39: 0 | DD39: 9 | DE39: 10 | DF39: 0 | DG39: 0 | DH39: 0 | DI39: 0 | DJ39: 0 | DK39: 0 | DL39: 0 | DM39: 0 | DN39: 0 | DO39: 0 | DP39: 8 | DQ39: 8 | DR39: 54 | DS39: 125 | DT39: 179 | DU39: 2 | DV39: 30 | DW39: 32 | DX39: 1 | DY39: 23 | DZ39: 24 | EA39: 1 | EB39: 25 | EC39: 26 | ED39: 2 | EE39: 24 | EF39: 26 | EG39: 0 | EH39: 0 | EI39: 0 | EJ39: 0 | EK39: 1 | EL39: 1 | EM39: 0 | EN39: 0 | EO39: 0 | EP39: 0 | EQ39: 0 | ER39: 0 | ES39: 0 | ET39: 0 | EU39: 0 | EV39: 0 | EW39: 0 | EX39: 0 | EY39: 0 | EZ39: 0 | FA39: 0 | FB39: 0 | FC39: 0 | FD39: 0 | FE39: 0 | FF39: 0 | FG39: 0 | FH39: 0 | FI39: 0 | FJ39: 0 | FK39: 0 | FL39: 0 | FM39: 0 | FN39: 0 | FO39: 0 | FP39: 0 | FQ39: 0 | FR39: 0 | FS39: 0 | FT39: 0 | FU39: 0 | FV39: 0 | FW39: 0 | FX39: 0 | FY39: 0 | FZ39: 0 | GA39: 0 | GB39: 0 | GC39: 0 | GD39: 0 | GE39: 0 | GF39: 0 | GG39: 0 | GH39: 0 | GI39: 0 | GJ39: 0 | GK39: 0 | GL39: 0 | GM39: 0 | GN39: 0 | GO39: 0 | GP39: 0 | GQ39: 0 | GR39: 0 | GS39: 0 | GT39: 0 | GU39: 0 | GV39: 0 | GW39: 0 | GX39: 0 | GY39: 0 | GZ39: 0 | HA39: 0 | HB39: 0 | HC39: 0 | HD39: 0
A40: 2 | B40: 0 | C40: 0 | D40: 0 | E40: 0 | F40: 0 | G40: 0 | H40: 0 | I40: 0 | J40: 0 | K40: 0 | L40: 0 | M40: 0 | N40: 0 | O40: 0 | P40: 0 | Q40: 0 | R40: 0 | S40: 0 | T40: 0 | U40: 0 | V40: 116 | W40: 84 | X40: 73 | Y40: 273 | Z40: 0 | AA40: 0 | AB40: 0 | AC40: 0 | AD40: 0 | AE40: 0 | AF40: 0 | AG40: 0 | AH40: 61 | AI40: 52 | AJ40: 157 | AK40: 270 | AL40: 76 | AM40: 74 | AN40: 140 | AO40: 290 | AP40: 0 | AQ40: 0 | AR40: 3 | AS40: 3 | AT40: 0 | AU40: 0 | AV40: 0 | AW40: 0 | AX40: 0 | AY40: 0 | AZ40: 0 | BA40: 0 | BB40: 0 | BC40: 0 | BD40: 0 | BE40: 0 | BF40: 0 | BG40: 0 | BH40: 0 | BI40: 0 | BJ40: 0 | BK40: 0 | BL40: 0 | BM40: 0 | BN40: 0 | BO40: 0 | BP40: 0 | BQ40: 0 | BR40: 0 | BS40: 0 | BT40: 0 | BU40: 0 | BV40: 0 | BW40: 0 | BX40: 0 | BY40: 0 | BZ40: 0 | CA40: 0 | CB40: 0 | CC40: 0 | CD40: 19 | CE40: 14 | CF40: 10 | CG40: 43 | CH40: 4 | CI40: 5 | CJ40: 45 | CK40: 54 | CL40: 0 | CM40: 0 | CN40: 0 | CO40: 0 | CP40: 0 | CQ40: 0 | CR40: 0 | CS40: 0 | CT40: 0 | CU40: 0 | CV40: 0 | CW40: 0 | CX40: 0 | CY40: 0 | CZ40: 0 | DA40: 0 | DB40: 0 | DC40: 0 | DD40: 4 | DE40: 4 | DF40: 0 | DG40: 0 | DH40: 0 | DI40: 0 | DJ40: 0 | DK40: 0 | DL40: 0 | DM40: 0 | DN40: 0 | DO40: 0 | DP40: 0 | DQ40: 0 | DR40: 37 | DS40: 106 | DT40: 143 | DU40: 1 | DV40: 10 | DW40: 11 | DX40: 1 | DY40: 9 | DZ40: 10 | EA40: 1 | EB40: 8 | EC40: 9 | ED40: 0 | EE40: 4 | EF40: 4 | EG40: 0 | EH40: 0 | EI40: 0 | EJ40: 2 | EK40: 5 | EL40: 7 | EM40: 0 | EN40: 0 | EO40: 0 | EP40: 0 | EQ40: 0 | ER40: 0 | ES40: 0 | ET40: 0 | EU40: 0 | EV40: 0 | EW40: 0 | EX40: 0 | EY40: 0 | EZ40: 0 | FA40: 0 | FB40: 0 | FC40: 0 | FD40: 0 | FE40: 0 | FF40: 0 | FG40: 0 | FH40: 0 | FI40: 0 | FJ40: 0 | FK40: 0 | FL40: 0 | FM40: 0 | FN40: 0 | FO40: 0 | FP40: 0 | FQ40: 0 | FR40: 0 | FS40: 0 | FT40: 0 | FU40: 0 | FV40: 0 | FW40: 0 | FX40: 0 | FY40: 0 | FZ40: 0 | GA40: 0 | GB40: 0 | GC40: 0 | GD40: 0 | GE40: 0 | GF40: 0 | GG40: 0 | GH40: 0 | GI40: 0 | GJ40: 0 | GK40: 0 | GL40: 0 | GM40: 0 | GN40: 0 | GO40: 0 | GP40: 0 | GQ40: 0 | GR40: 0 | GS40: 0 | GT40: 0 | GU40: 0 | GV40: 0 | GW40: 0 | GX40: 0 | GY40: 0 | GZ40: 0 | HA40: 0 | HB40: 0 | HC40: 0 | HD40: 0
A41: 3 | B41: 0 | C41: 0 | D41: 0 | E41: 0 | F41: 0 | G41: 0 | H41: 0 | I41: 0 | J41: 0 | K41: 0 | L41: 0 | M41: 0 | N41: 0 | O41: 0 | P41: 0 | Q41: 0 | R41: 0 | S41: 0 | T41: 0 | U41: 0 | V41: 93 | W41: 77 | X41: 90 | Y41: 260 | Z41: 0 | AA41: 0 | AB41: 0 | AC41: 0 | AD41: 0 | AE41: 0 | AF41: 0 | AG41: 0 | AH41: 48 | AI41: 50 | AJ41: 100 | AK41: 198 | AL41: 77 | AM41: 63 | AN41: 78 | AO41: 218 | AP41: 0 | AQ41: 0 | AR41: 4 | AS41: 4 | AT41: 0 | AU41: 0 | AV41: 1 | AW41: 1 | AX41: 0 | AY41: 0 | AZ41: 0 | BA41: 0 | BB41: 0 | BC41: 0 | BD41: 0 | BE41: 0 | BF41: 0 | BG41: 0 | BH41: 1 | BI41: 1 | BJ41: 0 | BK41: 0 | BL41: 0 | BM41: 0 | BN41: 0 | BO41: 0 | BP41: 1 | BQ41: 1 | BR41: 0 | BS41: 0 | BT41: 0 | BU41: 0 | BV41: 0 | BW41: 0 | BX41: 0 | BY41: 0 | BZ41: 0 | CA41: 0 | CB41: 0 | CC41: 0 | CD41: 20 | CE41: 50 | CF41: 52 | CG41: 122 | CH41: 3 | CI41: 19 | CJ41: 53 | CK41: 75 | CL41: 4 | CM41: 5 | CN41: 37 | CO41: 46 | CP41: 1 | CQ41: 0 | CR41: 7 | CS41: 8 | CT41: 0 | CU41: 0 | CV41: 0 | CW41: 0 | CX41: 0 | CY41: 0 | CZ41: 0 | DA41: 0 | DB41: 1 | DC41: 1 | DD41: 10 | DE41: 12 | DF41: 0 | DG41: 0 | DH41: 0 | DI41: 0 | DJ41: 0 | DK41: 0 | DL41: 0 | DM41: 0 | DN41: 0 | DO41: 0 | DP41: 6 | DQ41: 6 | DR41: 88 | DS41: 183 | DT41: 271 | DU41: 0 | DV41: 8 | DW41: 8 | DX41: 0 | DY41: 6 | DZ41: 6 | EA41: 0 | EB41: 6 | EC41: 6 | ED41: 2 | EE41: 44 | EF41: 46 | EG41: 0 | EH41: 0 | EI41: 0 | EJ41: 0 | EK41: 3 | EL41: 3 | EM41: 0 | EN41: 0 | EO41: 0 | EP41: 0 | EQ41: 0 | ER41: 0 | ES41: 0 | ET41: 0 | EU41: 0 | EV41: 0 | EW41: 0 | EX41: 0 | EY41: 0 | EZ41: 0 | FA41: 0 | FB41: 0 | FC41: 0 | FD41: 0 | FE41: 0 | FF41: 0 | FG41: 0 | FH41: 0 | FI41: 0 | FJ41: 0 | FK41: 0 | FL41: 0 | FM41: 0 | FN41: 0 | FO41: 0 | FP41: 0 | FQ41: 0 | FR41: 0 | FS41: 0 | FT41: 0 | FU41: 0 | FV41: 0 | FW41: 0 | FX41: 0 | FY41: 0 | FZ41: 0 | GA41: 0 | GB41: 0 | GC41: 0 | GD41: 0 | GE41: 0 | GF41: 0 | GG41: 0 | GH41: 0 | GI41: 0 | GJ41: 0 | GK41: 0 | GL41: 0 | GM41: 0 | GN41: 0 | GO41: 0 | GP41: 0 | GQ41: 0 | GR41: 0 | GS41: 0 | GT41: 0 | GU41: 0 | GV41: 0 | GW41: 0 | GX41: 0 | GY41: 0 | GZ41: 0 | HA41: 0 | HB41: 0 | HC41: 0 | HD41: 0
A42: 4 | B42: 0 | C42: 0 | D42: 0 | E42: 0 | F42: 0 | G42: 0 | H42: 0 | I42: 0 | J42: 0 | K42: 0 | L42: 0 | M42: 0 | N42: 0 | O42: 0 | P42: 0 | Q42: 0 | R42: 0 | S42: 0 | T42: 0 | U42: 0 | V42: 139 | W42: 97 | X42: 98 | Y42: 334 | Z42: 0 | AA42: 0 | AB42: 0 | AC42: 0 | AD42: 1 | AE42: 1 | AF42: 1 | AG42: 3 | AH42: 100 | AI42: 100 | AJ42: 1015 | AK42: 1215 | AL42: 114 | AM42: 134 | AN42: 674 | AO42: 922 | AP42: 0 | AQ42: 0 | AR42: 58 | AS42: 58 | AT42: 0 | AU42: 0 | AV42: 5 | AW42: 5 | AX42: 0 | AY42: 0 | AZ42: 0 | BA42: 0 | BB42: 0 | BC42: 0 | BD42: 0 | BE42: 0 | BF42: 0 | BG42: 1 | BH42: 1 | BI42: 2 | BJ42: 0 | BK42: 0 | BL42: 0 | BM42: 0 | BN42: 0 | BO42: 1 | BP42: 2 | BQ42: 3 | BR42: 0 | BS42: 0 | BT42: 1 | BU42: 1 | BV42: 0 | BW42: 0 | BX42: 0 | BY42: 0 | BZ42: 0 | CA42: 0 | CB42: 0 | CC42: 0 | CD42: 12 | CE42: 25 | CF42: 36 | CG42: 73 | CH42: 8 | CI42: 20 | CJ42: 83 | CK42: 111 | CL42: 5 | CM42: 7 | CN42: 50 | CO42: 62 | CP42: 0 | CQ42: 0 | CR42: 11 | CS42: 11 | CT42: 0 | CU42: 0 | CV42: 0 | CW42: 0 | CX42: 0 | CY42: 0 | CZ42: 0 | DA42: 0 | DB42: 0 | DC42: 1 | DD42: 14 | DE42: 15 | DF42: 0 | DG42: 0 | DH42: 0 | DI42: 0 | DJ42: 0 | DK42: 0 | DL42: 0 | DM42: 0 | DN42: 0 | DO42: 1 | DP42: 12 | DQ42: 13 | DR42: 71 | DS42: 194 | DT42: 265 | DU42: 1 | DV42: 8 | DW42: 9 | DX42: 1 | DY42: 3 | DZ42: 4 | EA42: 1 | EB42: 6 | EC42: 7 | ED42: 1 | EE42: 21 | EF42: 22 | EG42: 0 | EH42: 0 | EI42: 0 | EJ42: 2 | EK42: 2 | EL42: 4 | EM42: 0 | EN42: 0 | EO42: 0 | EP42: 0 | EQ42: 0 | ER42: 0 | ES42: 0 | ET42: 0 | EU42: 0 | EV42: 0 | EW42: 0 | EX42: 0 | EY42: 0 | EZ42: 0 | FA42: 0 | FB42: 0 | FC42: 0 | FD42: 0 | FE42: 0 | FF42: 0 | FG42: 0 | FH42: 0 | FI42: 0 | FJ42: 0 | FK42: 0 | FL42: 0 | FM42: 0 | FN42: 0 | FO42: 0 | FP42: 0 | FQ42: 0 | FR42: 0 | FS42: 0 | FT42: 0 | FU42: 0 | FV42: 0 | FW42: 0 | FX42: 0 | FY42: 0 | FZ42: 0 | GA42: 0 | GB42: 0 | GC42: 0 | GD42: 0 | GE42: 0 | GF42: 0 | GG42: 0 | GH42: 0 | GI42: 0 | GJ42: 0 | GK42: 0 | GL42: 0 | GM42: 0 | GN42: 0 | GO42: 0 | GP42: 0 | GQ42: 0 | GR42: 0 | GS42: 0 | GT42: 0 | GU42: 0 | GV42: 0 | GW42: 0 | GX42: 0 | GY42: 0 | GZ42: 0 | HA42: 0 | HB42: 0 | HC42: 0 | HD42: 0
A43: 5 | B43: 0 | C43: 0 | D43: 0 | E43: 0 | F43: 0 | G43: 0 | H43: 0 | I43: 0 | J43: 0 | K43: 0 | L43: 0 | M43: 0 | N43: 0 | O43: 0 | P43: 0 | Q43: 0 | R43: 0 | S43: 0 | T43: 0 | U43: 0 | V43: 127 | W43: 102 | X43: 74 | Y43: 303 | Z43: 0 | AA43: 0 | AB43: 0 | AC43: 0 | AD43: 0 | AE43: 0 | AF43: 0 | AG43: 0 | AH43: 65 | AI43: 67 | AJ43: 199 | AK43: 331 | AL43: 86 | AM43: 75 | AN43: 162 | AO43: 323 | AP43: 0 | AQ43: 0 | AR43: 0 | AS43: 0 | AT43: 0 | AU43: 0 | AV43: 1 | AW43: 1 | AX43: 0 | AY43: 0 | AZ43: 0 | BA43: 0 | BB43: 0 | BC43: 0 | BD43: 0 | BE43: 0 | BF43: 0 | BG43: 0 | BH43: 3 | BI43: 3 | BJ43: 0 | BK43: 0 | BL43: 3 | BM43: 3 | BN43: 0 | BO43: 0 | BP43: 1 | BQ43: 1 | BR43: 0 | BS43: 0 | BT43: 3 | BU43: 3 | BV43: 0 | BW43: 0 | BX43: 0 | BY43: 0 | BZ43: 0 | CA43: 0 | CB43: 0 | CC43: 0 | CD43: 20 | CE43: 16 | CF43: 26 | CG43: 62 | CH43: 5 | CI43: 7 | CJ43: 40 | CK43: 52 | CL43: 5 | CM43: 10 | CN43: 28 | CO43: 43 | CP43: 0 | CQ43: 0 | CR43: 7 | CS43: 7 | CT43: 0 | CU43: 0 | CV43: 0 | CW43: 0 | CX43: 0 | CY43: 0 | CZ43: 1 | DA43: 1 | DB43: 0 | DC43: 0 | DD43: 9 | DE43: 9 | DF43: 0 | DG43: 0 | DH43: 0 | DI43: 0 | DJ43: 0 | DK43: 0 | DL43: 0 | DM43: 0 | DN43: 0 | DO43: 1 | DP43: 10 | DQ43: 11 | DR43: 37 | DS43: 117 | DT43: 154 | DU43: 1 | DV43: 16 | DW43: 17 | DX43: 1 | DY43: 10 | DZ43: 11 | EA43: 1 | EB43: 13 | EC43: 14 | ED43: 0 | EE43: 18 | EF43: 18 | EG43: 0 | EH43: 0 | EI43: 0 | EJ43: 2 | EK43: 2 | EL43: 4 | EM43: 0 | EN43: 0 | EO43: 0 | EP43: 0 | EQ43: 0 | ER43: 0 | ES43: 0 | ET43: 0 | EU43: 0 | EV43: 0 | EW43: 0 | EX43: 0 | EY43: 0 | EZ43: 0 | FA43: 0 | FB43: 0 | FC43: 0 | FD43: 0 | FE43: 0 | FF43: 0 | FG43: 0 | FH43: 0 | FI43: 0 | FJ43: 0 | FK43: 0 | FL43: 0 | FM43: 0 | FN43: 0 | FO43: 0 | FP43: 0 | FQ43: 0 | FR43: 0 | FS43: 0 | FT43: 0 | FU43: 0 | FV43: 0 | FW43: 0 | FX43: 0 | FY43: 0 | FZ43: 0 | GA43: 0 | GB43: 0 | GC43: 0 | GD43: 0 | GE43: 0 | GF43: 0 | GG43: 0 | GH43: 0 | GI43: 0 | GJ43: 0 | GK43: 0 | GL43: 0 | GM43: 0 | GN43: 0 | GO43: 0 | GP43: 0 | GQ43: 0 | GR43: 0 | GS43: 0 | GT43: 0 | GU43: 0 | GV43: 0 | GW43: 0 | GX43: 0 | GY43: 0 | GZ43: 0 | HA43: 0 | HB43: 0 | HC43: 0 | HD43: 0
A44: 6 | B44: 0 | C44: 0 | D44: 0 | E44: 0 | F44: 0 | G44: 0 | H44: 0 | I44: 0 | J44: 0 | K44: 0 | L44: 0 | M44: 0 | N44: 0 | O44: 0 | P44: 0 | Q44: 0 | R44: 0 | S44: 0 | T44: 0 | U44: 0 | V44: 129 | W44: 101 | X44: 90 | Y44: 320 | Z44: 0 | AA44: 0 | AB44: 0 | AC44: 0 | AD44: 0 | AE44: 0 | AF44: 0 | AG44: 0 | AH44: 58 | AI44: 65 | AJ44: 406 | AK44: 529 | AL44: 65 | AM44: 74 | AN44: 342 | AO44: 481 | AP44: 0 | AQ44: 0 | AR44: 29 | AS44: 29 | AT44: 0 | AU44: 0 | AV44: 1 | AW44: 1 | AX44: 0 | AY44: 0 | AZ44: 1 | BA44: 1 | BB44: 0 | BC44: 0 | BD44: 0 | BE44: 0 | BF44: 0 | BG44: 1 | BH44: 0 | BI44: 1 | BJ44: 0 | BK44: 0 | BL44: 0 | BM44: 0 | BN44: 0 | BO44: 1 | BP44: 0 | BQ44: 1 | BR44: 0 | BS44: 1 | BT44: 0 | BU44: 1 | BV44: 0 | BW44: 0 | BX44: 0 | BY44: 0 | BZ44: 0 | CA44: 0 | CB44: 0 | CC44: 0 | CD44: 9 | CE44: 10 | CF44: 9 | CG44: 28 | CH44: 1 | CI44: 4 | CJ44: 11 | CK44: 16 | CL44: 3 | CM44: 9 | CN44: 40 | CO44: 52 | CP44: 0 | CQ44: 1 | CR44: 13 | CS44: 14 | CT44: 0 | CU44: 0 | CV44: 0 | CW44: 0 | CX44: 0 | CY44: 0 | CZ44: 0 | DA44: 0 | DB44: 0 | DC44: 1 | DD44: 11 | DE44: 12 | DF44: 0 | DG44: 0 | DH44: 0 | DI44: 0 | DJ44: 0 | DK44: 0 | DL44: 0 | DM44: 0 | DN44: 0 | DO44: 0 | DP44: 10 | DQ44: 10 | DR44: 34 | DS44: 75 | DT44: 109 | DU44: 0 | DV44: 0 | DW44: 0 | DX44: 0 | DY44: 0 | DZ44: 0 | EA44: 0 | EB44: 0 | EC44: 0 | ED44: 3 | EE44: 25 | EF44: 28 | EG44: 0 | EH44: 0 | EI44: 0 | EJ44: 0 | EK44: 1 | EL44: 1 | EM44: 0 | EN44: 0 | EO44: 0 | EP44: 0 | EQ44: 0 | ER44: 0 | ES44: 0 | ET44: 0 | EU44: 0 | EV44: 0 | EW44: 0 | EX44: 0 | EY44: 0 | EZ44: 0 | FA44: 0 | FB44: 0 | FC44: 0 | FD44: 0 | FE44: 0 | FF44: 0 | FG44: 0 | FH44: 0 | FI44: 0 | FJ44: 0 | FK44: 0 | FL44: 0 | FM44: 0 | FN44: 0 | FO44: 0 | FP44: 0 | FQ44: 0 | FR44: 0 | FS44: 0 | FT44: 0 | FU44: 0 | FV44: 0 | FW44: 0 | FX44: 0 | FY44: 0 | FZ44: 0 | GA44: 0 | GB44: 0 | GC44: 0 | GD44: 0 | GE44: 0 | GF44: 0 | GG44: 0 | GH44: 0 | GI44: 0 | GJ44: 0 | GK44: 0 | GL44: 0 | GM44: 0 | GN44: 0 | GO44: 0 | GP44: 0 | GQ44: 0 | GR44: 0 | GS44: 0 | GT44: 0 | GU44: 0 | GV44: 0 | GW44: 0 | GX44: 0 | GY44: 0 | GZ44: 0 | HA44: 0 | HB44: 0 | HC44: 0 | HD44: 0
A45: 7 | B45: 0 | C45: 0 | D45: 0 | E45: 0 | F45: 0 | G45: 0 | H45: 0 | I45: 0 | J45: 0 | K45: 0 | L45: 0 | M45: 0 | N45: 0 | O45: 0 | P45: 0 | Q45: 0 | R45: 0 | S45: 0 | T45: 0 | U45: 0 | V45: 124 | W45: 96 | X45: 77 | Y45: 297 | Z45: 0 | AA45: 0 | AB45: 0 | AC45: 0 | AD45: 0 | AE45: 0 | AF45: 0 | AG45: 0 | AH45: 48 | AI45: 64 | AJ45: 256 | AK45: 368 | AL45: 61 | AM45: 81 | AN45: 235 | AO45: 377 | AP45: 0 | AQ45: 0 | AR45: 25 | AS45: 25 | AT45: 0 | AU45: 0 | AV45: 4 | AW45: 4 | AX45: 0 | AY45: 0 | AZ45: 4 | BA45: 4 | BB45: 0 | BC45: 0 | BD45: 0 | BE45: 0 | BF45: 0 | BG45: 0 | BH45: 0 | BI45: 0 | BJ45: 0 | BK45: 0 | BL45: 0 | BM45: 0 | BN45: 0 | BO45: 0 | BP45: 0 | BQ45: 0 | BR45: 0 | BS45: 0 | BT45: 0 | BU45: 0 | BV45: 0 | BW45: 0 | BX45: 0 | BY45: 0 | BZ45: 0 | CA45: 0 | CB45: 0 | CC45: 0 | CD45: 9 | CE45: 5 | CF45: 11 | CG45: 25 | CH45: 2 | CI45: 9 | CJ45: 18 | CK45: 29 | CL45: 8 | CM45: 14 | CN45: 17 | CO45: 39 | CP45: 0 | CQ45: 1 | CR45: 3 | CS45: 4 | CT45: 0 | CU45: 0 | CV45: 0 | CW45: 0 | CX45: 0 | CY45: 0 | CZ45: 0 | DA45: 0 | DB45: 2 | DC45: 2 | DD45: 5 | DE45: 9 | DF45: 0 | DG45: 0 | DH45: 0 | DI45: 0 | DJ45: 0 | DK45: 0 | DL45: 0 | DM45: 0 | DN45: 0 | DO45: 0 | DP45: 4 | DQ45: 4 | DR45: 41 | DS45: 71 | DT45: 112 | DU45: 0 | DV45: 2 | DW45: 2 | DX45: 0 | DY45: 0 | DZ45: 0 | EA45: 0 | EB45: 2 | EC45: 2 | ED45: 2 | EE45: 12 | EF45: 14 | EG45: 0 | EH45: 0 | EI45: 0 | EJ45: 1 | EK45: 1 | EL45: 2 | EM45: 0 | EN45: 0 | EO45: 0 | EP45: 0 | EQ45: 0 | ER45: 0 | ES45: 0 | ET45: 0 | EU45: 0 | EV45: 0 | EW45: 0 | EX45: 0 | EY45: 0 | EZ45: 0 | FA45: 0 | FB45: 0 | FC45: 0 | FD45: 0 | FE45: 0 | FF45: 0 | FG45: 0 | FH45: 0 | FI45: 0 | FJ45: 0 | FK45: 0 | FL45: 0 | FM45: 0 | FN45: 0 | FO45: 0 | FP45: 0 | FQ45: 0 | FR45: 0 | FS45: 0 | FT45: 0 | FU45: 0 | FV45: 0 | FW45: 0 | FX45: 0 | FY45: 0 | FZ45: 0 | GA45: 0 | GB45: 0 | GC45: 0 | GD45: 0 | GE45: 0 | GF45: 0 | GG45: 0 | GH45: 0 | GI45: 0 | GJ45: 0 | GK45: 0 | GL45: 0 | GM45: 0 | GN45: 0 | GO45: 0 | GP45: 0 | GQ45: 0 | GR45: 0 | GS45: 0 | GT45: 0 | GU45: 0 | GV45: 0 | GW45: 0 | GX45: 0 | GY45: 0 | GZ45: 0 | HA45: 0 | HB45: 0 | HC45: 0 | HD45: 0
A46: 8 | B46: 0 | C46: 0 | D46: 0 | E46: 0 | F46: 0 | G46: 0 | H46: 0 | I46: 0 | J46: 0 | K46: 0 | L46: 0 | M46: 0 | N46: 0 | O46: 0 | P46: 0 | Q46: 0 | R46: 0 | S46: 0 | T46: 0 | U46: 0 | V46: 115 | W46: 84 | X46: 80 | Y46: 279 | Z46: 1 | AA46: 1 | AB46: 0 | AC46: 2 | AD46: 0 | AE46: 0 | AF46: 0 | AG46: 0 | AH46: 51 | AI46: 61 | AJ46: 89 | AK46: 201 | AL46: 71 | AM46: 72 | AN46: 62 | AO46: 205 | AP46: 2 | AQ46: 0 | AR46: 4 | AS46: 6 | AT46: 0 | AU46: 0 | AV46: 3 | AW46: 3 | AX46: 0 | AY46: 0 | AZ46: 2 | BA46: 2 | BB46: 0 | BC46: 0 | BD46: 0 | BE46: 0 | BF46: 0 | BG46: 0 | BH46: 3 | BI46: 3 | BJ46: 0 | BK46: 0 | BL46: 1 | BM46: 1 | BN46: 0 | BO46: 0 | BP46: 3 | BQ46: 3 | BR46: 0 | BS46: 0 | BT46: 3 | BU46: 3 | BV46: 0 | BW46: 0 | BX46: 0 | BY46: 0 | BZ46: 0 | CA46: 0 | CB46: 0 | CC46: 0 | CD46: 17 | CE46: 22 | CF46: 22 | CG46: 61 | CH46: 4 | CI46: 14 | CJ46: 47 | CK46: 65 | CL46: 10 | CM46: 7 | CN46: 29 | CO46: 46 | CP46: 0 | CQ46: 0 | CR46: 10 | CS46: 10 | CT46: 0 | CU46: 0 | CV46: 0 | CW46: 0 | CX46: 0 | CY46: 0 | CZ46: 0 | DA46: 0 | DB46: 0 | DC46: 1 | DD46: 8 | DE46: 9 | DF46: 0 | DG46: 0 | DH46: 0 | DI46: 0 | DJ46: 0 | DK46: 0 | DL46: 0 | DM46: 0 | DN46: 0 | DO46: 0 | DP46: 9 | DQ46: 9 | DR46: 56 | DS46: 118 | DT46: 174 | DU46: 0 | DV46: 7 | DW46: 7 | DX46: 0 | DY46: 1 | DZ46: 1 | EA46: 0 | EB46: 7 | EC46: 7 | ED46: 1 | EE46: 23 | EF46: 24 | EG46: 0 | EH46: 0 | EI46: 0 | EJ46: 2 | EK46: 0 | EL46: 2 | EM46: 0 | EN46: 0 | EO46: 0 | EP46: 0 | EQ46: 0 | ER46: 0 | ES46: 0 | ET46: 0 | EU46: 0 | EV46: 0 | EW46: 0 | EX46: 0 | EY46: 0 | EZ46: 0 | FA46: 0 | FB46: 0 | FC46: 0 | FD46: 0 | FE46: 0 | FF46: 0 | FG46: 0 | FH46: 0 | FI46: 0 | FJ46: 0 | FK46: 0 | FL46: 0 | FM46: 0 | FN46: 0 | FO46: 0 | FP46: 0 | FQ46: 0 | FR46: 0 | FS46: 0 | FT46: 0 | FU46: 0 | FV46: 0 | FW46: 0 | FX46: 0 | FY46: 0 | FZ46: 0 | GA46: 0 | GB46: 0 | GC46: 0 | GD46: 0 | GE46: 0 | GF46: 0 | GG46: 0 | GH46: 0 | GI46: 0 | GJ46: 0 | GK46: 0 | GL46: 0 | GM46: 0 | GN46: 0 | GO46: 0 | GP46: 0 | GQ46: 0 | GR46: 0 | GS46: 0 | GT46: 0 | GU46: 0 | GV46: 0 | GW46: 0 | GX46: 0 | GY46: 0 | GZ46: 0 | HA46: 0 | HB46: 0 | HC46: 0 | HD46: 0
A47: 9 | B47: 0 | C47: 0 | D47: 0 | E47: 0 | F47: 0 | G47: 0 | H47: 0 | I47: 0 | J47: 0 | K47: 0 | L47: 0 | M47: 0 | N47: 0 | O47: 0 | P47: 0 | Q47: 0 | R47: 0 | S47: 0 | T47: 0 | U47: 0 | V47: 85 | W47: 100 | X47: 83 | Y47: 268 | Z47: 0 | AA47: 0 | AB47: 0 | AC47: 0 | AD47: 0 | AE47: 0 | AF47: 0 | AG47: 0 | AH47: 50 | AI47: 64 | AJ47: 181 | AK47: 295 | AL47: 80 | AM47: 94 | AN47: 154 | AO47: 328 | AP47: 0 | AQ47: 1 | AR47: 11 | AS47: 12 | AT47: 0 | AU47: 0 | AV47: 1 | AW47: 1 | AX47: 0 | AY47: 0 | AZ47: 0 | BA47: 0 | BB47: 0 | BC47: 0 | BD47: 0 | BE47: 0 | BF47: 0 | BG47: 0 | BH47: 1 | BI47: 1 | BJ47: 0 | BK47: 0 | BL47: 0 | BM47: 0 | BN47: 0 | BO47: 0 | BP47: 0 | BQ47: 0 | BR47: 0 | BS47: 0 | BT47: 1 | BU47: 1 | BV47: 0 | BW47: 0 | BX47: 0 | BY47: 0 | BZ47: 0 | CA47: 0 | CB47: 0 | CC47: 0 | CD47: 22 | CE47: 46 | CF47: 47 | CG47: 115 | CH47: 5 | CI47: 24 | CJ47: 95 | CK47: 124 | CL47: 10 | CM47: 8 | CN47: 29 | CO47: 47 | CP47: 1 | CQ47: 0 | CR47: 11 | CS47: 12 | CT47: 0 | CU47: 0 | CV47: 0 | CW47: 0 | CX47: 0 | CY47: 0 | CZ47: 0 | DA47: 0 | DB47: 1 | DC47: 0 | DD47: 7 | DE47: 8 | DF47: 0 | DG47: 0 | DH47: 0 | DI47: 0 | DJ47: 0 | DK47: 0 | DL47: 0 | DM47: 0 | DN47: 0 | DO47: 1 | DP47: 6 | DQ47: 7 | DR47: 90 | DS47: 181 | DT47: 271 | DU47: 1 | DV47: 5 | DW47: 6 | DX47: 0 | DY47: 0 | DZ47: 0 | EA47: 0 | EB47: 1 | EC47: 1 | ED47: 0 | EE47: 17 | EF47: 17 | EG47: 0 | EH47: 0 | EI47: 0 | EJ47: 0 | EK47: 2 | EL47: 2 | EM47: 0 | EN47: 0 | EO47: 0 | EP47: 0 | EQ47: 0 | ER47: 0 | ES47: 0 | ET47: 0 | EU47: 0 | EV47: 0 | EW47: 0 | EX47: 0 | EY47: 0 | EZ47: 0 | FA47: 0 | FB47: 0 | FC47: 0 | FD47: 0 | FE47: 0 | FF47: 0 | FG47: 0 | FH47: 0 | FI47: 0 | FJ47: 0 | FK47: 0 | FL47: 0 | FM47: 0 | FN47: 0 | FO47: 0 | FP47: 0 | FQ47: 0 | FR47: 0 | FS47: 0 | FT47: 0 | FU47: 0 | FV47: 0 | FW47: 0 | FX47: 0 | FY47: 0 | FZ47: 0 | GA47: 0 | GB47: 0 | GC47: 0 | GD47: 0 | GE47: 0 | GF47: 0 | GG47: 0 | GH47: 0 | GI47: 0 | GJ47: 0 | GK47: 0 | GL47: 0 | GM47: 0 | GN47: 0 | GO47: 0 | GP47: 0 | GQ47: 0 | GR47: 0 | GS47: 0 | GT47: 0 | GU47: 0 | GV47: 0 | GW47: 0 | GX47: 0 | GY47: 0 | GZ47: 0 | HA47: 0 | HB47: 0 | HC47: 0 | HD47: 0
A48: 10 | B48: 0 | C48: 0 | D48: 0 | E48: 0 | F48: 0 | G48: 0 | H48: 0 | I48: 0 | J48: 0 | K48: 0 | L48: 0 | M48: 0 | N48: 0 | O48: 0 | P48: 0 | Q48: 0 | R48: 0 | S48: 0 | T48: 0 | U48: 0 | V48: 131 | W48: 98 | X48: 74 | Y48: 303 | Z48: 0 | AA48: 0 | AB48: 0 | AC48: 0 | AD48: 0 | AE48: 0 | AF48: 0 | AG48: 0 | AH48: 64 | AI48: 56 | AJ48: 444 | AK48: 564 | AL48: 92 | AM48: 86 | AN48: 332 | AO48: 510 | AP48: 0 | AQ48: 0 | AR48: 96 | AS48: 96 | AT48: 0 | AU48: 0 | AV48: 1 | AW48: 1 | AX48: 0 | AY48: 0 | AZ48: 0 | BA48: 0 | BB48: 0 | BC48: 0 | BD48: 0 | BE48: 0 | BF48: 0 | BG48: 0 | BH48: 3 | BI48: 3 | BJ48: 0 | BK48: 0 | BL48: 0 | BM48: 0 | BN48: 0 | BO48: 0 | BP48: 2 | BQ48: 2 | BR48: 0 | BS48: 0 | BT48: 2 | BU48: 2 | BV48: 0 | BW48: 0 | BX48: 0 | BY48: 0 | BZ48: 0 | CA48: 0 | CB48: 0 | CC48: 0 | CD48: 5 | CE48: 29 | CF48: 37 | CG48: 71 | CH48: 3 | CI48: 38 | CJ48: 66 | CK48: 107 | CL48: 10 | CM48: 4 | CN48: 26 | CO48: 40 | CP48: 0 | CQ48: 1 | CR48: 9 | CS48: 10 | CT48: 0 | CU48: 0 | CV48: 0 | CW48: 0 | CX48: 0 | CY48: 0 | CZ48: 0 | DA48: 0 | DB48: 0 | DC48: 0 | DD48: 5 | DE48: 5 | DF48: 0 | DG48: 0 | DH48: 0 | DI48: 0 | DJ48: 0 | DK48: 0 | DL48: 0 | DM48: 0 | DN48: 0 | DO48: 1 | DP48: 10 | DQ48: 11 | DR48: 84 | DS48: 161 | DT48: 245 | DU48: 0 | DV48: 7 | DW48: 7 | DX48: 0 | DY48: 3 | DZ48: 3 | EA48: 0 | EB48: 3 | EC48: 3 | ED48: 2 | EE48: 19 | EF48: 21 | EG48: 0 | EH48: 0 | EI48: 0 | EJ48: 0 | EK48: 4 | EL48: 4 | EM48: 0 | EN48: 0 | EO48: 0 | EP48: 0 | EQ48: 0 | ER48: 0 | ES48: 0 | ET48: 0 | EU48: 0 | EV48: 0 | EW48: 0 | EX48: 0 | EY48: 0 | EZ48: 0 | FA48: 0 | FB48: 0 | FC48: 0 | FD48: 0 | FE48: 0 | FF48: 0 | FG48: 0 | FH48: 0 | FI48: 0 | FJ48: 0 | FK48: 0 | FL48: 0 | FM48: 0 | FN48: 0 | FO48: 0 | FP48: 0 | FQ48: 0 | FR48: 0 | FS48: 0 | FT48: 0 | FU48: 0 | FV48: 0 | FW48: 0 | FX48: 0 | FY48: 0 | FZ48: 0 | GA48: 0 | GB48: 0 | GC48: 0 | GD48: 0 | GE48: 0 | GF48: 0 | GG48: 0 | GH48: 0 | GI48: 0 | GJ48: 0 | GK48: 0 | GL48: 0 | GM48: 0 | GN48: 0 | GO48: 0 | GP48: 0 | GQ48: 0 | GR48: 0 | GS48: 0 | GT48: 0 | GU48: 0 | GV48: 0 | GW48: 0 | GX48: 0 | GY48: 0 | GZ48: 0 | HA48: 0 | HB48: 0 | HC48: 0 | HD48: 0
A49: 11 | B49: 0 | C49: 0 | D49: 0 | E49: 0 | F49: 0 | G49: 0 | H49: 0 | I49: 0 | J49: 0 | K49: 0 | L49: 0 | M49: 0 | N49: 0 | O49: 0 | P49: 0 | Q49: 0 | R49: 0 | S49: 0 | T49: 0 | U49: 0 | V49: 120 | W49: 87 | X49: 69 | Y49: 276 | Z49: 0 | AA49: 0 | AB49: 0 | AC49: 0 | AD49: 0 | AE49: 0 | AF49: 0 | AG49: 0 | AH49: 43 | AI49: 66 | AJ49: 86 | AK49: 195 | AL49: 67 | AM49: 89 | AN49: 80 | AO49: 236 | AP49: 0 | AQ49: 0 | AR49: 1 | AS49: 1 | AT49: 0 | AU49: 0 | AV49: 0 | AW49: 0 | AX49: 0 | AY49: 0 | AZ49: 0 | BA49: 0 | BB49: 0 | BC49: 0 | BD49: 0 | BE49: 0 | BF49: 0 | BG49: 0 | BH49: 0 | BI49: 0 | BJ49: 0 | BK49: 0 | BL49: 0 | BM49: 0 | BN49: 0 | BO49: 0 | BP49: 1 | BQ49: 1 | BR49: 0 | BS49: 0 | BT49: 0 | BU49: 0 | BV49: 0 | BW49: 0 | BX49: 0 | BY49: 0 | BZ49: 0 | CA49: 0 | CB49: 0 | CC49: 0 | CD49: 9 | CE49: 20 | CF49: 50 | CG49: 79 | CH49: 2 | CI49: 8 | CJ49: 39 | CK49: 49 | CL49: 2 | CM49: 5 | CN49: 20 | CO49: 27 | CP49: 0 | CQ49: 0 | CR49: 9 | CS49: 9 | CT49: 0 | CU49: 0 | CV49: 0 | CW49: 0 | CX49: 0 | CY49: 0 | CZ49: 0 | DA49: 0 | DB49: 0 | DC49: 1 | DD49: 8 | DE49: 9 | DF49: 0 | DG49: 0 | DH49: 0 | DI49: 0 | DJ49: 0 | DK49: 0 | DL49: 0 | DM49: 0 | DN49: 0 | DO49: 0 | DP49: 7 | DQ49: 7 | DR49: 42 | DS49: 126 | DT49: 168 | DU49: 3 | DV49: 11 | DW49: 14 | DX49: 0 | DY49: 2 | DZ49: 2 | EA49: 1 | EB49: 4 | EC49: 5 | ED49: 1 | EE49: 22 | EF49: 23 | EG49: 0 | EH49: 0 | EI49: 0 | EJ49: 1 | EK49: 0 | EL49: 1 | EM49: 0 | EN49: 0 | EO49: 0 | EP49: 0 | EQ49: 0 | ER49: 0 | ES49: 0 | ET49: 0 | EU49: 0 | EV49: 0 | EW49: 0 | EX49: 0 | EY49: 0 | EZ49: 0 | FA49: 0 | FB49: 0 | FC49: 0 | FD49: 0 | FE49: 0 | FF49: 0 | FG49: 0 | FH49: 0 | FI49: 0 | FJ49: 0 | FK49: 0 | FL49: 0 | FM49: 0 | FN49: 0 | FO49: 0 | FP49: 0 | FQ49: 0 | FR49: 0 | FS49: 0 | FT49: 0 | FU49: 0 | FV49: 0 | FW49: 0 | FX49: 0 | FY49: 0 | FZ49: 0 | GA49: 0 | GB49: 0 | GC49: 0 | GD49: 0 | GE49: 0 | GF49: 0 | GG49: 0 | GH49: 0 | GI49: 0 | GJ49: 0 | GK49: 0 | GL49: 0 | GM49: 0 | GN49: 0 | GO49: 0 | GP49: 0 | GQ49: 0 | GR49: 0 | GS49: 0 | GT49: 0 | GU49: 0 | GV49: 0 | GW49: 0 | GX49: 0 | GY49: 0 | GZ49: 0 | HA49: 0 | HB49: 0 | HC49: 0 | HD49: 0
A50: Total general | B50: 0 | C50: 0 | D50: 0 | E50: 0 | F50: 0 | G50: 0 | H50: 0 | I50: 0 | J50: 0 | K50: 0 | L50: 0 | M50: 0 | N50: 0 | O50: 0 | P50: 0 | Q50: 0 | R50: 0 | S50: 0 | T50: 0 | U50: 0 | V50: 1306 | W50: 1027 | X50: 892 | Y50: 3225 | Z50: 1 | AA50: 1 | AB50: 0 | AC50: 2 | AD50: 1 | AE50: 1 | AF50: 1 | AG50: 3 | AH50: 646 | AI50: 701 | AJ50: 3027 | AK50: 4374 | AL50: 881 | AM50: 937 | AN50: 2331 | AO50: 4149 | AP50: 3 | AQ50: 1 | AR50: 232 | AS50: 236 | AT50: 0 | AU50: 1 | AV50: 18 | AW50: 19 | AX50: 0 | AY50: 0 | AZ50: 7 | BA50: 7 | BB50: 0 | BC50: 0 | BD50: 0 | BE50: 0 | BF50: 0 | BG50: 2 | BH50: 12 | BI50: 14 | BJ50: 0 | BK50: 0 | BL50: 4 | BM50: 4 | BN50: 0 | BO50: 2 | BP50: 10 | BQ50: 12 | BR50: 0 | BS50: 1 | BT50: 10 | BU50: 11 | BV50: 0 | BW50: 0 | BX50: 0 | BY50: 0 | BZ50: 0 | CA50: 0 | CB50: 0 | CC50: 0 | CD50: 164 | CE50: 262 | CF50: 312 | CG50: 738 | CH50: 43 | CI50: 160 | CJ50: 544 | CK50: 747 | CL50: 62 | CM50: 76 | CN50: 302 | CO50: 440 | CP50: 2 | CQ50: 3 | CR50: 93 | CS50: 98 | CT50: 0 | CU50: 0 | CV50: 0 | CW50: 0 | CX50: 0 | CY50: 0 | CZ50: 1 | DA50: 1 | DB50: 5 | DC50: 7 | DD50: 90 | DE50: 102 | DF50: 0 | DG50: 0 | DH50: 0 | DI50: 0 | DJ50: 0 | DK50: 0 | DL50: 0 | DM50: 0 | DN50: 0 | DO50: 4 | DP50: 82 | DQ50: 86 | DR50: 634 | DS50: 1457 | DT50: 2091 | DU50: 9 | DV50: 104 | DW50: 113 | DX50: 4 | DY50: 57 | DZ50: 61 | EA50: 5 | EB50: 75 | EC50: 80 | ED50: 14 | EE50: 229 | EF50: 243 | EG50: 0 | EH50: 0 | EI50: 0 | EJ50: 10 | EK50: 21 | EL50: 31 | EM50: 0 | EN50: 0 | EO50: 0 | EP50: 0 | EQ50: 0 | ER50: 0 | ES50: 0 | ET50: 0 | EU50: 0 | EV50: 0 | EW50: 0 | EX50: 0 | EY50: 0 | EZ50: 0 | FA50: 0 | FB50: 0 | FC50: 0 | FD50: 0 | FE50: 0 | FF50: 0 | FG50: 0 | FH50: 0 | FI50: 0 | FJ50: 0 | FK50: 0 | FL50: 0 | FM50: 0 | FN50: 0 | FO50: 0 | FP50: 0 | FQ50: 0 | FR50: 0 | FS50: 0 | FT50: 0 | FU50: 0 | FV50: 0 | FW50: 0 | FX50: 0 | FY50: 0 | FZ50: 0 | GA50: 0 | GB50: 0 | GC50: 0 | GD50: 0 | GE50: 0 | GF50: 0 | GG50: 0 | GH50: 0 | GI50: 0 | GJ50: 0 | GK50: 0 | GL50: 0 | GM50: 0 | GN50: 0 | GO50: 0 | GP50: 0 | GQ50: 0 | GR50: 0 | GS50: 0 | GT50: 0 | GU50: 0 | GV50: 0 | GW50: 0 | GX50: 0 | GY50: 0 | GZ50: 0 | HA50: 0 | HB50: 0 | HC50: 0 | HD50: 0
A53: Salud Ocular 2
A54: Anio | B54: 2024
A55: UE | B55: (Todas)
A56: Red | B56: LA CONVENCION
A57: MicroRed | B57: (Todas)
A58: EESS | B58: (Todas)
A59: Provincia | B59: (Todas)
A60: Distrito | B60: (Todas)
A62: Etiquetas de fila | B62: Suma de O_Ex_Ojo_Vis18_Diab_N_18_29a | C62: Suma de O_Ex_Ojo_Vis18_Diab_N_30_59a | D62: Suma de O_Ex_Ojo_Vis18_Diab_N_60a | E62: Suma de O_Ex_Ojo_Vis18_Diab_N_Diab_18a_Total | F62: Suma de O_Ex_Ojo_Vis18_Diab_A_18_29a | G62: Suma de O_Ex_Ojo_Vis18_Diab_A_30_59a | H62: Suma de O_Ex_Ojo_Vis18_Diab_A_60a | I62: Suma de O_Ex_Ojo_Vis18_Diab_A_18a_Total | J62: Suma de O_Det_AgudVisual_Diab_18_29a | K62: Suma de O_Det_AgudVisual_Diab_30_59a | L62: Suma de O_Det_AgudVisual_Diab_60a | M62: Suma de O_Det_AgudVisual_Diab_18a_Total | N62: Suma de O_Cons_AgudVisual_Diab_18_29a | O62: Suma de O_Cons_AgudVisual_Diab_30_59a | P62: Suma de O_Cons_AgudVisual_Diab_60a | Q62: Suma de O_Cons_AgudVisual_Diab_18a_Total | R62: Suma de O_Ref_AgudVisual_Diab_18_29a | S62: Suma de O_Ref_AgudVisual_Diab_30_59a | T62: Suma de O_Ref_AgudVisual_Diab_60a | U62: Suma de O_Ref_AgudVisual_Diab_18a_Total | V62: Suma de O_Retinografia_N_18_29a | W62: Suma de O_Retinografia_N_30_59a | X62: Suma de O_Retinografia_N_60a | Y62: Suma de O_Retinografia_N_Total | Z62: Suma de O_c_retinopatiaD_18_29a | AA62: Suma de O_c_retinopatiaD_30_59a | AB62: Suma de O_c_retinopatiaD_60a | AC62: Suma de O_c_retinopatiaD_Total | AD62: Suma de O_tto_Terap_LaserD_18_29a | AE62: Suma de O_tto_Terap_LaserD_30_59a | AF62: Suma de O_tto_Terap_LaserD_60a | AG62: Suma de O_tto_Terap_LaserD_Total | AH62: Suma de O_tto_Terap_intravD_18_29a | AI62: Suma de O_tto_Terap_intravD_30_59a | AJ62: Suma de O_tto_Terap_intravD_60a | AK62: Suma de O_tto_Terap_intravD_Total | AL62: Suma de O_tto_Cirugia_vitreaD_18_29a | AM62: Suma de O_tto_Cirugia_vitreaD_30_59a | AN62: Suma de O_tto_Cirugia_vitreaD_60a | AO62: Suma de O_tto_Cirugia_vitreaD_Total | AP62: Suma de O_ctrl_atc_diab_18_29a | AQ62: Suma de O_ctrl_atc_diab_30_59a | AR62: Suma de O_ctrl_atc_diab_60a | AS62: Suma de O_ctrl_atc_diab_Total | AT62: Suma de O_Eva_tracoma_1_11a | AU62: Suma de O_Eva_tracoma_12_17a | AV62: Suma de O_Eva_tracoma_18_29a | AW62: Suma de O_Eva_tracoma_Total | AX62: Suma de O_Consej_tracoma_1_11a | AY62: Suma de O_Consej_tracoma_12_17a | AZ62: Suma de O_Consej_tracoma_18_29a | BA62: Suma de O_Consej_tracoma_Total | BB62: Suma de O_c_tracoma_1_11a | BC62: Suma de O_c_tracoma_12_17a | BD62: Suma de O_c_tracoma_18_29a | BE62: Suma de O_c_tracoma_Total | BF62: Suma de O_tto_quiru_tracoma_1_11a | BG62: Suma de O_tto_quiru_tracoma_12_17a | BH62: Suma de O_tto_quiru_tracoma_18_29a | BI62: Suma de O_tto_quiru_tracoma_Total | BJ62: Suma de O_f_tracoma_1_11a | BK62: Suma de O_f_tracoma_12_17a | BL62: Suma de O_f_tracoma_18_29a | BM62: Suma de O_f_tracoma_Total | BN62: Suma de O_atc_c_tracoma_1_11a | BO62: Suma de O_atc_c_tracoma_12_17a | BP62: Suma de O_atc_c_tracoma_18_29a | BQ62: Suma de O_atc_c_tracoma_Total | BR62: Suma de O_ee_orzuelo_1_11a | BS62: Suma de O_ee_orzuelo_12_17a | BT62: Suma de O_ee_orzuelo_18_29a | BU62: Suma de O_ee_orzuelo_Total | BV62: Suma de O_ee_chalazion_1_11a | BW62: Suma de O_ee_chalazion_12_17a | BX62: Suma de O_ee_chalazion_18_29a | BY62: Suma de O_ee_chalazion_Total | BZ62: Suma de O_ee_Blefaritis_1_11a | CA62: Suma de O_ee_Blefaritis_12_17a | CB62: Suma de O_ee_Blefaritis_18_29a | CC62: Suma de O_ee_Blefaritis_Total | CD62: Suma de O_ee_Conjuntivitis_1_11a | CE62: Suma de O_ee_Conjuntivitis_12_17a | CF62: Suma de O_ee_Conjuntivitis_18_29a | CG62: Suma de O_ee_Conjuntivitis_Total | CH62: Suma de O_ee_Conjuntivitis_tto_1_11a | CI62: Suma de O_ee_Conjuntivitis_tto_12_17a | CJ62: Suma de O_ee_Conjuntivitis_tto_18_29a | CK62: Suma de O_ee_Conjuntivitis_tto_Total | CL62: Suma de O_Eva_tracoma_30_59a | CM62: Suma de O_Eva_tracoma_60a | CN62: Suma de O_Consej_tracoma_30_59a | CO62: Suma de O_Consej_tracoma_60a | CP62: Suma de O_c_tracoma_30_59a | CQ62: Suma de O_c_tracoma_60a | CR62: Suma de O_tto_quiru_tracoma_30_59a | CS62: Suma de O_tto_quiru_tracoma_60a | CT62: Suma de O_f_tracoma_30_59a | CU62: Suma de O_f_tracoma_60a | CV62: Suma de O_atc_c_tracoma_30_59a | CW62: Suma de O_atc_c_tracoma_60a | CX62: Suma de O_ee_orzuelo_30_59a | CY62: Suma de O_ee_orzuelo_60a | CZ62: Suma de O_ee_chalazion_30_59a | DA62: Suma de O_ee_chalazion_60a | DB62: Suma de O_ee_Blefaritis_30_59a | DC62: Suma de O_ee_Blefaritis_60a | DD62: Suma de O_ee_Conjuntivitis_30_59a | DE62: Suma de O_ee_Conjuntivitis_60a | DF62: Suma de O_ee_Consejeria_tto_1_11a | DG62: Suma de O_ee_Consejeria_tto_12_17a | DH62: Suma de O_ee_Consejeria_tto_18_29a | DI62: Suma de O_ee_Consejeria_tto_30_59a | DJ62: Suma de O_ee_Consejeria_tto_60a | DK62: Suma de O_ee_Consejeria_tto_Total | DL62: Suma de O_ee_Conjuntivitis_tto_30_59a | DM62: Suma de O_ee_Conjuntivitis_tto_60a
A63: 1 | B63: 0 | C63: 0 | D63: 0 | E63: 0 | F63: 0 | G63: 0 | H63: 0 | I63: 0 | J63: 0 | K63: 0 | L63: 0 | M63: 0 | N63: 0 | O63: 0 | P63: 0 | Q63: 0 | R63: 0 | S63: 0 | T63: 0 | U63: 0 | V63: 0 | W63: 0 | X63: 0 | Y63: 0 | Z63: 0 | AA63: 1 | AB63: 1 | AC63: 2 | AD63: 0 | AE63: 0 | AF63: 0 | AG63: 0 | AH63: 0 | AI63: 0 | AJ63: 0 | AK63: 0 | AL63: 0 | AM63: 0 | AN63: 0 | AO63: 0 | AP63: 0 | AQ63: 0 | AR63: 0 | AS63: 0 | AT63: 0 | AU63: 0 | AV63: 0 | AW63: 0 | AX63: 0 | AY63: 0 | AZ63: 0 | BA63: 0 | BB63: 0 | BC63: 0 | BD63: 0 | BE63: 1 | BF63: 0 | BG63: 0 | BH63: 0 | BI63: 0 | BJ63: 0 | BK63: 0 | BL63: 0 | BM63: 0 | BN63: 0 | BO63: 0 | BP63: 0 | BQ63: 0 | BR63: 3 | BS63: 1 | BT63: 1 | BU63: 7 | BV63: 4 | BW63: 0 | BX63: 3 | BY63: 7 | BZ63: 3 | CA63: 0 | CB63: 1 | CC63: 12 | CD63: 77 | CE63: 7 | CF63: 22 | CG63: 209 | CH63: 0 | CI63: 0 | CJ63: 0 | CK63: 0 | CL63: 0 | CM63: 0 | CN63: 0 | CO63: 0 | CP63: 0 | CQ63: 1 | CR63: 0 | CS63: 0 | CT63: 0 | CU63: 0 | CV63: 0 | CW63: 0 | CX63: 2 | CY63: 0 | CZ63: 0 | DA63: 0 | DB63: 1 | DC63: 7 | DD63: 68 | DE63: 35 | DF63: 2 | DG63: 0 | DH63: 0 | DI63: 0 | DJ63: 0 | DK63: 2 | DL63: 0 | DM63: 0
A64: 2 | B64: 0 | C64: 0 | D64: 0 | E64: 0 | F64: 0 | G64: 0 | H64: 0 | I64: 0 | J64: 0 | K64: 0 | L64: 0 | M64: 0 | N64: 0 | O64: 0 | P64: 0 | Q64: 0 | R64: 0 | S64: 0 | T64: 0 | U64: 0 | V64: 0 | W64: 0 | X64: 0 | Y64: 0 | Z64: 0 | AA64: 0 | AB64: 2 | AC64: 2 | AD64: 0 | AE64: 0 | AF64: 0 | AG64: 0 | AH64: 0 | AI64: 0 | AJ64: 0 | AK64: 0 | AL64: 0 | AM64: 0 | AN64: 0 | AO64: 0 | AP64: 0 | AQ64: 0 | AR64: 0 | AS64: 0 | AT64: 0 | AU64: 0 | AV64: 0 | AW64: 0 | AX64: 0 | AY64: 0 | AZ64: 0 | BA64: 0 | BB64: 0 | BC64: 0 | BD64: 0 | BE64: 0 | BF64: 0 | BG64: 0 | BH64: 0 | BI64: 0 | BJ64: 0 | BK64: 0 | BL64: 0 | BM64: 0 | BN64: 0 | BO64: 0 | BP64: 0 | BQ64: 0 | BR64: 1 | BS64: 0 | BT64: 0 | BU64: 4 | BV64: 3 | BW64: 0 | BX64: 1 | BY64: 6 | BZ64: 2 | CA64: 2 | CB64: 0 | CC64: 7 | CD64: 55 | CE64: 9 | CF64: 16 | CG64: 169 | CH64: 1 | CI64: 0 | CJ64: 0 | CK64: 1 | CL64: 0 | CM64: 0 | CN64: 0 | CO64: 0 | CP64: 0 | CQ64: 0 | CR64: 0 | CS64: 0 | CT64: 0 | CU64: 0 | CV64: 0 | CW64: 0 | CX64: 2 | CY64: 1 | CZ64: 2 | DA64: 0 | DB64: 0 | DC64: 3 | DD64: 47 | DE64: 42 | DF64: 0 | DG64: 0 | DH64: 0 | DI64: 0 | DJ64: 0 | DK64: 0 | DL64: 0 | DM64: 0
A65: 3 | B65: 0 | C65: 0 | D65: 0 | E65: 0 | F65: 0 | G65: 0 | H65: 0 | I65: 0 | J65: 0 | K65: 0 | L65: 0 | M65: 0 | N65: 0 | O65: 0 | P65: 0 | Q65: 0 | R65: 0 | S65: 0 | T65: 0 | U65: 0 | V65: 0 | W65: 0 | X65: 0 | Y65: 0 | Z65: 0 | AA65: 0 | AB65: 2 | AC65: 2 | AD65: 0 | AE65: 0 | AF65: 0 | AG65: 0 | AH65: 0 | AI65: 0 | AJ65: 0 | AK65: 0 | AL65: 0 | AM65: 0 | AN65: 0 | AO65: 0 | AP65: 0 | AQ65: 0 | AR65: 0 | AS65: 0 | AT65: 0 | AU65: 0 | AV65: 0 | AW65: 0 | AX65: 0 | AY65: 0 | AZ65: 0 | BA65: 0 | BB65: 0 | BC65: 0 | BD65: 0 | BE65: 2 | BF65: 0 | BG65: 0 | BH65: 0 | BI65: 0 | BJ65: 0 | BK65: 0 | BL65: 0 | BM65: 0 | BN65: 0 | BO65: 0 | BP65: 0 | BQ65: 0 | BR65: 5 | BS65: 0 | BT65: 1 | BU65: 6 | BV65: 1 | BW65: 1 | BX65: 2 | BY65: 4 | BZ65: 2 | CA65: 1 | CB65: 2 | CC65: 12 | CD65: 69 | CE65: 8 | CF65: 17 | CG65: 199 | CH65: 1 | CI65: 0 | CJ65: 0 | CK65: 1 | CL65: 0 | CM65: 0 | CN65: 0 | CO65: 0 | CP65: 0 | CQ65: 2 | CR65: 0 | CS65: 0 | CT65: 0 | CU65: 0 | CV65: 0 | CW65: 0 | CX65: 0 | CY65: 0 | CZ65: 0 | DA65: 0 | DB65: 1 | DC65: 6 | DD65: 64 | DE65: 41 | DF65: 0 | DG65: 0 | DH65: 0 | DI65: 0 | DJ65: 0 | DK65: 0 | DL65: 0 | DM65: 0
A66: 4 | B66: 0 | C66: 0 | D66: 1 | E66: 1 | F66: 0 | G66: 0 | H66: 1 | I66: 1 | J66: 0 | K66: 0 | L66: 4 | M66: 4 | N66: 0 | O66: 0 | P66: 1 | Q66: 1 | R66: 0 | S66: 0 | T66: 1 | U66: 1 | V66: 0 | W66: 0 | X66: 0 | Y66: 0 | Z66: 0 | AA66: 1 | AB66: 1 | AC66: 2 | AD66: 0 | AE66: 0 | AF66: 0 | AG66: 0 | AH66: 0 | AI66: 0 | AJ66: 0 | AK66: 0 | AL66: 0 | AM66: 0 | AN66: 0 | AO66: 0 | AP66: 0 | AQ66: 0 | AR66: 0 | AS66: 0 | AT66: 0 | AU66: 0 | AV66: 0 | AW66: 0 | AX66: 0 | AY66: 0 | AZ66: 0 | BA66: 0 | BB66: 0 | BC66: 0 | BD66: 0 | BE66: 0 | BF66: 0 | BG66: 0 | BH66: 0 | BI66: 0 | BJ66: 0 | BK66: 0 | BL66: 0 | BM66: 0 | BN66: 0 | BO66: 0 | BP66: 0 | BQ66: 0 | BR66: 8 | BS66: 1 | BT66: 4 | BU66: 15 | BV66: 7 | BW66: 1 | BX66: 4 | BY66: 17 | BZ66: 3 | CA66: 1 | CB66: 1 | CC66: 9 | CD66: 98 | CE66: 10 | CF66: 19 | CG66: 226 | CH66: 0 | CI66: 0 | CJ66: 0 | CK66: 0 | CL66: 0 | CM66: 0 | CN66: 0 | CO66: 0 | CP66: 0 | CQ66: 0 | CR66: 0 | CS66: 0 | CT66: 0 | CU66: 0 | CV66: 0 | CW66: 0 | CX66: 2 | CY66: 0 | CZ66: 5 | DA66: 0 | DB66: 0 | DC66: 4 | DD66: 60 | DE66: 39 | DF66: 5 | DG66: 1 | DH66: 1 | DI66: 8 | DJ66: 3 | DK66: 18 | DL66: 0 | DM66: 0
A67: 5 | B67: 0 | C67: 0 | D67: 1 | E67: 1 | F67: 0 | G67: 0 | H67: 0 | I67: 0 | J67: 0 | K67: 1 | L67: 1 | M67: 2 | N67: 0 | O67: 1 | P67: 0 | Q67: 1 | R67: 0 | S67: 0 | T67: 0 | U67: 0 | V67: 0 | W67: 0 | X67: 0 | Y67: 0 | Z67: 0 | AA67: 0 | AB67: 1 | AC67: 1 | AD67: 0 | AE67: 0 | AF67: 0 | AG67: 0 | AH67: 0 | AI67: 0 | AJ67: 0 | AK67: 0 | AL67: 0 | AM67: 0 | AN67: 0 | AO67: 0 | AP67: 0 | AQ67: 0 | AR67: 0 | AS67: 0 | AT67: 0 | AU67: 0 | AV67: 0 | AW67: 0 | AX67: 0 | AY67: 0 | AZ67: 0 | BA67: 0 | BB67: 0 | BC67: 0 | BD67: 0 | BE67: 0 | BF67: 0 | BG67: 0 | BH67: 0 | BI67: 0 | BJ67: 0 | BK67: 0 | BL67: 0 | BM67: 0 | BN67: 0 | BO67: 0 | BP67: 0 | BQ67: 0 | BR67: 1 | BS67: 1 | BT67: 2 | BU67: 10 | BV67: 1 | BW67: 2 | BX67: 0 | BY67: 3 | BZ67: 2 | CA67: 0 | CB67: 1 | CC67: 11 | CD67: 58 | CE67: 9 | CF67: 10 | CG67: 168 | CH67: 0 | CI67: 0 | CJ67: 0 | CK67: 0 | CL67: 0 | CM67: 0 | CN67: 0 | CO67: 0 | CP67: 0 | CQ67: 0 | CR67: 0 | CS67: 0 | CT67: 0 | CU67: 0 | CV67: 0 | CW67: 0 | CX67: 3 | CY67: 3 | CZ67: 0 | DA67: 0 | DB67: 2 | DC67: 6 | DD67: 48 | DE67: 43 | DF67: 0 | DG67: 0 | DH67: 0 | DI67: 2 | DJ67: 2 | DK67: 4 | DL67: 0 | DM67: 0
A68: 6 | B68: 0 | C68: 0 | D68: 0 | E68: 0 | F68: 0 | G68: 0 | H68: 0 | I68: 0 | J68: 0 | K68: 0 | L68: 2 | M68: 2 | N68: 0 | O68: 0 | P68: 2 | Q68: 2 | R68: 0 | S68: 0 | T68: 0 | U68: 0 | V68: 0 | W68: 0 | X68: 0 | Y68: 0 | Z68: 0 | AA68: 0 | AB68: 2 | AC68: 2 | AD68: 0 | AE68: 0 | AF68: 0 | AG68: 0 | AH68: 0 | AI68: 0 | AJ68: 0 | AK68: 0 | AL68: 0 | AM68: 0 | AN68: 0 | AO68: 0 | AP68: 0 | AQ68: 0 | AR68: 0 | AS68: 0 | AT68: 0 | AU68: 0 | AV68: 0 | AW68: 0 | AX68: 0 | AY68: 0 | AZ68: 0 | BA68: 2 | BB68: 0 | BC68: 0 | BD68: 0 | BE68: 2 | BF68: 0 | BG68: 0 | BH68: 0 | BI68: 0 | BJ68: 0 | BK68: 0 | BL68: 0 | BM68: 0 | BN68: 0 | BO68: 0 | BP68: 0 | BQ68: 0 | BR68: 0 | BS68: 3 | BT68: 1 | BU68: 5 | BV68: 3 | BW68: 1 | BX68: 3 | BY68: 8 | BZ68: 3 | CA68: 2 | CB68: 3 | CC68: 13 | CD68: 44 | CE68: 4 | CF68: 18 | CG68: 138 | CH68: 0 | CI68: 2 | CJ68: 0 | CK68: 2 | CL68: 0 | CM68: 0 | CN68: 0 | CO68: 2 | CP68: 0 | CQ68: 2 | CR68: 0 | CS68: 0 | CT68: 0 | CU68: 0 | CV68: 0 | CW68: 0 | CX68: 1 | CY68: 0 | CZ68: 1 | DA68: 0 | DB68: 1 | DC68: 4 | DD68: 45 | DE68: 27 | DF68: 1 | DG68: 0 | DH68: 1 | DI68: 1 | DJ68: 2 | DK68: 5 | DL68: 0 | DM68: 0
A69: 7 | B69: 0 | C69: 0 | D69: 0 | E69: 0 | F69: 0 | G69: 0 | H69: 0 | I69: 0 | J69: 0 | K69: 1 | L69: 1 | M69: 2 | N69: 0 | O69: 0 | P69: 0 | Q69: 0 | R69: 0 | S69: 0 | T69: 0 | U69: 0 | V69: 0 | W69: 0 | X69: 0 | Y69: 0 | Z69: 0 | AA69: 1 | AB69: 1 | AC69: 2 | AD69: 0 | AE69: 0 | AF69: 0 | AG69: 0 | AH69: 0 | AI69: 0 | AJ69: 0 | AK69: 0 | AL69: 0 | AM69: 0 | AN69: 0 | AO69: 0 | AP69: 0 | AQ69: 0 | AR69: 0 | AS69: 0 | AT69: 0 | AU69: 0 | AV69: 0 | AW69: 0 | AX69: 0 | AY69: 0 | AZ69: 0 | BA69: 0 | BB69: 0 | BC69: 0 | BD69: 0 | BE69: 0 | BF69: 0 | BG69: 0 | BH69: 0 | BI69: 0 | BJ69: 0 | BK69: 0 | BL69: 0 | BM69: 0 | BN69: 0 | BO69: 0 | BP69: 0 | BQ69: 0 | BR69: 3 | BS69: 1 | BT69: 0 | BU69: 5 | BV69: 4 | BW69: 2 | BX69: 0 | BY69: 8 | BZ69: 3 | CA69: 1 | CB69: 0 | CC69: 11 | CD69: 31 | CE69: 7 | CF69: 15 | CG69: 118 | CH69: 0 | CI69: 0 | CJ69: 0 | CK69: 0 | CL69: 0 | CM69: 0 | CN69: 0 | CO69: 0 | CP69: 0 | CQ69: 0 | CR69: 0 | CS69: 0 | CT69: 0 | CU69: 0 | CV69: 0 | CW69: 0 | CX69: 1 | CY69: 0 | CZ69: 2 | DA69: 0 | DB69: 5 | DC69: 2 | DD69: 45 | DE69: 20 | DF69: 0 | DG69: 1 | DH69: 1 | DI69: 1 | DJ69: 0 | DK69: 3 | DL69: 0 | DM69: 0
A70: 8 | B70: 0 | C70: 0 | D70: 0 | E70: 0 | F70: 0 | G70: 2 | H70: 1 | I70: 3 | J70: 0 | K70: 3 | L70: 1 | M70: 4 | N70: 0 | O70: 2 | P70: 1 | Q70: 3 | R70: 0 | S70: 0 | T70: 0 | U70: 0 | V70: 0 | W70: 0 | X70: 0 | Y70: 0 | Z70: 0 | AA70: 2 | AB70: 0 | AC70: 2 | AD70: 0 | AE70: 0 | AF70: 0 | AG70: 0 | AH70: 0 | AI70: 0 | AJ70: 0 | AK70: 0 | AL70: 0 | AM70: 0 | AN70: 0 | AO70: 0 | AP70: 0 | AQ70: 0 | AR70: 0 | AS70: 0 | AT70: 0 | AU70: 0 | AV70: 0 | AW70: 0 | AX70: 0 | AY70: 0 | AZ70: 0 | BA70: 0 | BB70: 0 | BC70: 0 | BD70: 0 | BE70: 1 | BF70: 0 | BG70: 0 | BH70: 0 | BI70: 0 | BJ70: 0 | BK70: 0 | BL70: 0 | BM70: 0 | BN70: 0 | BO70: 0 | BP70: 0 | BQ70: 0 | BR70: 4 | BS70: 1 | BT70: 2 | BU70: 10 | BV70: 2 | BW70: 1 | BX70: 2 | BY70: 5 | BZ70: 3 | CA70: 2 | CB70: 2 | CC70: 16 | CD70: 46 | CE70: 10 | CF70: 13 | CG70: 143 | CH70: 0 | CI70: 0 | CJ70: 0 | CK70: 1 | CL70: 0 | CM70: 0 | CN70: 0 | CO70: 0 | CP70: 0 | CQ70: 1 | CR70: 0 | CS70: 0 | CT70: 0 | CU70: 0 | CV70: 0 | CW70: 0 | CX70: 2 | CY70: 1 | CZ70: 0 | DA70: 0 | DB70: 4 | DC70: 5 | DD70: 43 | DE70: 31 | DF70: 0 | DG70: 1 | DH70: 1 | DI70: 0 | DJ70: 3 | DK70: 5 | DL70: 0 | DM70: 1
A71: 9 | B71: 0 | C71: 0 | D71: 0 | E71: 0 | F71: 0 | G71: 0 | H71: 1 | I71: 1 | J71: 0 | K71: 2 | L71: 0 | M71: 2 | N71: 0 | O71: 0 | P71: 0 | Q71: 0 | R71: 0 | S71: 0 | T71: 0 | U71: 0 | V71: 0 | W71: 0 | X71: 0 | Y71: 0 | Z71: 0 | AA71: 0 | AB71: 2 | AC71: 2 | AD71: 0 | AE71: 0 | AF71: 0 | AG71: 0 | AH71: 0 | AI71: 0 | AJ71: 0 | AK71: 0 | AL71: 0 | AM71: 0 | AN71: 0 | AO71: 0 | AP71: 0 | AQ71: 0 | AR71: 0 | AS71: 0 | AT71: 0 | AU71: 0 | AV71: 0 | AW71: 0 | AX71: 0 | AY71: 0 | AZ71: 0 | BA71: 0 | BB71: 0 | BC71: 0 | BD71: 0 | BE71: 1 | BF71: 0 | BG71: 0 | BH71: 0 | BI71: 0 | BJ71: 0 | BK71: 0 | BL71: 0 | BM71: 0 | BN71: 0 | BO71: 0 | BP71: 0 | BQ71: 0 | BR71: 5 | BS71: 3 | BT71: 1 | BU71: 11 | BV71: 3 | BW71: 0 | BX71: 0 | BY71: 3 | BZ71: 1 | CA71: 2 | CB71: 2 | CC71: 10 | CD71: 71 | CE71: 7 | CF71: 22 | CG71: 193 | CH71: 0 | CI71: 0 | CJ71: 0 | CK71: 0 | CL71: 0 | CM71: 0 | CN71: 0 | CO71: 0 | CP71: 0 | CQ71: 1 | CR71: 0 | CS71: 0 | CT71: 0 | CU71: 0 | CV71: 0 | CW71: 0 | CX71: 2 | CY71: 0 | CZ71: 0 | DA71: 0 | DB71: 1 | DC71: 4 | DD71: 47 | DE71: 46 | DF71: 0 | DG71: 0 | DH71: 0 | DI71: 0 | DJ71: 0 | DK71: 0 | DL71: 0 | DM71: 0
A72: 10 | B72: 0 | C72: 0 | D72: 0 | E72: 0 | F72: 0 | G72: 0 | H72: 0 | I72: 0 | J72: 0 | K72: 1 | L72: 2 | M72: 3 | N72: 0 | O72: 0 | P72: 0 | Q72: 0 | R72: 0 | S72: 0 | T72: 0 | U72: 0 | V72: 0 | W72: 0 | X72: 0 | Y72: 0 | Z72: 0 | AA72: 1 | AB72: 3 | AC72: 4 | AD72: 0 | AE72: 0 | AF72: 0 | AG72: 0 | AH72: 0 | AI72: 0 | AJ72: 0 | AK72: 0 | AL72: 0 | AM72: 0 | AN72: 0 | AO72: 0 | AP72: 0 | AQ72: 0 | AR72: 0 | AS72: 0 | AT72: 0 | AU72: 0 | AV72: 0 | AW72: 0 | AX72: 0 | AY72: 0 | AZ72: 0 | BA72: 0 | BB72: 0 | BC72: 0 | BD72: 0 | BE72: 1 | BF72: 0 | BG72: 0 | BH72: 0 | BI72: 0 | BJ72: 0 | BK72: 0 | BL72: 0 | BM72: 0 | BN72: 0 | BO72: 0 | BP72: 0 | BQ72: 0 | BR72: 4 | BS72: 0 | BT72: 1 | BU72: 8 | BV72: 0 | BW72: 1 | BX72: 0 | BY72: 6 | BZ72: 1 | CA72: 1 | CB72: 0 | CC72: 4 | CD72: 75 | CE72: 12 | CF72: 23 | CG72: 221 | CH72: 0 | CI72: 0 | CJ72: 0 | CK72: 0 | CL72: 0 | CM72: 0 | CN72: 0 | CO72: 0 | CP72: 0 | CQ72: 1 | CR72: 0 | CS72: 0 | CT72: 0 | CU72: 0 | CV72: 0 | CW72: 0 | CX72: 3 | CY72: 0 | CZ72: 5 | DA72: 0 | DB72: 1 | DC72: 1 | DD72: 68 | DE72: 43 | DF72: 0 | DG72: 0 | DH72: 0 | DI72: 0 | DJ72: 0 | DK72: 0 | DL72: 0 | DM72: 0
A73: 11 | B73: 0 | C73: 0 | D73: 0 | E73: 0 | F73: 0 | G73: 0 | H73: 0 | I73: 0 | J73: 0 | K73: 0 | L73: 0 | M73: 0 | N73: 0 | O73: 0 | P73: 0 | Q73: 0 | R73: 0 | S73: 0 | T73: 0 | U73: 0 | V73: 0 | W73: 0 | X73: 0 | Y73: 0 | Z73: 0 | AA73: 0 | AB73: 0 | AC73: 0 | AD73: 0 | AE73: 0 | AF73: 0 | AG73: 0 | AH73: 0 | AI73: 0 | AJ73: 0 | AK73: 0 | AL73: 0 | AM73: 0 | AN73: 0 | AO73: 0 | AP73: 0 | AQ73: 0 | AR73: 0 | AS73: 0 | AT73: 0 | AU73: 0 | AV73: 0 | AW73: 0 | AX73: 0 | AY73: 0 | AZ73: 0 | BA73: 0 | BB73: 0 | BC73: 0 | BD73: 0 | BE73: 0 | BF73: 0 | BG73: 0 | BH73: 0 | BI73: 0 | BJ73: 0 | BK73: 0 | BL73: 0 | BM73: 0 | BN73: 0 | BO73: 0 | BP73: 0 | BQ73: 0 | BR73: 6 | BS73: 3 | BT73: 0 | BU73: 12 | BV73: 3 | BW73: 2 | BX73: 1 | BY73: 6 | BZ73: 1 | CA73: 1 | CB73: 1 | CC73: 7 | CD73: 59 | CE73: 10 | CF73: 22 | CG73: 197 | CH73: 0 | CI73: 0 | CJ73: 0 | CK73: 2 | CL73: 0 | CM73: 0 | CN73: 0 | CO73: 0 | CP73: 0 | CQ73: 0 | CR73: 0 | CS73: 0 | CT73: 0 | CU73: 0 | CV73: 0 | CW73: 0 | CX73: 3 | CY73: 0 | CZ73: 0 | DA73: 0 | DB73: 1 | DC73: 3 | DD73: 64 | DE73: 42 | DF73: 0 | DG73: 0 | DH73: 0 | DI73: 0 | DJ73: 0 | DK73: 0 | DL73: 2 | DM73: 0
A74: Total general | B74: 0 | C74: 0 | D74: 2 | E74: 2 | F74: 0 | G74: 2 | H74: 3 | I74: 5 | J74: 0 | K74: 8 | L74: 11 | M74: 19 | N74: 0 | O74: 3 | P74: 4 | Q74: 7 | R74: 0 | S74: 0 | T74: 1 | U74: 1 | V74: 0 | W74: 0 | X74: 0 | Y74: 0 | Z74: 0 | AA74: 6 | AB74: 15 | AC74: 21 | AD74: 0 | AE74: 0 | AF74: 0 | AG74: 0 | AH74: 0 | AI74: 0 | AJ74: 0 | AK74: 0 | AL74: 0 | AM74: 0 | AN74: 0 | AO74: 0 | AP74: 0 | AQ74: 0 | AR74: 0 | AS74: 0 | AT74: 0 | AU74: 0 | AV74: 0 | AW74: 0 | AX74: 0 | AY74: 0 | AZ74: 0 | BA74: 2 | BB74: 0 | BC74: 0 | BD74: 0 | BE74: 8 | BF74: 0 | BG74: 0 | BH74: 0 | BI74: 0 | BJ74: 0 | BK74: 0 | BL74: 0 | BM74: 0 | BN74: 0 | BO74: 0 | BP74: 0 | BQ74: 0 | BR74: 40 | BS74: 14 | BT74: 13 | BU74: 93 | BV74: 31 | BW74: 11 | BX74: 16 | BY74: 73 | BZ74: 24 | CA74: 13 | CB74: 13 | CC74: 112 | CD74: 683 | CE74: 93 | CF74: 197 | CG74: 1981 | CH74: 2 | CI74: 2 | CJ74: 0 | CK74: 7 | CL74: 0 | CM74: 0 | CN74: 0 | CO74: 2 | CP74: 0 | CQ74: 8 | CR74: 0 | CS74: 0 | CT74: 0 | CU74: 0 | CV74: 0 | CW74: 0 | CX74: 21 | CY74: 5 | CZ74: 15 | DA74: 0 | DB74: 17 | DC74: 45 | DD74: 599 | DE74: 409 | DF74: 8 | DG74: 3 | DH74: 4 | DI74: 12 | DJ74: 10 | DK74: 37 | DL74: 2 | DM74: 1

Sheet Menu
E2: GERESA CUSCO
E3: REPORTE HISMINSA 2024
E4: SALUD OCULAR
F31: Fecha Actualización DATA | I31: 30/11/2024

Sheet INFORME
A1: DIRECCION REGIONAL DE SALUD CUSCO
A2: DIRECCION EJECUTIVA DE INTELIGENCIA SANITARIA
A3: DIRECCION DE ESTADISTICA Y TELECOMUNICACIONES
A4: SALUD OCULAR
A5: INFORME OPERACIONAL MENSUAL
C7: RED DE SALUD | E7: =TD!F3 -> LA CONVENCION | J7: PROVINCIA | K7: =TD!F6 -> (All) | Q7: AÑO : | S7: =TD!C10 -> 2024
C9: MICRO RED | E9: =TD!F4 -> (All) | J9: DISTRITO | K9: =TD!F7 -> (All) | Q9: MES : | S9: =TD!O17 -> ENERO - NOVIEMBRE
C11: ESTABLECIMIENTO | E11: =TD!F5 -> (All) | J11: U.E. | K11: =TD!F8 -> (All)
C13: SEGUIMIENTO DEL RECIÉN NACIDO CON FACTORES DE RIESGO PARA RETINOPATÍA DE LA PREMATURIDAD
C14: Hospitales 2°- 3° Nivel Atc
C17: Actividad | I17: UM | J17: TOTAL | K17: < 1m | L17: 1m | M17: 2m | N17: 3m | P17: 4m | R17: 5m | T17: 6m | V17: <1a | W17: 1a | X17: 2-3a
C18: Tamizaje de recien nacidos con factores de riesgo | I18: Normal | J18: =SUM(GETPIVOTDATA("Suma de O_TamRN_FR_N_Total",TD!$A$38)) -> 0 | K18: =SUM(GETPIVOTDATA("Suma de O_TamRN_FR_N_0_29d",TD!$A$38)) -> 0 | L18: =SUM(GETPIVOTDATA("Suma de O_TamRN_FR_N_1m",TD!$A$38)) -> 0 | M18: =SUM(GETPIVOTDATA("Suma de O_TamRN_FR_N_2m",TD!$A$38)) -> 0 | N18: =SUM(GETPIVOTDATA("Suma de O_TamRN_FR_N_3m",TD!$A$38)) -> 0 | P18: =SUM(GETPIVOTDATA("Suma de O_TamRN_FR_N_4m",TD!$A$38)) -> 0 | R18: =SUM(GETPIVOTDATA("Suma de O_TamRN_FR_N_5m",TD!$A$38)) -> 0 | T18: =SUM(GETPIVOTDATA("Suma de O_TamRN_FR_N_6m",TD!$A$38)) -> 0 | V18: =SUM(GETPIVOTDATA("Suma de O_TamRN_FR_N_m1a",TD!$A$38)) -> 0 | W18: =SUM(GETPIVOTDATA("Suma de O_TamRN_FR_N_1a",TD!$A$38)) -> 0 | X18: =SUM(GETPIVOTDATA("Suma de O_TamRN_FR_N_2_3a",TD!$A$38)) -> 0
I19: Anormal | J19: =SUM(GETPIVOTDATA("Suma de O_TamRN_FR_A_Total",TD!$A$38)) -> 0 | K19: =SUM(GETPIVOTDATA("Suma de O_TamRN_FR_A_0_29d",TD!$A$38)) -> 0 | L19: =SUM(GETPIVOTDATA("Suma de O_TamRN_FR_A_1m",TD!$A$38)) -> 0 | M19: =SUM(GETPIVOTDATA("Suma de O_TamRN_FR_A_2m",TD!$A$38)) -> 0 | N19: =SUM(GETPIVOTDATA("Suma de O_TamRN_FR_A_3m",TD!$A$38)) -> 0 | P19: =SUM(GETPIVOTDATA("Suma de O_TamRN_FR_A_4m",TD!$A$38)) -> 0 | R19: =SUM(GETPIVOTDATA("Suma de O_TamRN_FR_A_5m",TD!$A$38)) -> 0 | T19: =SUM(GETPIVOTDATA("Suma de O_TamRN_FR_A_6m",TD!$A$38)) -> 0 | V19: =SUM(GETPIVOTDATA("Suma de O_TamRN_FR_A_m1a",TD!$A$38)) -> 0 | W19: =SUM(GETPIVOTDATA("Suma de O_TamRN_FR_A_1a",TD!$A$38)) -> 0 | X19: =SUM(GETPIVOTDATA("Suma de O_TamRN_FR_A_2_3a",TD!$A$38)) -> 0
C20: Diagnostico de casos de retinopatía de la prematuridad | I20: Caso | J20: =SUM(GETPIVOTDATA("Suma de O_Dx_retinoPrema_C_Total",TD!$A$38)) -> 0 | K20: =SUM(GETPIVOTDATA("Suma de O_Dx_retinoPrema_C_0_29d",TD!$A$38)) -> 0 | L20: =SUM(GETPIVOTDATA("Suma de O_Dx_retinoPrema_C_1m",TD!$A$38)) -> 0 | M20: =SUM(GETPIVOTDATA("Suma de O_Dx_retinoPrema_C_2m",TD!$A$38)) -> 0 | N20: =SUM(GETPIVOTDATA("Suma de O_Dx_retinoPrema_C_3m",TD!$A$38)) -> 0 | P20: =SUM(GETPIVOTDATA("Suma de O_Dx_retinoPrema_C_4m",TD!$A$38)) -> 0 | R20: =SUM(GETPIVOTDATA("Suma de O_Dx_retinoPrema_C_5m",TD!$A$38)) -> 0 | T20: =SUM(GETPIVOTDATA("Suma de O_Dx_retinoPrema_C_6m",TD!$A$38)) -> 0 | V20: =SUM(GETPIVOTDATA("Suma de O_Dx_retinoPrema_C_m1a",TD!$A$38)) -> 0 | W20: =SUM(GETPIVOTDATA("Suma de O_Dx_retinoPrema_C_1a",TD!$A$38)) -> 0 | X20: =SUM(GETPIVOTDATA("Suma de O_Dx_retinoPrema_C_2_3a",TD!$A$38)) -> 0
C21: Tratamiento de casos | I21: Caso tratado | J21: =SUM(GETPIVOTDATA("Suma de O_tto_retinoPrema_CT_Total",TD!$A$38)) -> 0 | K21: =SUM(GETPIVOTDATA("Suma de O_tto_retinoPrema_CT_0_29d",TD!$A$38)) -> 0 | L21: =SUM(GETPIVOTDATA("Suma de O_tto_retinoPrema_CT_1m",TD!$A$38)) -> 0 | M21: =SUM(GETPIVOTDATA("Suma de O_tto_retinoPrema_CT_2m",TD!$A$38)) -> 0 | N21: =SUM(GETPIVOTDATA("Suma de O_tto_retinoPrema_CT_3m",TD!$A$38)) -> 0 | P21: =SUM(GETPIVOTDATA("Suma de O_tto_retinoPrema_CT_4m",TD!$A$38)) -> 0 | R21: =SUM(GETPIVOTDATA("Suma de O_tto_retinoPrema_CT_5m",TD!$A$38)) -> 0 | T21: =SUM(GETPIVOTDATA("Suma de O_tto_retinoPrema_CT_6m",TD!$A$38)) -> 0 | V21: =SUM(GETPIVOTDATA("Suma de O_tto_retinoPrema_CT_m1a",TD!$A$38)) -> 0 | W21: =SUM(GETPIVOTDATA("Suma de O_tto_retinoPrema_CT_1a",TD!$A$38)) -> 0 | X21: =SUM(GETPIVOTDATA("Suma de O_tto_retinoPrema_CT_2_3a",TD!$A$38)) -> 0
C22: Complicaciones de tratamiento | I22: Caso | J22: =SUM(GETPIVOTDATA("Suma de O_ctto_retinoPrema_C_Total",TD!$A$38)) -> 0 | K22: =SUM(GETPIVOTDATA("Suma de O_ctto_retinoPrema_C_0_29d",TD!$A$38)) -> 0 | L22: =SUM(GETPIVOTDATA("Suma de O_ctto_retinoPrema_C_1m",TD!$A$38)) -> 0 | M22: =SUM(GETPIVOTDATA("Suma de O_ctto_retinoPrema_C_2m",TD!$A$38)) -> 0 | N22: =SUM(GETPIVOTDATA("Suma de O_ctto_retinoPrema_C_3m",TD!$A$38)) -> 0 | P22: =SUM(GETPIVOTDATA("Suma de O_ctto_retinoPrema_C_4m",TD!$A$38)) -> 0 | R22: =SUM(GETPIVOTDATA("Suma de O_ctto_retinoPrema_C_5m",TD!$A$38)) -> 0 | T22: =SUM(GETPIVOTDATA("Suma de O_ctto_retinoPrema_C_6m",TD!$A$38)) -> 0 | V22: =SUM(GETPIVOTDATA("Suma de O_ctto_retinoPrema_C_m1a",TD!$A$38)) -> 0 | W22: =SUM(GETPIVOTDATA("Suma de O_ctto_retinoPrema_C_1a",TD!$A$38)) -> 0 | X22: =SUM(GETPIVOTDATA("Suma de O_ctto_retinoPrema_C_2_3a",TD!$A$38)) -> 0
C23: Control Post Operatorio de recién nacidos | I23: Control | J23: =SUM(GETPIVOTDATA("Suma de O_ctrl_PosOpe_Total",TD!$A$38)) -> 0 | K23: =SUM(GETPIVOTDATA("Suma de O_ctrl_PosOpe_0_29d",TD!$A$38)) -> 0 | L23: =SUM(GETPIVOTDATA("Suma de O_ctrl_PosOpe_1m",TD!$A$38)) -> 0 | M23: =SUM(GETPIVOTDATA("Suma de O_ctrl_PosOpe_2m",TD!$A$38)) -> 0 | N23: =SUM(GETPIVOTDATA("Suma de O_ctrl_PosOpe_3m",TD!$A$38)) -> 0 | P23: =SUM(GETPIVOTDATA("Suma de O_ctrl_PosOpe_4m",TD!$A$38)) -> 0 | R23: =SUM(GETPIVOTDATA("Suma de O_ctrl_PosOpe_5m",TD!$A$38)) -> 0 | T23: =SUM(GETPIVOTDATA("Suma de O_ctrl_PosOpe_6m",TD!$A$38)) -> 0 | V23: =SUM(GETPIVOTDATA("Suma de O_ctrl_PosOpe_m1a",TD!$A$38)) -> 0 | W23: =SUM(GETPIVOTDATA("Suma de O_ctrl_PosOpe_1a",TD!$A$38)) -> 0 | X23: =SUM(GETPIVOTDATA("Suma de O_ctrl_PosOpe_2_3a",TD!$A$38)) -> 0
C26: EVALUACIÓN VISUAL DE NIÑOS (AS) MENORES DE 3 AÑOS
C27: Todos los EESS que realizan CRED
C30: Actividad | I30: UM | J30: TOTAL | K30: < 1a | L30: 1a | M30: 2a
C31: Examen de los Ojos y de la Visión | I31: Normal | J31: =SUM(GETPIVOTDATA("Suma de O_Ex_Ojo_Vis_N_0_2a_Total",TD!$A$38)) -> 3225 | K31: =SUM(GETPIVOTDATA("Suma de O_Ex_Ojo_Vis_N_0_11m",TD!$A$38)) -> 1306 | L31: =SUM(GETPIVOTDATA("Suma de O_Ex_Ojo_Vis_N_1a",TD!$A$38)) -> 1027 | M31: =SUM(GETPIVOTDATA("Suma de O_Ex_Ojo_Vis_N_2a",TD!$A$38)) -> 892
I32: Anormal | J32: =SUM(GETPIVOTDATA("Suma de O_Ex_Ojo_Vis_A_0_2a_Total",TD!$A$38)) -> 2 | K32: =SUM(GETPIVOTDATA("Suma de O_Ex_Ojo_Vis_A_0_11m",TD!$A$38)) -> 1 | L32: =SUM(GETPIVOTDATA("Suma de O_Ex_Ojo_Vis_A_1a",TD!$A$38)) -> 1 | M32: =SUM(GETPIVOTDATA("Suma de O_Ex_Ojo_Vis_A_2a",TD!$A$38)) -> 0
C33: Referencia por Transtorno del Ojo | I33: Número | J33: =SUM(GETPIVOTDATA("Suma de O_Ex_Ojo_Vis_RF_0_2a_Total",TD!$A$38)) -> 3 | K33: =SUM(GETPIVOTDATA("Suma de O_Ex_Ojo_Vis_RF_0_11m",TD!$A$38)) -> 1 | L33: =SUM(GETPIVOTDATA("Suma de O_Ex_Ojo_Vis_RF_1a",TD!$A$38)) -> 1 | M33: =SUM(GETPIVOTDATA("Suma de O_Ex_Ojo_Vis_RF_2a",TD!$A$38)) -> 1
C36: TAMIZAJE, DIAGNOSTICO,TRATAMIENTO Y CONTROL DE NIÑOS (AS) 3-11 AÑOS CON ERRORES REFRACTIVOS
C39: Actividad | I39: UM | J39: TOTAL | K39: 3 años | L39: 4 años | M39: 5 - 11a
C40: Examen de los Ojos y de la Visión | I40: Normal | J40: =SUM(GETPIVOTDATA("Suma de O_Ex_Ojo_Vis_N_3_11a_Total",TD!$A$38)) -> 4149 | K40: =SUM(GETPIVOTDATA("Suma de O_Ex_Ojo_Vis_N_3a",TD!$A$38)) -> 881 | L40: =SUM(GETPIVOTDATA("Suma de O_Ex_Ojo_Vis_N_4a",TD!$A$38)) -> 937 | M40: =SUM(GETPIVOTDATA("Suma de O_Ex_Ojo_Vis_N_5_11a",TD!$A$38)) -> 2331
I41: Anormal | J41: =SUM(GETPIVOTDATA("Suma de O_Ex_Ojo_Vis_A_3_11a_Total",TD!$A$38)) -> 236 | K41: =SUM(GETPIVOTDATA("Suma de O_Ex_Ojo_Vis_A_3a",TD!$A$38)) -> 3 | L41: =SUM(GETPIVOTDATA("Suma de O_Ex_Ojo_Vis_A_4a",TD!$A$38)) -> 1 | M41: =SUM(GETPIVOTDATA("Suma de O_Ex_Ojo_Vis_A_5_11a",TD!$A$38)) -> 232
C42: Tamizaje y detección de errores refractivos | I42: Número | J42: =SUM(GETPIVOTDATA("Suma de O_Determ_Agudeza_Visual_Total",TD!$A$38)) -> 4374 | K42: =SUM(GETPIVOTDATA("Suma de O_Determ_Agudeza_Visual_3a",TD!$A$38)) -> 646 | L42: =SUM(GETPIVOTDATA("Suma de O_Determ_Agudeza_Visual_4a",TD!$A$38)) -> 701 | M42: =SUM(GETPIVOTDATA("Suma de O_Determ_Agudeza_Visual_5_11a",TD!$A$38)) -> 3027
C43: Evaluacion y despistaje de errores refractivos (médico capacitado) | I43: Número | J43: =SUM(GETPIVOTDATA("Suma de O_Determ_Agudeza_Visual_EVA_Total",TD!$A$38)) -> 19 | K43: =SUM(GETPIVOTDATA("Suma de O_Determ_Agudeza_Visual_EVA_3a",TD!$A$38)) -> 0 | L43: =SUM(GETPIVOTDATA("Suma de O_Determ_Agudeza_Visual_EVA_4a",TD!$A$38)) -> 1 | M43: =SUM(GETPIVOTDATA("Suma de O_Determ_Agudeza_Visual_EVA_5_11a",TD!$A$38)) -> 18
C44: Consejeria medidas preventivas a los padres o apoderados | I44: Número | J44: =SUM(GETPIVOTDATA("Suma de O_Determ_Agudeza_Visual_consej_Total",TD!$A$38)) -> 7 | K44: =SUM(GETPIVOTDATA("Suma de O_Determ_Agudeza_Visual_consej_3a",TD!$A$38)) -> 0 | L44: =SUM(GETPIVOTDATA("Suma de O_Determ_Agudeza_Visual_consej_4a",TD!$A$38)) -> 0 | M44: =SUM(GETPIVOTDATA("Suma de O_Determ_Agudeza_Visual_consej_5_11a",TD!$A$38)) -> 7
C45: Referencias de pacientes con errores refractivos | I45: Número | J45: =SUM(GETPIVOTDATA("Suma de O_Determ_Agudeza_Visual_ref_Total",TD!$A$38)) -> 0 | K45: =SUM(GETPIVOTDATA("Suma de O_Determ_Agudeza_Visual_ref_3a",TD!$A$38)) -> 0 | L45: =SUM(GETPIVOTDATA("Suma de O_Determ_Agudeza_Visual_ref_4a",TD!$A$38)) -> 0 | M45: =SUM(GETPIVOTDATA("Suma de O_Determ_Agudeza_Visual_ref_5_11a",TD!$A$38)) -> 0
C46: Diagnóstico de errores refractivos - Astigmatismo | I46: Caso | J46: =SUM(GETPIVOTDATA("Suma de O_Dx_ErrR_Ast_Total",TD!$A$38)) -> 14 | K46: =SUM(GETPIVOTDATA("Suma de O_Dx_ErrR_Ast_3a",TD!$A$38)) -> 0 | L46: =SUM(GETPIVOTDATA("Suma de O_Dx_ErrR_Ast_4a",TD!$A$38)) -> 2 | M46: =SUM(GETPIVOTDATA("Suma de O_Dx_ErrR_Ast_5_11a",TD!$A$38)) -> 12
C47: Diagnóstico de errores refractivos - Hipermetropía | I47: Caso | J47: =SUM(GETPIVOTDATA("Suma de O_Dx_ErrR_Hip_Total",TD!$A$38)) -> 4 | K47: =SUM(GETPIVOTDATA("Suma de O_Dx_ErrR_Hip_3a",TD!$A$38)) -> 0 | L47: =SUM(GETPIVOTDATA("Suma de O_Dx_ErrR_Hip_4a",TD!$A$38)) -> 0 | M47: =SUM(GETPIVOTDATA("Suma de O_Dx_ErrR_Hip_5_11a",TD!$A$38)) -> 4
C48: Diagnóstico de errores refractivos - Miopía | I48: Caso | J48: =SUM(GETPIVOTDATA("Suma de O_Dx_ErrR_Mio_Total",TD!$A$38)) -> 12 | K48: =SUM(GETPIVOTDATA("Suma de O_Dx_ErrR_Mio_3a",TD!$A$38)) -> 0 | L48: =SUM(GETPIVOTDATA("Suma de O_Dx_ErrR_Mio_4a",TD!$A$38)) -> 2 | M48: =SUM(GETPIVOTDATA("Suma de O_Dx_ErrR_Mio_5_11a",TD!$A$38)) -> 10
C49: Diagnóstico de errores refractivos - Refracción (subjetiva o cicloplégica) | I49: Caso | J49: =SUM(GETPIVOTDATA("Suma de O_Dx_ErrR_Refr_Total",TD!$A$38)) -> 11 | K49: =SUM(GETPIVOTDATA("Suma de O_Dx_ErrR_Refr_3a",TD!$A$38)) -> 0 | L49: =SUM(GETPIVOTDATA("Suma de O_Dx_ErrR_Refr_4a",TD!$A$38)) -> 1 | M49: =SUM(GETPIVOTDATA("Suma de O_Dx_ErrR_Refr_5_11a",TD!$A$38)) -> 10
C50: Tratamiento de errores refractivos (Provisión de anteojos) | I50: Caso | J50: =SUM(GETPIVOTDATA("Suma de O_tto_Prov_anteo_Total",TD!$A$38)) -> 0 | K50: =SUM(GETPIVOTDATA("Suma de O_tto_Prov_anteo_3a",TD!$A$38)) -> 0 | L50: =SUM(GETPIVOTDATA("Suma de O_tto_Prov_anteo_4a",TD!$A$38)) -> 0 | M50: =SUM(GETPIVOTDATA("Suma de O_tto_Prov_anteo_5_11a",TD!$A$38)) -> 0
C51: Controles de Paciente con errores refractivos (Prueba de anteojos) | I51: Control | J51: =SUM(GETPIVOTDATA("Suma de O_Prueb_aju_anteo_Total",TD!$A$38)) -> 0 | K51: =SUM(GETPIVOTDATA("Suma de O_Prueb_aju_anteo_3a",TD!$A$38)) -> 0 | L51: =SUM(GETPIVOTDATA("Suma de O_Prueb_aju_anteo_4a",TD!$A$38)) -> 0 | M51: =SUM(GETPIVOTDATA("Suma de O_Prueb_aju_anteo_5_11a",TD!$A$38)) -> 0
C54: TAMIZAJE, DIAGNOSTICO,TRATAMIENTO Y CONTROL DE PACIENTES 40 AÑOS A MAS CON GLAUCOMA
C57: Actividad | I57: UM | J57: TOTAL | K57: 40 - 49a | L57: 50-+ 59a | M57: 60a y más
C58: Examen de los Ojos y de la Visión | I58: Normal | J58: =SUM(GETPIVOTDATA("Suma de O_Ex_Ojo_Vis40_N_40a_Total",TD!$A$38)) -> 738 | K58: =SUM(GETPIVOTDATA("Suma de O_Ex_Ojo_Vis40_N_40_49a",TD!$A$38)) -> 164 | L58: =SUM(GETPIVOTDATA("Suma de O_Ex_Ojo_Vis40_N_50_59a",TD!$A$38)) -> 262 | M58: =SUM(GETPIVOTDATA("Suma de O_Ex_Ojo_Vis40_N_60a",TD!$A$38)) -> 312
I59: Anormal | J59: =SUM(GETPIVOTDATA("Suma de O_Ex_Ojo_Vis40_A_40a_Total",TD!$A$38)) -> 747 | K59: =SUM(GETPIVOTDATA("Suma de O_Ex_Ojo_Vis40_A_40_49a",TD!$A$38)) -> 43 | L59: =SUM(GETPIVOTDATA("Suma de O_Ex_Ojo_Vis40_A_50_59a",TD!$A$38)) -> 160 | M59: =SUM(GETPIVOTDATA("Suma de O_Ex_Ojo_Vis40_A_60a",TD!$A$38)) -> 544
C60: Tamizaje de Glaucoma en personas de 40 a mas años (Determinación de la Presión Intraocular) | I60: Normal | J60: =SUM(GETPIVOTDATA("Suma de O_Det_Pres_Into_N_40a_Total",TD!$A$38)) -> 440 | K60: =SUM(GETPIVOTDATA("Suma de O_Det_Pres_Into_N_40_49a",TD!$A$38)) -> 62 | L60: =SUM(GETPIVOTDATA("Suma de O_Det_Pres_Into_N_50_59a",TD!$A$38)) -> 76 | M60: =SUM(GETPIVOTDATA("Suma de O_Det_Pres_Into_N_60a",TD!$A$38)) -> 302
I61: Anormal | J61: =SUM(GETPIVOTDATA("Suma de O_Det_Pres_Into_A_40a_Total",TD!$A$38)) -> 98 | K61: =SUM(GETPIVOTDATA("Suma de O_Det_Pres_Into_A_40_49a",TD!$A$38)) -> 2 | L61: =SUM(GETPIVOTDATA("Suma de O_Det_Pres_Into_A_50_59a",TD!$A$38)) -> 3 | M61: =SUM(GETPIVOTDATA("Suma de O_Det_Pres_Into_A_60a",TD!$A$38)) -> 93
C62: Consejeria medidas preventivas en salud ocular | I62: Número | J62: =SUM(GETPIVOTDATA("Suma de O_Eva_glaucoma_consej_40a_Total",TD!$A$38)) -> 0 | K62: =SUM(GETPIVOTDATA("Suma de O_Eva_glaucoma_consej_40_49a",TD!$A$38)) -> 0 | L62: =SUM(GETPIVOTDATA("Suma de O_Eva_glaucoma_consej_50_59a",TD!$A$38)) -> 0 | M62: =SUM(GETPIVOTDATA("Suma de O_Eva_glaucoma_consej_60a",TD!$A$38)) -> 0
C63: Referencias de pacientes con diagnsotico presuntivo de glaucoma | I63: Número | J63: =SUM(GETPIVOTDATA("Suma de O_Eva_glaucoma_rf_40a_Total",TD!$A$38)) -> 1 | K63: =SUM(GETPIVOTDATA("Suma de O_Eva_glaucoma_rf_40_49a",TD!$A$38)) -> 0 | L63: =SUM(GETPIVOTDATA("Suma de O_Eva_glaucoma_rf_50_59a",TD!$A$38)) -> 0 | M63: =SUM(GETPIVOTDATA("Suma de O_Eva_glaucoma_rf_60a",TD!$A$38)) -> 1
C64: Diagnóstico de Glaucoma (espcialista en oftalmólogia) | I64: Caso | J64: =SUM(GETPIVOTDATA("Suma de O_Dx_glaucoma_40a_Total",TD!$A$38)) -> 102 | K64: =SUM(GETPIVOTDATA("Suma de O_Dx_glaucoma_40_49a",TD!$A$38)) -> 5 | L64: =SUM(GETPIVOTDATA("Suma de O_Dx_glaucoma_50_59a",TD!$A$38)) -> 7 | M64: =SUM(GETPIVOTDATA("Suma de O_Dx_glaucoma_60a",TD!$A$38)) -> 90
C65: Tratamiento Laser de Glaucoma (espcialista en oftalmólogia) | I65: Caso | J65: =SUM(GETPIVOTDATA("Suma de O_R_tto_laser_40a_Total",TD!$A$38)) -> 0 | K65: =SUM(GETPIVOTDATA("Suma de O_R_tto_laser_40_49a",TD!$A$38)) -> 0 | L65: =SUM(GETPIVOTDATA("Suma de O_R_tto_laser_50_59a",TD!$A$38)) -> 0 | M65: =SUM(GETPIVOTDATA("Suma de O_R_tto_laser_60a",TD!$A$38)) -> 0
C66: Tratamiento Quirúrgico de Glaucoma (espcialista en oftalmólogia) | I66: Caso | J66: =SUM(GETPIVOTDATA("Suma de O_R_tto_quiru_40a_Total",TD!$A$38)) -> 0 | K66: =SUM(GETPIVOTDATA("Suma de O_R_tto_quiru_40_49a",TD!$A$38)) -> 0 | L66: =SUM(GETPIVOTDATA("Suma de O_R_tto_quiru_50_59a",TD!$A$38)) -> 0 | M66: =SUM(GETPIVOTDATA("Suma de O_R_tto_quiru_60a",TD!$A$38)) -> 0
C67: Control de Personas con Glaucoma | I67: Atención | J67: =SUM(GETPIVOTDATA("Suma de O_atc_ctrl_40a_Total",TD!$A$38)) -> 86 | K67: =SUM(GETPIVOTDATA("Suma de O_atc_ctrl_40_49a",TD!$A$38)) -> 0 | L67: =SUM(GETPIVOTDATA("Suma de O_atc_ctrl_50_59a",TD!$A$38)) -> 4 | M67: =SUM(GETPIVOTDATA("Suma de O_atc_ctrl_60a",TD!$A$38)) -> 82
C71: TAMIZAJE, DIAGNOSTICO,TRATAMIENTO Y CONTROL DE PACIENTES 50 AÑOS A MAS CON CATARATA
C74: Actividad | I74: UM | J74: TOTAL | K74: 50-+ 59a | L74: 60a y más
C75: Tamizaje y deteccion de catarata mediante agudeza Visual (I,II nivel) | I75: Número | J75: =SUM(GETPIVOTDATA("Suma de O_Det_Agud_Visual_Cat_50a_total",TD!$A$38)) -> 2091 | K75: =SUM(GETPIVOTDATA("Suma de O_Det_Agud_Visual_Cat_50_59a",TD!$A$38)) -> 634 | L75: =SUM(GETPIVOTDATA("Suma de O_Det_Agud_Visual_Cat_60a",TD!$A$38)) -> 1457
C76: Evaluacion y despistaje de catarata (realizada por personal médico) | I76: Número | J76: =SUM(GETPIVOTDATA("Suma de O_Evalua_Cat_50a_total",TD!$A$38)) -> 113 | K76: =SUM(GETPIVOTDATA("Suma de O_Evalua_Cat_50_59a",TD!$A$38)) -> 9 | L76: =SUM(GETPIVOTDATA("Suma de O_Evalua_Cat_60a",TD!$A$38)) -> 104
C77: Consejeria medidas preventivas y beneficio en tratamiento en catarata | I77: Número | J77: =SUM(GETPIVOTDATA("Suma de O_Evalua_Cat_consej_50a_total",TD!$A$38)) -> 61 | K77: =SUM(GETPIVOTDATA("Suma de O_Evalua_Cat_consej_50_59a",TD!$A$38)) -> 4 | L77: =SUM(GETPIVOTDATA("Suma de O_Evalua_Cat_consej_60a",TD!$A$38)) -> 57
C78: Referencias de pacientes para el diagnostico y tratamiento en catarata | I78: Número | J78: =SUM(GETPIVOTDATA("Suma de O_Evalua_Cat_rf_50a_total",TD!$A$38)) -> 80 | K78: =SUM(GETPIVOTDATA("Suma de O_Evalua_Cat_rf_50_59a",TD!$A$38)) -> 5 | L78: =SUM(GETPIVOTDATA("Suma de O_Evalua_Cat_rf_60a",TD!$A$38)) -> 75
C79: Diagnostico de casos de Catarata Senil | I79: Caso | J79: =SUM(GETPIVOTDATA("Suma de O_dx_c_catarata_50a_total",TD!$A$38)) -> 243 | K79: =SUM(GETPIVOTDATA("Suma de O_dx_c_catarata_50_59a",TD!$A$38)) -> 14 | L79: =SUM(GETPIVOTDATA("Suma de O_dx_c_catarata_60a",TD!$A$38)) -> 229
C80: Diagnostico de casos de Catarata Congénita | I80: Caso | J80: =SUM(GETPIVOTDATA("Suma de O_dx_c_cata_conge_50a_total",TD!$A$38)) -> 0 | K80: =SUM(GETPIVOTDATA("Suma de O_dx_c_cata_conge_50_59a",TD!$A$38)) -> 0 | L80: =SUM(GETPIVOTDATA("Suma de O_dx_c_cata_conge_60a",TD!$A$38)) -> 0
C81: Diagnostico de casos de Otras Cataratas | I81: Caso | J81: =SUM(GETPIVOTDATA("Suma de O_dx_c_o_catarata_50a_total",TD!$A$38)) -> 31 | K81: =SUM(GETPIVOTDATA("Suma de O_dx_c_o_catarata_50_59a",TD!$A$38)) -> 10 | L81: =SUM(GETPIVOTDATA("Suma de O_dx_c_o_catarata_60a",TD!$A$38)) -> 21
C82: Tratamiento de Facofragmentación (facoemulsificación) con aspiración | I82: Procedimiento | J82: =SUM(GETPIVOTDATA("Suma de O_tto_cata_faco_50a_total",TD!$A$38)) -> 0 | K82: =SUM(GETPIVOTDATA("Suma de O_tto_cata_faco_50_59a",TD!$A$38)) -> 0 | L82: =SUM(GETPIVOTDATA("Suma de O_tto_cata_faco_60a",TD!$A$38)) -> 0
C83: Tratamiento de Extracción extracapsular de Catarata con implente de lente intraocular | I83: Procedimiento | J83: =SUM(GETPIVOTDATA("Suma de O_tto_cata_extra_il_50a_total",TD!$A$38)) -> 0 | K83: =SUM(GETPIVOTDATA("Suma de O_tto_cata_extra_il_50_59a",TD!$A$38)) -> 0 | L83: =SUM(GETPIVOTDATA("Suma de O_tto_cata_extra_il_60a",TD!$A$38)) -> 0
C84: Tratamiento de Mininuc con implante de lente intraocular (LIO) | I84: Procedimiento | J84: =SUM(GETPIVOTDATA("Suma de O_tto_cata_mininuc_50a_total",TD!$A$38)) -> 0 | K84: =SUM(GETPIVOTDATA("Suma de O_tto_cata_mininuc_50_59a",TD!$A$38)) -> 0 | L84: =SUM(GETPIVOTDATA("Suma de O_tto_cata_mininuc_60a",TD!$A$38)) -> 0
C85: 1º Control Post Operatorio (Oftalmólogo al día siguiente de la operación) | I85: Control | J85: =SUM(GETPIVOTDATA("Suma de O_ctrl_cata_pp1_total",TD!$A$38)) -> 0 | K85: =SUM(GETPIVOTDATA("Suma de O_ctrl_cata_pp1_50_59a",TD!$A$38)) -> 0 | L85: =SUM(GETPIVOTDATA("Suma de O_ctrl_cata_pp1_60a",TD!$A$38)) -> 0
C86: 2º Control Post Operatorio (Oftalmólogo sino por Médico capacitado, a la semana) | I86: Control | J86: =SUM(GETPIVOTDATA("Suma de O_ctrl_cata_pp2_total",TD!$A$38)) -> 0 | K86: =SUM(GETPIVOTDATA("Suma de O_ctrl_cata_pp2_50_59a",TD!$A$38)) -> 0 | L86: =SUM(GETPIVOTDATA("Suma de O_ctrl_cata_pp2_60a",TD!$A$38)) -> 0
C87: 3º Control Post Operatorio (Oftalmólogo sino por Médico capacitado, al mes) | I87: Control | J87: =SUM(GETPIVOTDATA("Suma de O_ctrl_cata_pp3_total",TD!$A$38)) -> 0 | K87: =SUM(GETPIVOTDATA("Suma de O_ctrl_cata_pp3_50_59a",TD!$A$38)) -> 0 | L87: =SUM(GETPIVOTDATA("Suma de O_ctrl_cata_pp3_60a",TD!$A$38)) -> 0
C88: 4º Control Post Operatorio (Oftalmólogo sino por Médico capacitado, a los 2 meses) | I88: Control | J88: =SUM(GETPIVOTDATA("Suma de O_ctrl_cata_pp4_total",TD!$A$38)) -> 0 | K88: =SUM(GETPIVOTDATA("Suma de O_ctrl_cata_pp4_50_59a",TD!$A$38)) -> 0 | L88: =SUM(GETPIVOTDATA("Suma de O_ctrl_cata_pp4_60a",TD!$A$38)) -> 0
C89: Complicaciones post quirúrgicas de Catarata | I89: Caso | J89: =SUM(GETPIVOTDATA("Suma de O_comp_cata_pp_50a_total",TD!$A$38)) -> 0 | K89: =SUM(GETPIVOTDATA("Suma de O_comp_cata_pp_50_59a",TD!$A$38)) -> 0 | L89: =SUM(GETPIVOTDATA("Suma de O_comp_cata_pp_60a",TD!$A$38)) -> 0
C91: DETECCIÓN DE PERSONAS CON DIABETES MELLITUS CON RIESGO DE RETINOPATÍA DIABÉTICA
C94: Actividad | I94: UM | J94: TOTAL | K94: 18 - 29a | L94: 30 - 59a | M94: 60a y más
C95: Examen de los Ojos y de la Visión | I95: Normal | J95: =SUM(GETPIVOTDATA("Suma de O_Ex_Ojo_Vis18_Diab_N_Diab_18a_Total",TD!$A$62)) -> 2 | K95: =SUM(GETPIVOTDATA("Suma de O_Ex_Ojo_Vis18_Diab_N_18_29a",TD!$A$62)) -> 0 | L95: =SUM(GETPIVOTDATA("Suma de O_Ex_Ojo_Vis18_Diab_N_30_59a",TD!$A$62)) -> 0 | M95: =SUM(GETPIVOTDATA("Suma de O_Ex_Ojo_Vis18_Diab_N_60a",TD!$A$62)) -> 2
I96: Anormal | J96: =SUM(GETPIVOTDATA("O_Ex_Ojo_Vis18_Diab_A_18a_Total",TD!$A$62)) -> 5 | K96: =SUM(GETPIVOTDATA("Suma de O_Ex_Ojo_Vis18_Diab_A_18_29a",TD!$A$62)) -> 0 | L96: =SUM(GETPIVOTDATA("Suma de O_Ex_Ojo_Vis18_Diab_A_30_59a",TD!$A$62)) -> 2 | M96: =SUM(GETPIVOTDATA("Suma de O_Ex_Ojo_Vis18_Diab_A_60a",TD!$A$62)) -> 3
C97: Tamizaje y deteccion de agudeza Visual (I,II nivel) | I97: Número | J97: =SUM(GETPIVOTDATA("Suma de O_Det_AgudVisual_Diab_18a_Total",TD!$A$62)) -> 19 | K97: =SUM(GETPIVOTDATA("Suma de O_Det_AgudVisual_Diab_18_29a",TD!$A$62)) -> 0 | L97: =SUM(GETPIVOTDATA("Suma de O_Det_AgudVisual_Diab_30_59a",TD!$A$62)) -> 8 | M97: =SUM(GETPIVOTDATA("Suma de O_Det_AgudVisual_Diab_60a",TD!$A$62)) -> 11
C98: Consejeria de Paciente con Retinopaia Diabetica | I98: Número | J98: =SUM(GETPIVOTDATA("Suma de O_Cons_AgudVisual_Diab_18a_Total",TD!$A$62)) -> 7 | K98: =SUM(GETPIVOTDATA("Suma de O_Cons_AgudVisual_Diab_18_29a",TD!$A$62)) -> 0 | L98: =SUM(GETPIVOTDATA("Suma de O_Cons_AgudVisual_Diab_30_59a",TD!$A$62)) -> 3 | M98: =SUM(GETPIVOTDATA("Suma de O_Cons_AgudVisual_Diab_60a",TD!$A$62)) -> 4
C99: Referencias de pacientes con Retinopaia Diabetica | I99: Número | J99: =SUM(GETPIVOTDATA("Suma de O_ref_AgudVisual_Diab_18a_Total",TD!$A$62)) -> 1 | K99: =SUM(GETPIVOTDATA("Suma de O_ref_AgudVisual_Diab_18_29a",TD!$A$62)) -> 0 | L99: =SUM(GETPIVOTDATA("Suma de O_ref_AgudVisual_Diab_30_59a",TD!$A$62)) -> 0 | M99: =SUM(GETPIVOTDATA("Suma de O_ref_AgudVisual_Diab_60a",TD!$A$62)) -> 1
C100: Retinografia | I100: Número | J100: =SUM(GETPIVOTDATA("Suma de O_Retinografia_N_Total",TD!$A$62)) -> 0 | K100: =SUM(GETPIVOTDATA("Suma de O_Retinografia_N_18_29a",TD!$A$62)) -> 0 | L100: =SUM(GETPIVOTDATA("Suma de O_Retinografia_N_30_59a",TD!$A$62)) -> 0 | M100: =SUM(GETPIVOTDATA("Suma de O_Retinografia_N_60a",TD!$A$62)) -> 0
C101: Diagnostico de Casos de retinopatía diabética | I101: Caso | J101: =SUM(GETPIVOTDATA("O_c_retinopatiaD_Total",TD!$A$62)) -> 21 | K101: =SUM(GETPIVOTDATA("O_c_retinopatiaD_18_29a",TD!$A$62)) -> 0 | L101: =SUM(GETPIVOTDATA("O_c_retinopatiaD_30_59a",TD!$A$62)) -> 6 | M101: =SUM(GETPIVOTDATA("O_c_retinopatiaD_60a",TD!$A$62)) -> 15
C102: Tratamiento Terapia Laser | I102: Procedimiento | J102: =SUM(GETPIVOTDATA("Suma de O_tto_Terap_LaserD_Total",TD!$A$62)) -> 0 | K102: =SUM(GETPIVOTDATA("Suma de O_tto_Terap_LaserD_18_29a",TD!$A$62)) -> 0 | L102: =SUM(GETPIVOTDATA("Suma de O_tto_Terap_LaserD_30_59a",TD!$A$62)) -> 0 | M102: =SUM(GETPIVOTDATA("Suma de O_tto_Terap_LaserD_60a",TD!$A$62)) -> 0
C103: TratamientoTerapia intravítrea | I103: Procedimiento | J103: =SUM(GETPIVOTDATA("Suma de O_tto_Terap_intravD_Total",TD!$A$62)) -> 0 | K103: =SUM(GETPIVOTDATA("Suma de O_tto_Terap_intravD_18_29a",TD!$A$62)) -> 0 | L103: =SUM(GETPIVOTDATA("Suma de O_tto_Terap_intravD_30_59a",TD!$A$62)) -> 0 | M103: =SUM(GETPIVOTDATA("Suma de O_tto_Terap_intravD_60a",TD!$A$62)) -> 0
C104: Tratamiento Cirugía vítrea | I104: Procedimiento | J104: =SUM(GETPIVOTDATA("Suma de O_tto_Cirugia_vitreaD_Total",TD!$A$62)) -> 0 | K104: =SUM(GETPIVOTDATA("Suma de O_tto_Cirugia_vitreaD_18_29a",TD!$A$62)) -> 0 | L104: =SUM(GETPIVOTDATA("Suma de O_tto_Cirugia_vitreaD_30_59a",TD!$A$62)) -> 0 | M104: =SUM(GETPIVOTDATA("Suma de O_tto_Cirugia_vitreaD_60a",TD!$A$62)) -> 0
C105: Control de Personas con Diabetes Mellitus riesgo RD | I105: Atención | J105: =SUM(GETPIVOTDATA("Suma de O_ctrl_atc_diab_Total",TD!$A$62)) -> 0 | K105: =SUM(GETPIVOTDATA("Suma de O_ctrl_atc_diab_18_29a",TD!$A$62)) -> 0 | L105: =SUM(GETPIVOTDATA("Suma de O_ctrl_atc_diab_30_59a",TD!$A$62)) -> 0 | M105: =SUM(GETPIVOTDATA("Suma de O_ctrl_atc_diab_60a",TD!$A$62)) -> 0
C108: DETECCIÓN DE PERSONAS CON TRACOMA EN EL PRIMER Y SEGUNDO NIVEL DE ATENCIÓN
C111: Actividad | I111: UM | J111: TOTAL | K111: 0 - 11a | L111: 12 - 17a | M111: 18 - 29a | N111: 30 - 59a | P111: 60a y más
C112: Evaluación de Tracoma | I112: Número | J112: =SUM(GETPIVOTDATA("Suma de O_Eva_tracoma_Total",TD!$A$62)) -> 0 | K112: =SUM(GETPIVOTDATA("Suma de O_Eva_tracoma_1_11a",TD!$A$62)) -> 0 | L112: =SUM(GETPIVOTDATA("Suma de O_Eva_tracoma_12_17a",TD!$A$62)) -> 0 | M112: =SUM(GETPIVOTDATA("Suma de O_Eva_tracoma_18_29a",TD!$A$62)) -> 0 | N112: =SUM(GETPIVOTDATA("Suma de O_Eva_tracoma_30_59a",TD!$A$62)) -> 0 | P112: =SUM(GETPIVOTDATA("Suma de O_Eva_tracoma_60a",TD!$A$62)) -> 0
C113: Consejeria de Paciente Tracoma | I113: Número | J113: =SUM(GETPIVOTDATA("Suma de O_Consej_tracoma_Total",TD!$A$62)) -> 2 | K113: =SUM(GETPIVOTDATA("Suma de O_Consej_tracoma_1_11a",TD!$A$62)) -> 0 | L113: =SUM(GETPIVOTDATA("Suma de O_Consej_tracoma_12_17a",TD!$A$62)) -> 0 | M113: =SUM(GETPIVOTDATA("Suma de O_Consej_tracoma_18_29a",TD!$A$62)) -> 0 | N113: =SUM(GETPIVOTDATA("Suma de O_Consej_tracoma_30_59a",TD!$A$62)) -> 0 | P113: =SUM(GETPIVOTDATA("Suma de O_Consej_tracoma_60a",TD!$A$62)) -> 2
C114: Diagnóstico Casos de Tracoma | I114: Caso | J114: =SUM(GETPIVOTDATA("O_c_tracoma_Total",TD!$A$62)) -> 8 | K114: =SUM(GETPIVOTDATA("O_c_tracoma_1_11a",TD!$A$62)) -> 0 | L114: =SUM(GETPIVOTDATA("O_c_tracoma_12_17a",TD!$A$62)) -> 0 | M114: =SUM(GETPIVOTDATA("O_c_tracoma_18_29a",TD!$A$62)) -> 0 | N114: =SUM(GETPIVOTDATA("O_c_tracoma_30_59a",TD!$A$62)) -> 0 | P114: =SUM(GETPIVOTDATA("O_c_tracoma_60a",TD!$A$62)) -> 8
C115: Tratamiento quirúrgico Tracoma | I115: Caso Tratado | J115: =SUM(GETPIVOTDATA("Suma de O_tto_quiru_tracoma_Total",TD!$A$62)) -> 0 | K115: =SUM(GETPIVOTDATA("Suma de O_tto_quiru_tracoma_1_11a",TD!$A$62)) -> 0 | L115: =SUM(GETPIVOTDATA("Suma de O_tto_quiru_tracoma_12_17a",TD!$A$62)) -> 0 | M115: =SUM(GETPIVOTDATA("Suma de O_tto_quiru_tracoma_18_29a",TD!$A$62)) -> 0 | N115: =SUM(GETPIVOTDATA("Suma de O_tto_quiru_tracoma_30_59a",TD!$A$62)) -> 0 | P115: =SUM(GETPIVOTDATA("Suma de O_tto_quiru_tracoma_60a",TD!$A$62)) -> 0
C116: Tratamiento farmacológico Tramaco | I116: Caso Tratado | J116: =SUM(GETPIVOTDATA("Suma de O_f_tracoma_Total",TD!$A$62)) -> 0 | K116: =SUM(GETPIVOTDATA("Suma de O_f_tracoma_1_11a",TD!$A$62)) -> 0 | L116: =SUM(GETPIVOTDATA("Suma de O_f_tracoma_12_17a",TD!$A$62)) -> 0 | M116: =SUM(GETPIVOTDATA("Suma de O_f_tracoma_18_29a",TD!$A$62)) -> 0 | N116: =SUM(GETPIVOTDATA("Suma de O_f_tracoma_30_59a",TD!$A$62)) -> 0 | P116: =SUM(GETPIVOTDATA("Suma de O_f_tracoma_60a",TD!$A$62)) -> 0
C117: Control de Personas Tracoma | I117: Atención | J117: =SUM(GETPIVOTDATA("Suma de O_atc_c_tracoma_Total",TD!$A$62)) -> 0 | K117: =SUM(GETPIVOTDATA("Suma de O_atc_c_tracoma_1_11a",TD!$A$62)) -> 0 | L117: =SUM(GETPIVOTDATA("Suma de O_atc_c_tracoma_12_17a",TD!$A$62)) -> 0 | M117: =SUM(GETPIVOTDATA("Suma de O_atc_c_tracoma_18_29a",TD!$A$62)) -> 0 | N117: =SUM(GETPIVOTDATA("Suma de O_atc_c_tracoma_30_59a",TD!$A$62)) -> 0 | P117: =SUM(GETPIVOTDATA("Suma de O_atc_c_tracoma_60a",TD!$A$62)) -> 0
C120: ENFERMEDADES EXTERNAS DEL OJO
C123: Actividad | I123: UM | J123: TOTAL | K123: 0 - 11a | L123: 12 - 17a | M123: 18 - 29a | N123: 30 - 59a | P123: 60a y más
C124: Diagnóstico Orzuelo | I124: Caso | J124: =SUM(GETPIVOTDATA("Suma de O_ee_orzuelo_Total",TD!$A$62)) -> 93 | K124: =SUM(GETPIVOTDATA("Suma de O_ee_orzuelo_1_11a",TD!$A$62)) -> 40 | L124: =SUM(GETPIVOTDATA("Suma de O_ee_orzuelo_12_17a",TD!$A$62)) -> 14 | M124: =SUM(GETPIVOTDATA("Suma de O_ee_orzuelo_18_29a",TD!$A$62)) -> 13 | N124: =SUM(GETPIVOTDATA("Suma de O_ee_orzuelo_30_59a",TD!$A$62)) -> 21 | P124: =SUM(GETPIVOTDATA("Suma de O_ee_orzuelo_60a",TD!$A$62)) -> 5
C125: Diagnóstico Chalazión | I125: Caso | J125: =SUM(GETPIVOTDATA("Suma de O_ee_chalazion_Total",TD!$A$62)) -> 73 | K125: =SUM(GETPIVOTDATA("Suma de O_ee_chalazion_1_11a",TD!$A$62)) -> 31 | L125: =SUM(GETPIVOTDATA("Suma de O_ee_chalazion_12_17a",TD!$A$62)) -> 11 | M125: =SUM(GETPIVOTDATA("Suma de O_ee_chalazion_18_29a",TD!$A$62)) -> 16 | N125: =SUM(GETPIVOTDATA("Suma de O_ee_chalazion_30_59a",TD!$A$62)) -> 15 | P125: =SUM(GETPIVOTDATA("Suma de O_ee_chalazion_60a",TD!$A$62)) -> 0
C126: Diagnóstico Blefaritis | I126: Caso | J126: =SUM(GETPIVOTDATA("Suma de O_ee_Blefaritis_Total",TD!$A$62)) -> 112 | K126: =SUM(GETPIVOTDATA("Suma de O_ee_Blefaritis_1_11a",TD!$A$62)) -> 24 | L126: =SUM(GETPIVOTDATA("Suma de O_ee_Blefaritis_12_17a",TD!$A$62)) -> 13 | M126: =SUM(GETPIVOTDATA("Suma de O_ee_Blefaritis_18_29a",TD!$A$62)) -> 13 | N126: =SUM(GETPIVOTDATA("Suma de O_ee_Blefaritis_30_59a",TD!$A$62)) -> 17 | P126: =SUM(GETPIVOTDATA("Suma de O_ee_Blefaritis_60a",TD!$A$62)) -> 45
C127: Diagnóstico Conjuntivitis | I127: Caso | J127: =SUM(GETPIVOTDATA("Suma de O_ee_Conjuntivitis_Total",TD!$A$62)) -> 1981 | K127: =SUM(GETPIVOTDATA("Suma de O_ee_Conjuntivitis_1_11a",TD!$A$62)) -> 683 | L127: =SUM(GETPIVOTDATA("Suma de O_ee_Conjuntivitis_12_17a",TD!$A$62)) -> 93 | M127: =SUM(GETPIVOTDATA("Suma de O_ee_Conjuntivitis_18_29a",TD!$A$62)) -> 197 | N127: =SUM(GETPIVOTDATA("Suma de O_ee_Conjuntivitis_30_59a",TD!$A$62)) -> 599 | P127: =SUM(GETPIVOTDATA("Suma de O_ee_Conjuntivitis_60a",TD!$A$62)) -> 409
C129: Consejeria en enfermedades externas del ojos | I129: Caso tratado | J129: =SUM(GETPIVOTDATA("Suma de O_ee_Consejeria_tto_Total",TD!$A$62)) -> 37 | K129: =SUM(GETPIVOTDATA("Suma de O_ee_Consejeria_tto_1_11a",TD!$A$62)) -> 8 | L129: =SUM(GETPIVOTDATA("Suma de O_ee_Consejeria_tto_12_17a",TD!$A$62)) -> 3 | M129: =SUM(GETPIVOTDATA("Suma de O_ee_Consejeria_tto_18_29a",TD!$A$62)) -> 4 | N129: =SUM(GETPIVOTDATA("Suma de O_ee_Consejeria_tto_30_59a",TD!$A$62)) -> 12 | P129: =SUM(GETPIVOTDATA("Suma de O_ee_Consejeria_tto_60a",TD!$A$62)) -> 10
C130: Tratamiento farmacológico de Conjuntivitis | I130: Caso tratado | J130: =SUM(GETPIVOTDATA("Suma de O_ee_Conjuntivitis_tto_Total",TD!$A$62)) -> 7 | K130: =SUM(GETPIVOTDATA("Suma de O_ee_Conjuntivitis_tto_1_11a",TD!$A$62)) -> 2 | L130: =SUM(GETPIVOTDATA("Suma de O_ee_Conjuntivitis_tto_12_17a",TD!$A$62)) -> 2 | M130: =SUM(GETPIVOTDATA("Suma de O_ee_Conjuntivitis_tto_18_29a",TD!$A$62)) -> 0 | N130: =SUM(GETPIVOTDATA("Suma de O_ee_Conjuntivitis_tto_30_59a",TD!$A$62)) -> 2 | P130: =SUM(GETPIVOTDATA("Suma de O_ee_Conjuntivitis_tto_60a",TD!$A$62)) -> 1
